{"text_format":"3","workbook":"xlsx","n_sheets":5,"sheets":["START","PLANLAGTE UTGIFTER","FAKTISKE UTGIFTER","UTGIFTSAVVIK","UTGIFTSANALYSE"],"not_rendered":{"charts":3,"images":3,"defined_names":1},"read":"whole","date_system":"1900"}

{"sheet":"START","index":0,"n_rows":8,"n_cols":2,"rows_kept":8}
[null,"OM DENNE MALEN"]
[null,"Bruk denne arbeidsboken Budsjetterte utgifter for bedrifter til å spore planlagte og faktiske utgifter og avvik."]
[null,"Fyll ut firmanavn, og legg til logo."]
[null,"Skriv inn informasjon i tabellene i regnearkene Planlagte utgifter og Faktiske utgifter."]
[null,"Tabellene oppdateres automatisk i regnearket Utgiftsavvik og diagrammene i regnearket Utgiftsanalyse"]
[null,"Obs! "]
[null,"Flere instruksjoner finnes i kolonne A i hvert regneark. Denne teksten er med hensikt skjult. Hvis du vil fjerne teksten, velger du kolonne A, og deretter Slett. Hvis du vil vise teksten, velger du kolonne A, og deretter endrer du skriftfarge."]
[null,"Hvis du vil finne ut mer om tabeller, trykker du på SKIFT og deretter på F10 i en tabell. Deretter velger du alternativet for tabell og Alternativ tekst."]

{"sheet":"PLANLAGTE UTGIFTER","index":1,"n_rows":37,"n_cols":18,"rows_kept":37,"merged":[[1,1,2,3],[1,10,1,12],[1,13,2,14],[2,10,2,12],[3,17,12,19],[8,1,8,2],[19,1,19,2],[28,1,28,2],[33,1,33,2]]}
["Skriv inn planlagte ansattekostnader, kontorkostnader, markedsføringskostnader og opplærings- eller reisekostnader i de respektive tabellene i dette regnearket. Delsum beregnes automatisk. Du finner nyttige instruksjoner om hvordan du bruker dette regnearket i cellene i denne kolonnen. Trykk på PIL NED for å komme i gang.",{"$nulls":14}," "]
["Skriv inn firmanavn i cellen til høyre og logo i celle N2. Tittelen på dette regnearket finnes i celle K2.","Firmanavn",{"$nulls":8},"Detaljerte kostnadsestimater",null,null,"Det er en plassholder for logo i denne cellen."]
["Tips vises i celle K3.",{"$nulls":9},"Skyggelagte celler er beregninger."]
["Etiketten for planlagte utgifter er i cellen til høyre og måneder i celle C4 til N4, etiketten for år i O4, og instruksjoner om hvordan du bruker denne malen i celle R4.","PLANLAGTE UTGIFTER","JAN.","FEB.","MARS","APRIL","MAI","JUNI","JULI","AUG.","SEP.","OKT.","NOV.","DES.","ÅR",null,null,"Tips: SLIK BRUKER DU DENNE MALEN\nLegg inn data i de hvite cellene i regnearkene PLANLAGTE UTGIFTER og FAKTISKE UTGIFTER, og UTGIFTSAVVIK og UTGIFTSANALYSE beregnes for deg. Hvis du legger til en rad på ett ark, må de andre arkene samsvare med dette."]
["Skriv inn ansattekostnader i tabellen for planlagte ansattekostnader som starter i cellen til høyre. Neste instruksjon finnes i celle A10.","Ansattekostnader","Jan.","Feb.","Mars","April","Mai","Juni","Juli","Aug.","Sep.","Okt.","Nov.","Des.","ÅR"]
[null,"Lønn",{"v":85000,"d":"kr 85,000.00"},{"v":85000,"d":"kr 85,000.00"},{"v":85000,"d":"kr 85,000.00"},{"v":87500,"d":"kr 87,500.00"},{"v":87500,"d":"kr 87,500.00"},{"v":87500,"d":"kr 87,500.00"},{"v":87500,"d":"kr 87,500.00"},{"v":92400,"d":"kr 92,400.00"},{"v":92400,"d":"kr 92,400.00"},{"v":92400,"d":"kr 92,400.00"},{"v":92400,"d":"kr 92,400.00"},{"v":92400,"d":"kr 92,400.00"},{"$f":"SUM(C6:N6)","v":{"v":1067000,"d":"kr 1,067,000.00"}}]
[null,"Aktiva",{"$f":"C6*0.27","v":{"v":22950,"d":"kr 22,950.00"}},{"v":22950,"d":"kr 22,950.00"},{"v":22950,"d":"kr 22,950.00"},{"v":23625,"d":"kr 23,625.00"},{"v":23625,"d":"kr 23,625.00"},{"v":23625,"d":"kr 23,625.00"},{"v":23625,"d":"kr 23,625.00"},{"v":24948,"d":"kr 24,948.00"},{"v":24948,"d":"kr 24,948.00"},{"v":24948,"d":"kr 24,948.00"},{"v":24948,"d":"kr 24,948.00"},{"v":24948,"d":"kr 24,948.00"},{"$f":"SUM(C7:N7)","v":{"v":288090,"d":"kr 288,090.00"}}]
[null,"Delsum",{"$f":"SUBTOTAL(109,planlagte_ansattekostnader[Jan.])","v":{"v":107950,"d":"kr 107,950.00"}},{"$f":"SUBTOTAL(109,planlagte_ansattekostnader[Feb.])","v":{"v":107950,"d":"kr 107,950.00"}},{"$f":"SUBTOTAL(109,planlagte_ansattekostnader[Mars])","v":{"v":107950,"d":"kr 107,950.00"}},{"$f":"SUBTOTAL(109,planlagte_ansattekostnader[April])","v":{"v":111125,"d":"kr 111,125.00"}},{"$f":"SUBTOTAL(109,planlagte_ansattekostnader[Mai])","v":{"v":111125,"d":"kr 111,125.00"}},{"$f":"SUBTOTAL(109,planlagte_ansattekostnader[Juni])","v":{"v":111125,"d":"kr 111,125.00"}},{"$f":"SUBTOTAL(109,planlagte_ansattekostnader[Juli])","v":{"v":111125,"d":"kr 111,125.00"}},{"$f":"SUBTOTAL(109,planlagte_ansattekostnader[Aug.])","v":{"v":117348,"d":"kr 117,348.00"}},{"$f":"SUBTOTAL(109,planlagte_ansattekostnader[Sep.])","v":{"v":117348,"d":"kr 117,348.00"}},{"$f":"SUBTOTAL(109,planlagte_ansattekostnader[Okt.])","v":{"v":117348,"d":"kr 117,348.00"}},{"$f":"SUBTOTAL(109,planlagte_ansattekostnader[Nov.])","v":{"v":117348,"d":"kr 117,348.00"}},{"$f":"SUBTOTAL(109,planlagte_ansattekostnader[Des.])","v":{"v":117348,"d":"kr 117,348.00"}},{"$f":"SUBTOTAL(109,planlagte_ansattekostnader[ÅR])","v":{"v":1355090,"d":"kr 1,355,090.00"}}]
[]
["Skriv inn kontorkostnader i tabellen for planlagte kontorkostnader som starter i cellen til høyre. Neste instruksjon finnes i celle A21.","Kontorkostnader","Jan.","Feb.","Mars","April","Mai","Juni","Juli","Aug.","Sep.","Okt.","Nov.","Des.","ÅR"]
[null,"Kontorleie",{"v":9800,"d":"kr 9,800.00"},{"v":9800,"d":"kr 9,800.00"},{"v":9800,"d":"kr 9,800.00"},{"v":9800,"d":"kr 9,800.00"},{"v":9800,"d":"kr 9,800.00"},{"v":9800,"d":"kr 9,800.00"},{"v":9800,"d":"kr 9,800.00"},{"v":9800,"d":"kr 9,800.00"},{"v":9800,"d":"kr 9,800.00"},{"v":9800,"d":"kr 9,800.00"},{"v":9800,"d":"kr 9,800.00"},{"v":9800,"d":"kr 9,800.00"},{"$f":"SUM(C11:N11)","v":{"v":117600,"d":"kr 117,600.00"}}]
[null,"Gass",null,{"v":400,"d":"kr 400.00"},{"v":400,"d":"kr 400.00"},{"v":100,"d":"kr 100.00"},{"v":100,"d":"kr 100.00"},{"v":100,"d":"kr 100.00"},{"v":100,"d":"kr 100.00"},{"v":100,"d":"kr 100.00"},{"v":100,"d":"kr 100.00"},{"v":100,"d":"kr 100.00"},{"v":400,"d":"kr 400.00"},{"v":400,"d":"kr 400.00"},{"v":2300,"d":"kr 2,300.00"}]
[null,"Strøm",{"v":300,"d":"kr 300.00"},{"v":300,"d":"kr 300.00"},{"v":300,"d":"kr 300.00"},{"v":300,"d":"kr 300.00"},{"v":300,"d":"kr 300.00"},{"v":300,"d":"kr 300.00"},{"v":300,"d":"kr 300.00"},{"v":300,"d":"kr 300.00"},{"v":300,"d":"kr 300.00"},{"v":300,"d":"kr 300.00"},{"v":300,"d":"kr 300.00"},{"v":300,"d":"kr 300.00"},{"v":3600,"d":"kr 3,600.00"}]
[null,"Vann",{"v":40,"d":"kr 40.00"},{"v":40,"d":"kr 40.00"},{"v":40,"d":"kr 40.00"},{"v":40,"d":"kr 40.00"},{"v":40,"d":"kr 40.00"},{"v":40,"d":"kr 40.00"},{"v":40,"d":"kr 40.00"},{"v":40,"d":"kr 40.00"},{"v":40,"d":"kr 40.00"},{"v":40,"d":"kr 40.00"},{"v":40,"d":"kr 40.00"},{"v":40,"d":"kr 40.00"},{"v":480,"d":"kr 480.00"}]
[null,"Telefon",{"v":250,"d":"kr 250.00"},{"v":250,"d":"kr 250.00"},{"v":250,"d":"kr 250.00"},{"v":250,"d":"kr 250.00"},{"v":250,"d":"kr 250.00"},{"v":250,"d":"kr 250.00"},{"v":250,"d":"kr 250.00"},{"v":250,"d":"kr 250.00"},{"v":250,"d":"kr 250.00"},{"v":250,"d":"kr 250.00"},{"v":250,"d":"kr 250.00"},{"v":250,"d":"kr 250.00"},{"v":3000,"d":"kr 3,000.00"}]
[null,"Internett-tilgang",{"v":180,"d":"kr 180.00"},{"v":180,"d":"kr 180.00"},{"v":180,"d":"kr 180.00"},{"v":180,"d":"kr 180.00"},{"v":180,"d":"kr 180.00"},{"v":180,"d":"kr 180.00"},{"v":180,"d":"kr 180.00"},{"v":180,"d":"kr 180.00"},{"v":180,"d":"kr 180.00"},{"v":180,"d":"kr 180.00"},{"v":180,"d":"kr 180.00"},{"v":180,"d":"kr 180.00"},{"v":2160,"d":"kr 2,160.00"}]
[null,"Kontorutstyr",{"v":200,"d":"kr 200.00"},{"v":200,"d":"kr 200.00"},{"v":200,"d":"kr 200.00"},{"v":200,"d":"kr 200.00"},{"v":200,"d":"kr 200.00"},{"v":200,"d":"kr 200.00"},{"v":200,"d":"kr 200.00"},{"v":200,"d":"kr 200.00"},{"v":200,"d":"kr 200.00"},{"v":200,"d":"kr 200.00"},{"v":200,"d":"kr 200.00"},{"v":200,"d":"kr 200.00"},{"v":2400,"d":"kr 2,400.00"}]
[null,"Sikkerhet",{"v":600,"d":"kr 600.00"},{"v":600,"d":"kr 600.00"},{"v":600,"d":"kr 600.00"},{"v":600,"d":"kr 600.00"},{"v":600,"d":"kr 600.00"},{"v":600,"d":"kr 600.00"},{"v":600,"d":"kr 600.00"},{"v":600,"d":"kr 600.00"},{"v":600,"d":"kr 600.00"},{"v":600,"d":"kr 600.00"},{"v":600,"d":"kr 600.00"},{"v":600,"d":"kr 600.00"},{"v":7200,"d":"kr 7,200.00"}]
[null,"Delsum",{"$f":"SUBTOTAL(109,planlagte_kontorkostnader[Jan.])","v":{"v":11370,"d":"kr 11,370.00"}},{"$f":"SUBTOTAL(109,planlagte_kontorkostnader[Feb.])","v":{"v":11770,"d":"kr 11,770.00"}},{"$f":"SUBTOTAL(109,planlagte_kontorkostnader[Mars])","v":{"v":11770,"d":"kr 11,770.00"}},{"$f":"SUBTOTAL(109,planlagte_kontorkostnader[April])","v":{"v":11470,"d":"kr 11,470.00"}},{"$f":"SUBTOTAL(109,planlagte_kontorkostnader[Mai])","v":{"v":11470,"d":"kr 11,470.00"}},{"$f":"SUBTOTAL(109,planlagte_kontorkostnader[Juni])","v":{"v":11470,"d":"kr 11,470.00"}},{"$f":"SUBTOTAL(109,planlagte_kontorkostnader[Juli])","v":{"v":11470,"d":"kr 11,470.00"}},{"$f":"SUBTOTAL(109,planlagte_kontorkostnader[Aug.])","v":{"v":11470,"d":"kr 11,470.00"}},{"$f":"SUBTOTAL(109,planlagte_kontorkostnader[Sep.])","v":{"v":11470,"d":"kr 11,470.00"}},{"$f":"SUBTOTAL(109,planlagte_kontorkostnader[Okt.])","v":{"v":11470,"d":"kr 11,470.00"}},{"$f":"SUBTOTAL(109,planlagte_kontorkostnader[Nov.])","v":{"v":11770,"d":"kr 11,770.00"}},{"$f":"SUBTOTAL(109,planlagte_kontorkostnader[Des.])","v":{"v":11770,"d":"kr 11,770.00"}},{"$f":"SUBTOTAL(109,planlagte_kontorkostnader[ÅR])","v":{"v":138740,"d":"kr 138,740.00"}}]
[]
["Skriv inn markedsføringskostnader i tabellen for planlagte markedsføringskostnader som starter i cellen til høyre. Neste instruksjon finnes i celle A30.","Markedsføringskostnader","Jan.","Feb.","Mars","April","Mai","Juni","Juli","Aug.","Sep.","Okt.","Nov.","Des.","ÅR"]
[null,"Drift av nettsted",{"v":500,"d":"kr 500.00"},{"v":500,"d":"kr 500.00"},{"v":500,"d":"kr 500.00"},{"v":500,"d":"kr 500.00"},{"v":500,"d":"kr 500.00"},{"v":500,"d":"kr 500.00"},{"v":500,"d":"kr 500.00"},{"v":500,"d":"kr 500.00"},{"v":500,"d":"kr 500.00"},{"v":500,"d":"kr 500.00"},{"v":500,"d":"kr 500.00"},{"v":500,"d":"kr 500.00"},{"$f":"SUM(C22:N22)","v":{"v":6000,"d":"kr 6,000.00"}}]
[null,"Nettstedsoppdateringer",{"v":200,"d":"kr 200.00"},{"v":200,"d":"kr 200.00"},{"v":200,"d":"kr 200.00"},{"v":200,"d":"kr 200.00"},{"v":200,"d":"kr 200.00"},{"v":1000,"d":"kr 1,000.00"},{"v":200,"d":"kr 200.00"},{"v":200,"d":"kr 200.00"},{"v":200,"d":"kr 200.00"},{"v":200,"d":"kr 200.00"},{"v":200,"d":"kr 200.00"},{"v":1000,"d":"kr 1,000.00"},{"v":4000,"d":"kr 4,000.00"}]
[null,"Klargjøring av markedsføringsmateriell",{"v":5000,"d":"kr 5,000.00"},{"v":0,"d":"kr 0.00"},{"v":0,"d":"kr 0.00"},{"v":5000,"d":"kr 5,000.00"},{"v":0,"d":"kr 0.00"},{"v":0,"d":"kr 0.00"},{"v":5000,"d":"kr 5,000.00"},{"v":0,"d":"kr 0.00"},{"v":0,"d":"kr 0.00"},{"v":5000,"d":"kr 5,000.00"},{"v":0,"d":"kr 0.00"},{"v":0,"d":"kr 0.00"},{"v":20000,"d":"kr 20,000.00"}]
[null,"Trykking av markedsføringsmateriell",{"v":200,"d":"kr 200.00"},{"v":200,"d":"kr 200.00"},{"v":200,"d":"kr 200.00"},{"v":200,"d":"kr 200.00"},{"v":200,"d":"kr 200.00"},{"v":200,"d":"kr 200.00"},{"v":200,"d":"kr 200.00"},{"v":200,"d":"kr 200.00"},{"v":200,"d":"kr 200.00"},{"v":200,"d":"kr 200.00"},{"v":200,"d":"kr 200.00"},{"v":200,"d":"kr 200.00"},{"v":2400,"d":"kr 2,400.00"}]
[null,"Markedsføringsarrangementer",{"v":2000,"d":"kr 2,000.00"},{"v":2000,"d":"kr 2,000.00"},{"v":2000,"d":"kr 2,000.00"},{"v":5000,"d":"kr 5,000.00"},{"v":2000,"d":"kr 2,000.00"},{"v":2000,"d":"kr 2,000.00"},{"v":2000,"d":"kr 2,000.00"},{"v":5000,"d":"kr 5,000.00"},{"v":2000,"d":"kr 2,000.00"},{"v":2000,"d":"kr 2,000.00"},{"v":2000,"d":"kr 2,000.00"},{"v":5000,"d":"kr 5,000.00"},{"v":33000,"d":"kr 33,000.00"}]
[null,"Diverse utgifter",{"v":200,"d":"kr 200.00"},{"v":200,"d":"kr 200.00"},{"v":200,"d":"kr 200.00"},{"v":200,"d":"kr 200.00"},{"v":200,"d":"kr 200.00"},{"v":200,"d":"kr 200.00"},{"v":200,"d":"kr 200.00"},{"v":200,"d":"kr 200.00"},{"v":200,"d":"kr 200.00"},{"v":200,"d":"kr 200.00"},{"v":200,"d":"kr 200.00"},{"v":200,"d":"kr 200.00"},{"v":2400,"d":"kr 2,400.00"}]
[null,"Delsum",{"$f":"SUBTOTAL(109,planlagte_markedsføringskostnader[Jan.])","v":{"v":8100,"d":"kr 8,100.00"}},{"$f":"SUBTOTAL(109,planlagte_markedsføringskostnader[Feb.])","v":{"v":3100,"d":"kr 3,100.00"}},{"$f":"SUBTOTAL(109,planlagte_markedsføringskostnader[Mars])","v":{"v":3100,"d":"kr 3,100.00"}},{"$f":"SUBTOTAL(109,planlagte_markedsføringskostnader[April])","v":{"v":11100,"d":"kr 11,100.00"}},{"$f":"SUBTOTAL(109,planlagte_markedsføringskostnader[Mai])","v":{"v":3100,"d":"kr 3,100.00"}},{"$f":"SUBTOTAL(109,planlagte_markedsføringskostnader[Juni])","v":{"v":3900,"d":"kr 3,900.00"}},{"$f":"SUBTOTAL(109,planlagte_markedsføringskostnader[Juli])","v":{"v":8100,"d":"kr 8,100.00"}},{"$f":"SUBTOTAL(109,planlagte_markedsføringskostnader[Aug.])","v":{"v":6100,"d":"kr 6,100.00"}},{"$f":"SUBTOTAL(109,planlagte_markedsføringskostnader[Sep.])","v":{"v":3100,"d":"kr 3,100.00"}},{"$f":"SUBTOTAL(109,planlagte_markedsføringskostnader[Okt.])","v":{"v":8100,"d":"kr 8,100.00"}},{"$f":"SUBTOTAL(109,planlagte_markedsføringskostnader[Nov.])","v":{"v":3100,"d":"kr 3,100.00"}},{"$f":"SUBTOTAL(109,planlagte_markedsføringskostnader[Des.])","v":{"v":6900,"d":"kr 6,900.00"}},{"$f":"SUBTOTAL(109,planlagte_markedsføringskostnader[ÅR])","v":{"v":67800,"d":"kr 67,800.00"}}]
[]
["Skriv inn opplærings- og reisekostnader i tabellen for planlagte opplærings- og reisekostnader som starter i cellen til høyre. Neste instruksjon finnes i celle A35.","Opplæring og reise","Jan.","Feb.","Mars","April","Mai","Juni","Juli","Aug.","Sep.","Okt.","Nov.","Des.","ÅR"]
[null,"Kurs",{"v":2000,"d":"kr 2,000.00"},{"v":2000,"d":"kr 2,000.00"},{"v":2000,"d":"kr 2,000.00"},{"v":2000,"d":"kr 2,000.00"},{"v":2000,"d":"kr 2,000.00"},{"v":2000,"d":"kr 2,000.00"},{"v":2000,"d":"kr 2,000.00"},{"v":2000,"d":"kr 2,000.00"},{"v":2000,"d":"kr 2,000.00"},{"v":2000,"d":"kr 2,000.00"},{"v":2000,"d":"kr 2,000.00"},{"v":2000,"d":"kr 2,000.00"},{"$f":"SUM(C31:N31)","v":{"v":24000,"d":"kr 24,000.00"}}]
[null,"Reisekostnader knyttet til opplæring",{"v":2000,"d":"kr 2,000.00"},{"v":2000,"d":"kr 2,000.00"},{"v":2000,"d":"kr 2,000.00"},{"v":2000,"d":"kr 2,000.00"},{"v":2000,"d":"kr 2,000.00"},{"v":2000,"d":"kr 2,000.00"},{"v":2000,"d":"kr 2,000.00"},{"v":2000,"d":"kr 2,000.00"},{"v":2000,"d":"kr 2,000.00"},{"v":2000,"d":"kr 2,000.00"},{"v":2000,"d":"kr 2,000.00"},{"v":2000,"d":"kr 2,000.00"},{"$f":"SUM(C32:N32)","v":{"v":24000,"d":"kr 24,000.00"}}]
[null,"Delsum",{"$f":"SUBTOTAL(109,planlagte_opplærings_og_reisekostnader[Jan.])","v":{"v":4000,"d":"kr 4,000.00"}},{"$f":"SUBTOTAL(109,planlagte_opplærings_og_reisekostnader[Feb.])","v":{"v":4000,"d":"kr 4,000.00"}},{"$f":"SUBTOTAL(109,planlagte_opplærings_og_reisekostnader[Mars])","v":{"v":4000,"d":"kr 4,000.00"}},{"$f":"SUBTOTAL(109,planlagte_opplærings_og_reisekostnader[April])","v":{"v":4000,"d":"kr 4,000.00"}},{"$f":"SUBTOTAL(109,planlagte_opplærings_og_reisekostnader[Mai])","v":{"v":4000,"d":"kr 4,000.00"}},{"$f":"SUBTOTAL(109,planlagte_opplærings_og_reisekostnader[Juni])","v":{"v":4000,"d":"kr 4,000.00"}},{"$f":"SUBTOTAL(109,planlagte_opplærings_og_reisekostnader[Juli])","v":{"v":4000,"d":"kr 4,000.00"}},{"$f":"SUBTOTAL(109,planlagte_opplærings_og_reisekostnader[Aug.])","v":{"v":4000,"d":"kr 4,000.00"}},{"$f":"SUBTOTAL(109,planlagte_opplærings_og_reisekostnader[Sep.])","v":{"v":4000,"d":"kr 4,000.00"}},{"$f":"SUBTOTAL(109,planlagte_opplærings_og_reisekostnader[Okt.])","v":{"v":4000,"d":"kr 4,000.00"}},{"$f":"SUBTOTAL(109,planlagte_opplærings_og_reisekostnader[Nov.])","v":{"v":4000,"d":"kr 4,000.00"}},{"$f":"SUBTOTAL(109,planlagte_opplærings_og_reisekostnader[Des.])","v":{"v":4000,"d":"kr 4,000.00"}},{"$f":"SUBTOTAL(109,planlagte_opplærings_og_reisekostnader[ÅR])","v":{"v":48000,"d":"kr 48,000.00"}}]
[]
["Totalsummer beregnes automatisk i tabellen for planlagt totalsum som starter i cellen til høyre.","TOTALSUMMER","Jan.","Feb.","Mars","April","Mai","Juni","Juli","Aug.","Sep.","Okt.","Nov.","Des.","År"]
[null,"Månedlige planlagte utgifter",{"$f":"planlagte_opplærings_og_reisekostnader[[#Totals],[Jan.]]+planlagte_markedsføringskostnader[[#Totals],[Jan.]]+planlagte_kontorkostnader[[#Totals],[Jan.]]+planlagte_ansattekostnader[[#Totals],[Jan.]]","v":{"v":131420,"d":"kr 131,420.00"}},{"$f":"planlagte_opplærings_og_reisekostnader[[#Totals],[Feb.]]+planlagte_markedsføringskostnader[[#Totals],[Feb.]]+planlagte_kontorkostnader[[#Totals],[Feb.]]+planlagte_ansattekostnader[[#Totals],[Feb.]]","v":{"v":126820,"d":"kr 126,820.00"}},{"$f":"planlagte_opplærings_og_reisekostnader[[#Totals],[Mars]]+planlagte_markedsføringskostnader[[#Totals],[Mars]]+planlagte_kontorkostnader[[#Totals],[Mars]]+planlagte_ansattekostnader[[#Totals],[Mars]]","v":{"v":126820,"d":"kr 126,820.00"}},{"$f":"planlagte_opplærings_og_reisekostnader[[#Totals],[April]]+planlagte_markedsføringskostnader[[#Totals],[April]]+planlagte_kontorkostnader[[#Totals],[April]]+planlagte_ansattekostnader[[#Totals],[April]]","v":{"v":137695,"d":"kr 137,695.00"}},{"$f":"planlagte_opplærings_og_reisekostnader[[#Totals],[Mai]]+planlagte_markedsføringskostnader[[#Totals],[Mai]]+planlagte_kontorkostnader[[#Totals],[Mai]]+planlagte_ansattekostnader[[#Totals],[Mai]]","v":{"v":129695,"d":"kr 129,695.00"}},{"$f":"planlagte_opplærings_og_reisekostnader[[#Totals],[Juni]]+planlagte_markedsføringskostnader[[#Totals],[Juni]]+planlagte_kontorkostnader[[#Totals],[Juni]]+planlagte_ansattekostnader[[#Totals],[Juni]]","v":{"v":130495,"d":"kr 130,495.00"}},{"$f":"planlagte_opplærings_og_reisekostnader[[#Totals],[Juli]]+planlagte_markedsføringskostnader[[#Totals],[Juli]]+planlagte_kontorkostnader[[#Totals],[Juli]]+planlagte_ansattekostnader[[#Totals],[Juli]]","v":{"v":134695,"d":"kr 134,695.00"}},{"$f":"planlagte_opplærings_og_reisekostnader[[#Totals],[Aug.]]+planlagte_markedsføringskostnader[[#Totals],[Aug.]]+planlagte_kontorkostnader[[#Totals],[Aug.]]+planlagte_ansattekostnader[[#Totals],[Aug.]]","v":{"v":138918,"d":"kr 138,918.00"}},{"$f":"planlagte_opplærings_og_reisekostnader[[#Totals],[Sep.]]+planlagte_markedsføringskostnader[[#Totals],[Sep.]]+planlagte_kontorkostnader[[#Totals],[Sep.]]+planlagte_ansattekostnader[[#Totals],[Sep.]]","v":{"v":135918,"d":"kr 135,918.00"}},{"$f":"planlagte_opplærings_og_reisekostnader[[#Totals],[Okt.]]+planlagte_markedsføringskostnader[[#Totals],[Okt.]]+planlagte_kontorkostnader[[#Totals],[Okt.]]+planlagte_ansattekostnader[[#Totals],[Okt.]]","v":{"v":140918,"d":"kr 140,918.00"}},{"$f":"planlagte_opplærings_og_reisekostnader[[#Totals],[Nov.]]+planlagte_markedsføringskostnader[[#Totals],[Nov.]]+planlagte_kontorkostnader[[#Totals],[Nov.]]+planlagte_ansattekostnader[[#Totals],[Nov.]]","v":{"v":136218,"d":"kr 136,218.00"}},{"$f":"planlagte_opplærings_og_reisekostnader[[#Totals],[Des.]]+planlagte_markedsføringskostnader[[#Totals],[Des.]]+planlagte_kontorkostnader[[#Totals],[Des.]]+planlagte_ansattekostnader[[#Totals],[Des.]]","v":{"v":140018,"d":"kr 140,018.00"}},{"$f":"planlagte_opplærings_og_reisekostnader[[#Totals],[ÅR]]+planlagte_markedsføringskostnader[[#Totals],[ÅR]]+planlagte_kontorkostnader[[#Totals],[ÅR]]+planlagte_ansattekostnader[[#Totals],[ÅR]]","v":{"v":1609630,"d":"kr 1,609,630.00"}}]
[null,"Totalsum planlagte utgifter",{"$f":"SUM($C$36:C36)","v":{"v":131420,"d":"kr 131,420.00"}},{"$f":"SUM($C$36:D36)","v":{"v":258240,"d":"kr 258,240.00"}},{"$f":"SUM($C$36:E36)","v":{"v":385060,"d":"kr 385,060.00"}},{"$f":"SUM($C$36:F36)","v":{"v":522755,"d":"kr 522,755.00"}},{"$f":"SUM($C$36:G36)","v":{"v":652450,"d":"kr 652,450.00"}},{"$f":"SUM($C$36:H36)","v":{"v":782945,"d":"kr 782,945.00"}},{"$f":"SUM($C$36:I36)","v":{"v":917640,"d":"kr 917,640.00"}},{"$f":"SUM($C$36:J36)","v":{"v":1056558,"d":"kr 1,056,558.00"}},{"$f":"SUM($C$36:K36)","v":{"v":1192476,"d":"kr 1,192,476.00"}},{"$f":"SUM($C$36:L36)","v":{"v":1333394,"d":"kr 1,333,394.00"}},{"$f":"SUM($C$36:M36)","v":{"v":1469612,"d":"kr 1,469,612.00"}},{"$f":"SUM($C$36:N36)","v":{"v":1609630,"d":"kr 1,609,630.00"}}]

{"sheet":"FAKTISKE UTGIFTER","index":2,"n_rows":37,"n_cols":16,"rows_kept":37,"merged":[[1,1,2,3],[1,10,1,12],[1,13,2,14],[2,10,2,12],[8,1,8,2],[19,1,19,2],[28,1,28,2],[33,1,33,2]]}
["Skriv inn faktiske ansattekostnader, kontorkostnader, markedsføringskostnader og opplærings- eller reisekostnader i de respektive tabellene i dette regnearket. Totalsummer beregnes automatisk. Du finner nyttige instruksjoner om hvordan du bruker dette regnearket i cellene i denne kolonnen. Trykk på PIL NED for å komme i gang.",{"$nulls":14}," "]
["Firmanavn oppdateres automatisk i cellen til høyre. Tittelen på dette regnearket finnes i celle K2. Legg inn logo i celle N2.",{"$f":"'PLANLAGTE UTGIFTER'!B2:D3","v":"Firmanavn"},{"$nulls":8},{"$f":"regneark_tittel","v":"Detaljerte kostnadsestimater"},null,null,"Det er en plassholder for logo i denne cellen."]
["Tips vises i celle K3.",{"$nulls":9},"Skyggelagte celler er beregninger."]
["Etikett for faktiske utgifter er i cellen til høyre, måneder i celle C4 til N4 og etikett for år i O4.","FAKTISKE UTGIFTER","JAN.","FEB.","MARS","APRIL","MAI","JUNI","JULI","AUG.","SEP.","OKT.","NOV.","DES.","ÅR"]
["Skriv inn ansattekostnader i tabellen for faktiske ansattekostnader som starter i cellen til høyre. Neste instruksjon finnes i celle A10.","Ansattekostnader","Jan.","Feb.","Mars","April","Mai","Juni","Juli","Aug.","Sep.","Okt.","Nov.","Des.","ÅR"]
[null,"Lønn",{"v":85000,"d":"kr 85,000.00"},{"v":85000,"d":"kr 85,000.00"},{"v":85000,"d":"kr 85,000.00"},{"v":88000,"d":"kr 88,000.00"},{"v":88000,"d":"kr 88,000.00"},{"v":88000,"d":"kr 88,000.00"},{"$nulls":6},{"$f":"SUM(C6:N6)","v":{"v":519000,"d":"kr 519,000.00"}}]
[null,"Aktiva",{"$f":"C6*0.27","v":{"v":22950,"d":"kr 22,950.00"}},{"v":22950,"d":"kr 22,950.00"},{"v":22950,"d":"kr 22,950.00"},{"v":23760,"d":"kr 23,760.00"},{"v":23760,"d":"kr 23,760.00"},{"v":23760,"d":"kr 23,760.00"},{"v":0,"d":"kr 0.00"},{"v":0,"d":"kr 0.00"},{"v":0,"d":"kr 0.00"},{"v":0,"d":"kr 0.00"},{"v":0,"d":"kr 0.00"},{"v":0,"d":"kr 0.00"},{"$f":"SUM(C7:N7)","v":{"v":140130,"d":"kr 140,130.00"}}]
[null,"Delsum",{"$f":"SUBTOTAL(109,faktiske_ansattekostnader[Jan.])","v":{"v":107950,"d":"kr 107,950.00"}},{"$f":"SUBTOTAL(109,faktiske_ansattekostnader[Feb.])","v":{"v":107950,"d":"kr 107,950.00"}},{"$f":"SUBTOTAL(109,faktiske_ansattekostnader[Mars])","v":{"v":107950,"d":"kr 107,950.00"}},{"$f":"SUBTOTAL(109,faktiske_ansattekostnader[April])","v":{"v":111760,"d":"kr 111,760.00"}},{"$f":"SUBTOTAL(109,faktiske_ansattekostnader[Mai])","v":{"v":111760,"d":"kr 111,760.00"}},{"$f":"SUBTOTAL(109,faktiske_ansattekostnader[Juni])","v":{"v":111760,"d":"kr 111,760.00"}},{"$f":"SUBTOTAL(109,faktiske_ansattekostnader[Juli])","v":{"v":0,"d":"kr 0.00"}},{"$f":"SUBTOTAL(109,faktiske_ansattekostnader[Aug.])","v":{"v":0,"d":"kr 0.00"}},{"$f":"SUBTOTAL(109,faktiske_ansattekostnader[Sep.])","v":{"v":0,"d":"kr 0.00"}},{"$f":"SUBTOTAL(109,faktiske_ansattekostnader[Okt.])","v":{"v":0,"d":"kr 0.00"}},{"$f":"SUBTOTAL(109,faktiske_ansattekostnader[Nov.])","v":{"v":0,"d":"kr 0.00"}},{"$f":"SUBTOTAL(109,faktiske_ansattekostnader[Des.])","v":{"v":0,"d":"kr 0.00"}},{"$f":"SUBTOTAL(109,faktiske_ansattekostnader[ÅR])","v":{"v":659130,"d":"kr 659,130.00"}}]
[]
["Skriv inn kontorkostnader i tabellen for faktiske kontorkostnader som starter i cellen til høyre. Neste instruksjon finnes i celle A21.","Kontorkostnader","Jan.","Feb.","Mars","April","Mai","Juni","Juli","Aug.","Sep.","Okt.","Nov.","Des.","ÅR"]
[null,"Kontorleie",{"v":9800,"d":"kr 9,800.00"},{"v":9800,"d":"kr 9,800.00"},{"v":9800,"d":"kr 9,800.00"},{"v":9800,"d":"kr 9,800.00"},{"v":9800,"d":"kr 9,800.00"},{"v":9800,"d":"kr 9,800.00"},{"$nulls":6},{"$f":"SUM(C11:N11)","v":{"v":58800,"d":"kr 58,800.00"}}]
[null,"Gass",{"v":4,"d":"kr 4.00"},{"v":430,"d":"kr 430.00"},{"v":385,"d":"kr 385.00"},{"v":230,"d":"kr 230.00"},{"v":87,"d":"kr 87.00"},{"v":88,"d":"kr 88.00"},{"$nulls":6},{"v":1224,"d":"kr 1,224.00"}]
[null,"Strøm",{"v":288,"d":"kr 288.00"},{"v":278,"d":"kr 278.00"},{"v":268,"d":"kr 268.00"},{"v":299,"d":"kr 299.00"},{"v":306,"d":"kr 306.00"},{"v":290,"d":"kr 290.00"},{"$nulls":6},{"v":1729,"d":"kr 1,729.00"}]
[null,"Vann",{"v":35,"d":"kr 35.00"},{"v":33,"d":"kr 33.00"},{"v":34,"d":"kr 34.00"},{"v":36,"d":"kr 36.00"},{"v":34,"d":"kr 34.00"},{"v":36,"d":"kr 36.00"},{"$nulls":6},{"v":208,"d":"kr 208.00"}]
[null,"Telefon",{"v":224,"d":"kr 224.00"},{"v":235,"d":"kr 235.00"},{"v":265,"d":"kr 265.00"},{"v":245,"d":"kr 245.00"},{"v":245,"d":"kr 245.00"},{"v":220,"d":"kr 220.00"},{"$nulls":6},{"v":1434,"d":"kr 1,434.00"}]
[null,"Internett-tilgang",{"v":180,"d":"kr 180.00"},{"v":180,"d":"kr 180.00"},{"v":180,"d":"kr 180.00"},{"v":180,"d":"kr 180.00"},{"v":180,"d":"kr 180.00"},{"v":180,"d":"kr 180.00"},{"$nulls":6},{"v":1080,"d":"kr 1,080.00"}]
[null,"Kontorutstyr",{"v":256,"d":"kr 256.00"},{"v":142,"d":"kr 142.00"},{"v":160,"d":"kr 160.00"},{"v":221,"d":"kr 221.00"},{"v":256,"d":"kr 256.00"},{"v":240,"d":"kr 240.00"},{"$nulls":6},{"v":1275,"d":"kr 1,275.00"}]
[null,"Sikkerhet",{"v":600,"d":"kr 600.00"},{"v":600,"d":"kr 600.00"},{"v":600,"d":"kr 600.00"},{"v":600,"d":"kr 600.00"},{"v":600,"d":"kr 600.00"},{"v":600,"d":"kr 600.00"},{"$nulls":6},{"v":3600,"d":"kr 3,600.00"}]
[null,"Delsum",{"$f":"SUBTOTAL(109,faktiske_kontorkostnader[Jan.])","v":{"v":11387,"d":"kr 11,387.00"}},{"$f":"SUBTOTAL(109,faktiske_kontorkostnader[Feb.])","v":{"v":11698,"d":"kr 11,698.00"}},{"$f":"SUBTOTAL(109,faktiske_kontorkostnader[Mars])","v":{"v":11692,"d":"kr 11,692.00"}},{"$f":"SUBTOTAL(109,faktiske_kontorkostnader[April])","v":{"v":11611,"d":"kr 11,611.00"}},{"$f":"SUBTOTAL(109,faktiske_kontorkostnader[Mai])","v":{"v":11508,"d":"kr 11,508.00"}},{"$f":"SUBTOTAL(109,faktiske_kontorkostnader[Juni])","v":{"v":11454,"d":"kr 11,454.00"}},{"$f":"SUBTOTAL(109,faktiske_kontorkostnader[Juli])","v":{"v":0,"d":"kr 0.00"}},{"$f":"SUBTOTAL(109,faktiske_kontorkostnader[Aug.])","v":{"v":0,"d":"kr 0.00"}},{"$f":"SUBTOTAL(109,faktiske_kontorkostnader[Sep.])","v":{"v":0,"d":"kr 0.00"}},{"$f":"SUBTOTAL(109,faktiske_kontorkostnader[Okt.])","v":{"v":0,"d":"kr 0.00"}},{"$f":"SUBTOTAL(109,faktiske_kontorkostnader[Nov.])","v":{"v":0,"d":"kr 0.00"}},{"$f":"SUBTOTAL(109,faktiske_kontorkostnader[Des.])","v":{"v":0,"d":"kr 0.00"}},{"$f":"SUBTOTAL(109,faktiske_kontorkostnader[ÅR])","v":{"v":69350,"d":"kr 69,350.00"}}]
[]
["Skriv inn markedsføringskostnader i tabellen for faktiske markedsføringskostnader som starter i cellen til høyre. Neste instruksjon finnes i celle A30.","Markedsføringskostnader","Jan.","Feb.","Mars","April","Mai","Juni","Juli","Aug.","Sep.","Okt.","Nov.","Des.","ÅR"]
[null,"Drift av nettsted",{"v":500,"d":"kr 500.00"},{"v":500,"d":"kr 500.00"},{"v":500,"d":"kr 500.00"},{"v":500,"d":"kr 500.00"},{"v":500,"d":"kr 500.00"},{"v":500,"d":"kr 500.00"},{"$nulls":6},{"$f":"SUM(C22:N22)","v":{"v":3000,"d":"kr 3,000.00"}}]
[null,"Nettstedsoppdateringer",{"v":200,"d":"kr 200.00"},{"v":200,"d":"kr 200.00"},{"v":200,"d":"kr 200.00"},{"v":200,"d":"kr 200.00"},{"v":200,"d":"kr 200.00"},{"v":1500,"d":"kr 1,500.00"},{"$nulls":6},{"v":2500,"d":"kr 2,500.00"}]
[null,"Klargjøring av markedsføringsmateriell",{"v":4800,"d":"kr 4,800.00"},{"v":0,"d":"kr 0.00"},{"v":0,"d":"kr 0.00"},{"v":5500,"d":"kr 5,500.00"},{"v":0,"d":"kr 0.00"},{"v":0,"d":"kr 0.00"},{"$nulls":6},{"v":10300,"d":"kr 10,300.00"}]
[null,"Trykking av markedsføringsmateriell",{"v":100,"d":"kr 100.00"},{"v":500,"d":"kr 500.00"},{"v":100,"d":"kr 100.00"},{"v":100,"d":"kr 100.00"},{"v":600,"d":"kr 600.00"},{"v":180,"d":"kr 180.00"},{"$nulls":6},{"v":1580,"d":"kr 1,580.00"}]
[null,"Markedsføringsarrangementer",{"v":1800,"d":"kr 1,800.00"},{"v":2200,"d":"kr 2,200.00"},{"v":2200,"d":"kr 2,200.00"},{"v":4700,"d":"kr 4,700.00"},{"v":1500,"d":"kr 1,500.00"},{"v":2300,"d":"kr 2,300.00"},{"$nulls":6},{"v":14700,"d":"kr 14,700.00"}]
[null,"Diverse utgifter",{"v":145,"d":"kr 145.00"},{"v":156,"d":"kr 156.00"},{"v":123,"d":"kr 123.00"},{"v":223,"d":"kr 223.00"},{"v":187,"d":"kr 187.00"},{"v":245,"d":"kr 245.00"},{"$nulls":6},{"v":1079,"d":"kr 1,079.00"}]
[null,"Delsum",{"$f":"SUBTOTAL(109,faktiske_markedsføringskostnader[Jan.])","v":{"v":7545,"d":"kr 7,545.00"}},{"$f":"SUBTOTAL(109,faktiske_markedsføringskostnader[Feb.])","v":{"v":3556,"d":"kr 3,556.00"}},{"$f":"SUBTOTAL(109,faktiske_markedsføringskostnader[Mars])","v":{"v":3123,"d":"kr 3,123.00"}},{"$f":"SUBTOTAL(109,faktiske_markedsføringskostnader[April])","v":{"v":11223,"d":"kr 11,223.00"}},{"$f":"SUBTOTAL(109,faktiske_markedsføringskostnader[Mai])","v":{"v":2987,"d":"kr 2,987.00"}},{"$f":"SUBTOTAL(109,faktiske_markedsføringskostnader[Juni])","v":{"v":4725,"d":"kr 4,725.00"}},{"$f":"SUBTOTAL(109,faktiske_markedsføringskostnader[Juli])","v":{"v":0,"d":"kr 0.00"}},{"$f":"SUBTOTAL(109,faktiske_markedsføringskostnader[Aug.])","v":{"v":0,"d":"kr 0.00"}},{"$f":"SUBTOTAL(109,faktiske_markedsføringskostnader[Sep.])","v":{"v":0,"d":"kr 0.00"}},{"$f":"SUBTOTAL(109,faktiske_markedsføringskostnader[Okt.])","v":{"v":0,"d":"kr 0.00"}},{"$f":"SUBTOTAL(109,faktiske_markedsføringskostnader[Nov.])","v":{"v":0,"d":"kr 0.00"}},{"$f":"SUBTOTAL(109,faktiske_markedsføringskostnader[Des.])","v":{"v":0,"d":"kr 0.00"}},{"$f":"SUBTOTAL(109,faktiske_markedsføringskostnader[ÅR])","v":{"v":33159,"d":"kr 33,159.00"}}]
[]
["Skriv inn opplærings- og reisekostnader i tabellen for faktiske opplærings- og reisekostnader som starter i cellen til høyre. Neste instruksjon finnes i celle A35.","Opplæring og reise","Jan.","Feb.","Mars","April","Mai","Juni","Juli","Aug.","Sep.","Okt.","Nov.","Des.","ÅR"]
[null,"Kurs",{"v":1600,"d":"kr 1,600.00"},{"v":2400,"d":"kr 2,400.00"},{"v":1400,"d":"kr 1,400.00"},{"v":1600,"d":"kr 1,600.00"},{"v":1200,"d":"kr 1,200.00"},{"v":2800,"d":"kr 2,800.00"},{"$nulls":6},{"$f":"SUM(C31:N31)","v":{"v":11000,"d":"kr 11,000.00"}}]
[null,"Reisekostnader knyttet til opplæring",{"v":1200,"d":"kr 1,200.00"},{"v":2200,"d":"kr 2,200.00"},{"v":1400,"d":"kr 1,400.00"},{"v":1200,"d":"kr 1,200.00"},{"v":800,"d":"kr 800.00"},{"v":3500,"d":"kr 3,500.00"},{"$nulls":6},{"$f":"SUM(C32:N32)","v":{"v":10300,"d":"kr 10,300.00"}}]
[null,"Delsum",{"$f":"SUBTOTAL(109,faktiske_opplærings_og_reisekostnader[Jan.])","v":{"v":2800,"d":"kr 2,800.00"}},{"$f":"SUBTOTAL(109,faktiske_opplærings_og_reisekostnader[Feb.])","v":{"v":4600,"d":"kr 4,600.00"}},{"$f":"SUBTOTAL(109,faktiske_opplærings_og_reisekostnader[Mars])","v":{"v":2800,"d":"kr 2,800.00"}},{"$f":"SUBTOTAL(109,faktiske_opplærings_og_reisekostnader[April])","v":{"v":2800,"d":"kr 2,800.00"}},{"$f":"SUBTOTAL(109,faktiske_opplærings_og_reisekostnader[Mai])","v":{"v":2000,"d":"kr 2,000.00"}},{"$f":"SUBTOTAL(109,faktiske_opplærings_og_reisekostnader[Juni])","v":{"v":6300,"d":"kr 6,300.00"}},{"$f":"SUBTOTAL(109,faktiske_opplærings_og_reisekostnader[Juli])","v":{"v":0,"d":"kr 0.00"}},{"$f":"SUBTOTAL(109,faktiske_opplærings_og_reisekostnader[Aug.])","v":{"v":0,"d":"kr 0.00"}},{"$f":"SUBTOTAL(109,faktiske_opplærings_og_reisekostnader[Sep.])","v":{"v":0,"d":"kr 0.00"}},{"$f":"SUBTOTAL(109,faktiske_opplærings_og_reisekostnader[Okt.])","v":{"v":0,"d":"kr 0.00"}},{"$f":"SUBTOTAL(109,faktiske_opplærings_og_reisekostnader[Nov.])","v":{"v":0,"d":"kr 0.00"}},{"$f":"SUBTOTAL(109,faktiske_opplærings_og_reisekostnader[Des.])","v":{"v":0,"d":"kr 0.00"}},{"$f":"SUBTOTAL(109,faktiske_opplærings_og_reisekostnader[ÅR])","v":{"v":21300,"d":"kr 21,300.00"}}]
[]
["Totalsum faktiske utgifter beregnes automatisk i tabellen for faktisk totalsum som starter i cellen til høyre.","Totalsum planlagte utgifter","Jan.","Feb.","Mars","April","Mai","Juni","Juli","Aug.","Sep.","Okt.","Nov.","Des.","År"]
[null,"Månedlige faktiske utgifter",{"$f":"faktiske_opplærings_og_reisekostnader[[#Totals],[Jan.]]+faktiske_markedsføringskostnader[[#Totals],[Jan.]]+faktiske_kontorkostnader[[#Totals],[Jan.]]+faktiske_ansattekostnader[[#Totals],[Jan.]]","v":{"v":129682,"d":"kr 129,682.00"}},{"$f":"faktiske_opplærings_og_reisekostnader[[#Totals],[Feb.]]+faktiske_markedsføringskostnader[[#Totals],[Feb.]]+faktiske_kontorkostnader[[#Totals],[Feb.]]+faktiske_ansattekostnader[[#Totals],[Feb.]]","v":{"v":127804,"d":"kr 127,804.00"}},{"$f":"faktiske_opplærings_og_reisekostnader[[#Totals],[Mars]]+faktiske_markedsføringskostnader[[#Totals],[Mars]]+faktiske_kontorkostnader[[#Totals],[Mars]]+faktiske_ansattekostnader[[#Totals],[Mars]]","v":{"v":125565,"d":"kr 125,565.00"}},{"$f":"faktiske_opplærings_og_reisekostnader[[#Totals],[April]]+faktiske_markedsføringskostnader[[#Totals],[April]]+faktiske_kontorkostnader[[#Totals],[April]]+faktiske_ansattekostnader[[#Totals],[April]]","v":{"v":137394,"d":"kr 137,394.00"}},{"$f":"faktiske_opplærings_og_reisekostnader[[#Totals],[Mai]]+faktiske_markedsføringskostnader[[#Totals],[Mai]]+faktiske_kontorkostnader[[#Totals],[Mai]]+faktiske_ansattekostnader[[#Totals],[Mai]]","v":{"v":128255,"d":"kr 128,255.00"}},{"$f":"faktiske_opplærings_og_reisekostnader[[#Totals],[Juni]]+faktiske_markedsføringskostnader[[#Totals],[Juni]]+faktiske_kontorkostnader[[#Totals],[Juni]]+faktiske_ansattekostnader[[#Totals],[Juni]]","v":{"v":134239,"d":"kr 134,239.00"}},{"$f":"faktiske_opplærings_og_reisekostnader[[#Totals],[Juli]]+faktiske_markedsføringskostnader[[#Totals],[Juli]]+faktiske_kontorkostnader[[#Totals],[Juli]]+faktiske_ansattekostnader[[#Totals],[Juli]]","v":{"v":0,"d":"kr 0.00"}},{"$f":"faktiske_opplærings_og_reisekostnader[[#Totals],[Aug.]]+faktiske_markedsføringskostnader[[#Totals],[Aug.]]+faktiske_kontorkostnader[[#Totals],[Aug.]]+faktiske_ansattekostnader[[#Totals],[Aug.]]","v":{"v":0,"d":"kr 0.00"}},{"$f":"faktiske_opplærings_og_reisekostnader[[#Totals],[Sep.]]+faktiske_markedsføringskostnader[[#Totals],[Sep.]]+faktiske_kontorkostnader[[#Totals],[Sep.]]+faktiske_ansattekostnader[[#Totals],[Sep.]]","v":{"v":0,"d":"kr 0.00"}},{"$f":"faktiske_opplærings_og_reisekostnader[[#Totals],[Okt.]]+faktiske_markedsføringskostnader[[#Totals],[Okt.]]+faktiske_kontorkostnader[[#Totals],[Okt.]]+faktiske_ansattekostnader[[#Totals],[Okt.]]","v":{"v":0,"d":"kr 0.00"}},{"$f":"faktiske_opplærings_og_reisekostnader[[#Totals],[Nov.]]+faktiske_markedsføringskostnader[[#Totals],[Nov.]]+faktiske_kontorkostnader[[#Totals],[Nov.]]+faktiske_ansattekostnader[[#Totals],[Nov.]]","v":{"v":0,"d":"kr 0.00"}},{"$f":"faktiske_opplærings_og_reisekostnader[[#Totals],[Des.]]+faktiske_markedsføringskostnader[[#Totals],[Des.]]+faktiske_kontorkostnader[[#Totals],[Des.]]+faktiske_ansattekostnader[[#Totals],[Des.]]","v":{"v":0,"d":"kr 0.00"}},{"$f":"faktiske_opplærings_og_reisekostnader[[#Totals],[ÅR]]+faktiske_markedsføringskostnader[[#Totals],[ÅR]]+faktiske_kontorkostnader[[#Totals],[ÅR]]+faktiske_ansattekostnader[[#Totals],[ÅR]]","v":{"v":782939,"d":"kr 782,939.00"}}]
[null,"Totalsum faktiske utgifter",{"$f":"SUM($C$36:C36)","v":{"v":129682,"d":"kr 129,682.00"}},{"$f":"SUM($C$36:D36)","v":{"v":257486,"d":"kr 257,486.00"}},{"$f":"SUM($C$36:E36)","v":{"v":383051,"d":"kr 383,051.00"}},{"$f":"SUM($C$36:F36)","v":{"v":520445,"d":"kr 520,445.00"}},{"$f":"SUM($C$36:G36)","v":{"v":648700,"d":"kr 648,700.00"}},{"$f":"SUM($C$36:H36)","v":{"v":782939,"d":"kr 782,939.00"}},{"$f":"SUM($C$36:I36)","v":{"v":782939,"d":"kr 782,939.00"}},{"$f":"SUM($C$36:J36)","v":{"v":782939,"d":"kr 782,939.00"}},{"$f":"SUM($C$36:K36)","v":{"v":782939,"d":"kr 782,939.00"}},{"$f":"SUM($C$36:L36)","v":{"v":782939,"d":"kr 782,939.00"}},{"$f":"SUM($C$36:M36)","v":{"v":782939,"d":"kr 782,939.00"}},{"$f":"SUM($C$36:N36)","v":{"v":782939,"d":"kr 782,939.00"}}]

{"sheet":"UTGIFTSAVVIK","index":3,"n_rows":37,"n_cols":16,"rows_kept":37,"merged":[[1,1,2,3],[1,10,1,12],[1,13,2,14],[2,10,2,12],[8,1,8,2],[19,1,19,2],[28,1,28,2],[33,1,33,2]]}
["Utgiftsavvik beregnes automatisk for ansattekostnader, kontorkostnader, markedsføringskostnader og opplærings- eller reisekostnader i de respektive tabellene i dette regnearket. Du finner nyttige instruksjoner om hvordan du bruker dette regnearket i cellene i denne kolonnen. Trykk på PIL NED for å komme i gang.",{"$nulls":14}," "]
["Firmanavn oppdateres automatisk i cellen til høyre. Tittelen på dette regnearket finnes i celle K2. Legg inn logo i celle N2.",{"$f":"'PLANLAGTE UTGIFTER'!B2:D3","v":"Firmanavn"},{"$nulls":8},{"$f":"regneark_tittel","v":"Detaljerte kostnadsestimater"},null,null,"Det er en plassholder for logo i denne cellen."]
["Tips vises i celle K3.",{"$nulls":9},"Skyggelagte celler er beregninger."]
["Etikett for utgiftsavvik er i cellen til høyre, måneder i celle C4 til N4 og etikett for år i O4.","UTGIFTSAVVIK","JAN.","FEB.","MARS","APRIL","MAI","JUNI","JULI","AUG.","SEP.","OKT.","NOV.","DES.","ÅR"]
["Avvik i ansattekostnader beregnes automatisk i tabellen for ansatteavvik som starter i cellen til høyre. Neste instruksjon finnes i celle A10.","Ansattekostnader","Jan.","Feb.","Mars","April","Mai","Juni","Juli","Aug.","Sep.","Okt.","Nov.","Des.","ÅR"]
[null,"Lønn",{"$f":"INDEX(planlagte_ansattekostnader[],MATCH(INDEX(ansatteavvik[],ROW()-ROW(ansatteavvik[[#Headers],[Jan.]]),1),INDEX(planlagte_ansattekostnader[],,1),0),MATCH(ansatteavvik[[#Headers],[Jan.]],planlagte_ansattekostnader[#Headers],0))-INDEX(faktiske_ansattekostnader[],MATCH(INDEX(ansatteavvik[],ROW()-ROW(ansatteavvik[[#Headers],[Jan.]]),1),INDEX(planlagte_ansattekostnader[],,1),0),MATCH(ansatteavvik[[#Headers],[Jan.]],faktiske_ansattekostnader[#Headers],0))","v":{"v":0,"d":"kr 0.00"}},{"$f":"INDEX(planlagte_ansattekostnader[],MATCH(INDEX(ansatteavvik[],ROW()-ROW(ansatteavvik[[#Headers],[Feb.]]),1),INDEX(planlagte_ansattekostnader[],,1),0),MATCH(ansatteavvik[[#Headers],[Feb.]],planlagte_ansattekostnader[#Headers],0))-INDEX(faktiske_ansattekostnader[],MATCH(INDEX(ansatteavvik[],ROW()-ROW(ansatteavvik[[#Headers],[Feb.]]),1),INDEX(planlagte_ansattekostnader[],,1),0),MATCH(ansatteavvik[[#Headers],[Feb.]],faktiske_ansattekostnader[#Headers],0))","v":{"v":0,"d":"kr 0.00"}},{"$f":"INDEX(planlagte_ansattekostnader[],MATCH(INDEX(ansatteavvik[],ROW()-ROW(ansatteavvik[[#Headers],[Mars]]),1),INDEX(planlagte_ansattekostnader[],,1),0),MATCH(ansatteavvik[[#Headers],[Mars]],planlagte_ansattekostnader[#Headers],0))-INDEX(faktiske_ansattekostnader[],MATCH(INDEX(ansatteavvik[],ROW()-ROW(ansatteavvik[[#Headers],[Mars]]),1),INDEX(planlagte_ansattekostnader[],,1),0),MATCH(ansatteavvik[[#Headers],[Mars]],faktiske_ansattekostnader[#Headers],0))","v":{"v":0,"d":"kr 0.00"}},{"$f":"INDEX(planlagte_ansattekostnader[],MATCH(INDEX(ansatteavvik[],ROW()-ROW(ansatteavvik[[#Headers],[April]]),1),INDEX(planlagte_ansattekostnader[],,1),0),MATCH(ansatteavvik[[#Headers],[April]],planlagte_ansattekostnader[#Headers],0))-INDEX(faktiske_ansattekostnader[],MATCH(INDEX(ansatteavvik[],ROW()-ROW(ansatteavvik[[#Headers],[April]]),1),INDEX(planlagte_ansattekostnader[],,1),0),MATCH(ansatteavvik[[#Headers],[April]],faktiske_ansattekostnader[#Headers],0))","v":{"v":-500,"d":"-kr 500.00"}},{"$f":"INDEX(planlagte_ansattekostnader[],MATCH(INDEX(ansatteavvik[],ROW()-ROW(ansatteavvik[[#Headers],[Mai]]),1),INDEX(planlagte_ansattekostnader[],,1),0),MATCH(ansatteavvik[[#Headers],[Mai]],planlagte_ansattekostnader[#Headers],0))-INDEX(faktiske_ansattekostnader[],MATCH(INDEX(ansatteavvik[],ROW()-ROW(ansatteavvik[[#Headers],[Mai]]),1),INDEX(planlagte_ansattekostnader[],,1),0),MATCH(ansatteavvik[[#Headers],[Mai]],faktiske_ansattekostnader[#Headers],0))","v":{"v":-500,"d":"-kr 500.00"}},{"$f":"INDEX(planlagte_ansattekostnader[],MATCH(INDEX(ansatteavvik[],ROW()-ROW(ansatteavvik[[#Headers],[Juni]]),1),INDEX(planlagte_ansattekostnader[],,1),0),MATCH(ansatteavvik[[#Headers],[Juni]],planlagte_ansattekostnader[#Headers],0))-INDEX(faktiske_ansattekostnader[],MATCH(INDEX(ansatteavvik[],ROW()-ROW(ansatteavvik[[#Headers],[Juni]]),1),INDEX(planlagte_ansattekostnader[],,1),0),MATCH(ansatteavvik[[#Headers],[Juni]],faktiske_ansattekostnader[#Headers],0))","v":{"v":-500,"d":"-kr 500.00"}},{"$f":"INDEX(planlagte_ansattekostnader[],MATCH(INDEX(ansatteavvik[],ROW()-ROW(ansatteavvik[[#Headers],[Juli]]),1),INDEX(planlagte_ansattekostnader[],,1),0),MATCH(ansatteavvik[[#Headers],[Juli]],planlagte_ansattekostnader[#Headers],0))-INDEX(faktiske_ansattekostnader[],MATCH(INDEX(ansatteavvik[],ROW()-ROW(ansatteavvik[[#Headers],[Juli]]),1),INDEX(planlagte_ansattekostnader[],,1),0),MATCH(ansatteavvik[[#Headers],[Juli]],faktiske_ansattekostnader[#Headers],0))","v":{"v":87500,"d":"kr 87,500.00"}},{"$f":"INDEX(planlagte_ansattekostnader[],MATCH(INDEX(ansatteavvik[],ROW()-ROW(ansatteavvik[[#Headers],[Aug.]]),1),INDEX(planlagte_ansattekostnader[],,1),0),MATCH(ansatteavvik[[#Headers],[Aug.]],planlagte_ansattekostnader[#Headers],0))-INDEX(faktiske_ansattekostnader[],MATCH(INDEX(ansatteavvik[],ROW()-ROW(ansatteavvik[[#Headers],[Aug.]]),1),INDEX(planlagte_ansattekostnader[],,1),0),MATCH(ansatteavvik[[#Headers],[Aug.]],faktiske_ansattekostnader[#Headers],0))","v":{"v":92400,"d":"kr 92,400.00"}},{"$f":"INDEX(planlagte_ansattekostnader[],MATCH(INDEX(ansatteavvik[],ROW()-ROW(ansatteavvik[[#Headers],[Sep.]]),1),INDEX(planlagte_ansattekostnader[],,1),0),MATCH(ansatteavvik[[#Headers],[Sep.]],planlagte_ansattekostnader[#Headers],0))-INDEX(faktiske_ansattekostnader[],MATCH(INDEX(ansatteavvik[],ROW()-ROW(ansatteavvik[[#Headers],[Sep.]]),1),INDEX(planlagte_ansattekostnader[],,1),0),MATCH(ansatteavvik[[#Headers],[Sep.]],faktiske_ansattekostnader[#Headers],0))","v":{"v":92400,"d":"kr 92,400.00"}},{"$f":"INDEX(planlagte_ansattekostnader[],MATCH(INDEX(ansatteavvik[],ROW()-ROW(ansatteavvik[[#Headers],[Okt.]]),1),INDEX(planlagte_ansattekostnader[],,1),0),MATCH(ansatteavvik[[#Headers],[Okt.]],planlagte_ansattekostnader[#Headers],0))-INDEX(faktiske_ansattekostnader[],MATCH(INDEX(ansatteavvik[],ROW()-ROW(ansatteavvik[[#Headers],[Okt.]]),1),INDEX(planlagte_ansattekostnader[],,1),0),MATCH(ansatteavvik[[#Headers],[Okt.]],faktiske_ansattekostnader[#Headers],0))","v":{"v":92400,"d":"kr 92,400.00"}},{"$f":"INDEX(planlagte_ansattekostnader[],MATCH(INDEX(ansatteavvik[],ROW()-ROW(ansatteavvik[[#Headers],[Nov.]]),1),INDEX(planlagte_ansattekostnader[],,1),0),MATCH(ansatteavvik[[#Headers],[Nov.]],planlagte_ansattekostnader[#Headers],0))-INDEX(faktiske_ansattekostnader[],MATCH(INDEX(ansatteavvik[],ROW()-ROW(ansatteavvik[[#Headers],[Nov.]]),1),INDEX(planlagte_ansattekostnader[],,1),0),MATCH(ansatteavvik[[#Headers],[Nov.]],faktiske_ansattekostnader[#Headers],0))","v":{"v":92400,"d":"kr 92,400.00"}},{"$f":"INDEX(planlagte_ansattekostnader[],MATCH(INDEX(ansatteavvik[],ROW()-ROW(ansatteavvik[[#Headers],[Des.]]),1),INDEX(planlagte_ansattekostnader[],,1),0),MATCH(ansatteavvik[[#Headers],[Des.]],planlagte_ansattekostnader[#Headers],0))-INDEX(faktiske_ansattekostnader[],MATCH(INDEX(ansatteavvik[],ROW()-ROW(ansatteavvik[[#Headers],[Des.]]),1),INDEX(planlagte_ansattekostnader[],,1),0),MATCH(ansatteavvik[[#Headers],[Des.]],faktiske_ansattekostnader[#Headers],0))","v":{"v":92400,"d":"kr 92,400.00"}},{"$f":"SUM(ansatteavvik[[#This Row],[Jan.]:[Des.]])","v":{"v":548000,"d":"kr 548,000.00"}}]
[null,"Aktiva",{"$f":"INDEX(planlagte_ansattekostnader[],MATCH(INDEX(ansatteavvik[],ROW()-ROW(ansatteavvik[[#Headers],[Jan.]]),1),INDEX(planlagte_ansattekostnader[],,1),0),MATCH(ansatteavvik[[#Headers],[Jan.]],planlagte_ansattekostnader[#Headers],0))-INDEX(faktiske_ansattekostnader[],MATCH(INDEX(ansatteavvik[],ROW()-ROW(ansatteavvik[[#Headers],[Jan.]]),1),INDEX(planlagte_ansattekostnader[],,1),0),MATCH(ansatteavvik[[#Headers],[Jan.]],faktiske_ansattekostnader[#Headers],0))","v":{"v":0,"d":"kr 0.00"}},{"$f":"INDEX(planlagte_ansattekostnader[],MATCH(INDEX(ansatteavvik[],ROW()-ROW(ansatteavvik[[#Headers],[Feb.]]),1),INDEX(planlagte_ansattekostnader[],,1),0),MATCH(ansatteavvik[[#Headers],[Feb.]],planlagte_ansattekostnader[#Headers],0))-INDEX(faktiske_ansattekostnader[],MATCH(INDEX(ansatteavvik[],ROW()-ROW(ansatteavvik[[#Headers],[Feb.]]),1),INDEX(planlagte_ansattekostnader[],,1),0),MATCH(ansatteavvik[[#Headers],[Feb.]],faktiske_ansattekostnader[#Headers],0))","v":{"v":0,"d":"kr 0.00"}},{"$f":"INDEX(planlagte_ansattekostnader[],MATCH(INDEX(ansatteavvik[],ROW()-ROW(ansatteavvik[[#Headers],[Mars]]),1),INDEX(planlagte_ansattekostnader[],,1),0),MATCH(ansatteavvik[[#Headers],[Mars]],planlagte_ansattekostnader[#Headers],0))-INDEX(faktiske_ansattekostnader[],MATCH(INDEX(ansatteavvik[],ROW()-ROW(ansatteavvik[[#Headers],[Mars]]),1),INDEX(planlagte_ansattekostnader[],,1),0),MATCH(ansatteavvik[[#Headers],[Mars]],faktiske_ansattekostnader[#Headers],0))","v":{"v":0,"d":"kr 0.00"}},{"$f":"INDEX(planlagte_ansattekostnader[],MATCH(INDEX(ansatteavvik[],ROW()-ROW(ansatteavvik[[#Headers],[April]]),1),INDEX(planlagte_ansattekostnader[],,1),0),MATCH(ansatteavvik[[#Headers],[April]],planlagte_ansattekostnader[#Headers],0))-INDEX(faktiske_ansattekostnader[],MATCH(INDEX(ansatteavvik[],ROW()-ROW(ansatteavvik[[#Headers],[April]]),1),INDEX(planlagte_ansattekostnader[],,1),0),MATCH(ansatteavvik[[#Headers],[April]],faktiske_ansattekostnader[#Headers],0))","v":{"v":-135,"d":"-kr 135.00"}},{"$f":"INDEX(planlagte_ansattekostnader[],MATCH(INDEX(ansatteavvik[],ROW()-ROW(ansatteavvik[[#Headers],[Mai]]),1),INDEX(planlagte_ansattekostnader[],,1),0),MATCH(ansatteavvik[[#Headers],[Mai]],planlagte_ansattekostnader[#Headers],0))-INDEX(faktiske_ansattekostnader[],MATCH(INDEX(ansatteavvik[],ROW()-ROW(ansatteavvik[[#Headers],[Mai]]),1),INDEX(planlagte_ansattekostnader[],,1),0),MATCH(ansatteavvik[[#Headers],[Mai]],faktiske_ansattekostnader[#Headers],0))","v":{"v":-135,"d":"-kr 135.00"}},{"$f":"INDEX(planlagte_ansattekostnader[],MATCH(INDEX(ansatteavvik[],ROW()-ROW(ansatteavvik[[#Headers],[Juni]]),1),INDEX(planlagte_ansattekostnader[],,1),0),MATCH(ansatteavvik[[#Headers],[Juni]],planlagte_ansattekostnader[#Headers],0))-INDEX(faktiske_ansattekostnader[],MATCH(INDEX(ansatteavvik[],ROW()-ROW(ansatteavvik[[#Headers],[Juni]]),1),INDEX(planlagte_ansattekostnader[],,1),0),MATCH(ansatteavvik[[#Headers],[Juni]],faktiske_ansattekostnader[#Headers],0))","v":{"v":-135,"d":"-kr 135.00"}},{"$f":"INDEX(planlagte_ansattekostnader[],MATCH(INDEX(ansatteavvik[],ROW()-ROW(ansatteavvik[[#Headers],[Juli]]),1),INDEX(planlagte_ansattekostnader[],,1),0),MATCH(ansatteavvik[[#Headers],[Juli]],planlagte_ansattekostnader[#Headers],0))-INDEX(faktiske_ansattekostnader[],MATCH(INDEX(ansatteavvik[],ROW()-ROW(ansatteavvik[[#Headers],[Juli]]),1),INDEX(planlagte_ansattekostnader[],,1),0),MATCH(ansatteavvik[[#Headers],[Juli]],faktiske_ansattekostnader[#Headers],0))","v":{"v":23625,"d":"kr 23,625.00"}},{"$f":"INDEX(planlagte_ansattekostnader[],MATCH(INDEX(ansatteavvik[],ROW()-ROW(ansatteavvik[[#Headers],[Aug.]]),1),INDEX(planlagte_ansattekostnader[],,1),0),MATCH(ansatteavvik[[#Headers],[Aug.]],planlagte_ansattekostnader[#Headers],0))-INDEX(faktiske_ansattekostnader[],MATCH(INDEX(ansatteavvik[],ROW()-ROW(ansatteavvik[[#Headers],[Aug.]]),1),INDEX(planlagte_ansattekostnader[],,1),0),MATCH(ansatteavvik[[#Headers],[Aug.]],faktiske_ansattekostnader[#Headers],0))","v":{"v":24948,"d":"kr 24,948.00"}},{"$f":"INDEX(planlagte_ansattekostnader[],MATCH(INDEX(ansatteavvik[],ROW()-ROW(ansatteavvik[[#Headers],[Sep.]]),1),INDEX(planlagte_ansattekostnader[],,1),0),MATCH(ansatteavvik[[#Headers],[Sep.]],planlagte_ansattekostnader[#Headers],0))-INDEX(faktiske_ansattekostnader[],MATCH(INDEX(ansatteavvik[],ROW()-ROW(ansatteavvik[[#Headers],[Sep.]]),1),INDEX(planlagte_ansattekostnader[],,1),0),MATCH(ansatteavvik[[#Headers],[Sep.]],faktiske_ansattekostnader[#Headers],0))","v":{"v":24948,"d":"kr 24,948.00"}},{"$f":"INDEX(planlagte_ansattekostnader[],MATCH(INDEX(ansatteavvik[],ROW()-ROW(ansatteavvik[[#Headers],[Okt.]]),1),INDEX(planlagte_ansattekostnader[],,1),0),MATCH(ansatteavvik[[#Headers],[Okt.]],planlagte_ansattekostnader[#Headers],0))-INDEX(faktiske_ansattekostnader[],MATCH(INDEX(ansatteavvik[],ROW()-ROW(ansatteavvik[[#Headers],[Okt.]]),1),INDEX(planlagte_ansattekostnader[],,1),0),MATCH(ansatteavvik[[#Headers],[Okt.]],faktiske_ansattekostnader[#Headers],0))","v":{"v":24948,"d":"kr 24,948.00"}},{"$f":"INDEX(planlagte_ansattekostnader[],MATCH(INDEX(ansatteavvik[],ROW()-ROW(ansatteavvik[[#Headers],[Nov.]]),1),INDEX(planlagte_ansattekostnader[],,1),0),MATCH(ansatteavvik[[#Headers],[Nov.]],planlagte_ansattekostnader[#Headers],0))-INDEX(faktiske_ansattekostnader[],MATCH(INDEX(ansatteavvik[],ROW()-ROW(ansatteavvik[[#Headers],[Nov.]]),1),INDEX(planlagte_ansattekostnader[],,1),0),MATCH(ansatteavvik[[#Headers],[Nov.]],faktiske_ansattekostnader[#Headers],0))","v":{"v":24948,"d":"kr 24,948.00"}},{"$f":"INDEX(planlagte_ansattekostnader[],MATCH(INDEX(ansatteavvik[],ROW()-ROW(ansatteavvik[[#Headers],[Des.]]),1),INDEX(planlagte_ansattekostnader[],,1),0),MATCH(ansatteavvik[[#Headers],[Des.]],planlagte_ansattekostnader[#Headers],0))-INDEX(faktiske_ansattekostnader[],MATCH(INDEX(ansatteavvik[],ROW()-ROW(ansatteavvik[[#Headers],[Des.]]),1),INDEX(planlagte_ansattekostnader[],,1),0),MATCH(ansatteavvik[[#Headers],[Des.]],faktiske_ansattekostnader[#Headers],0))","v":{"v":24948,"d":"kr 24,948.00"}},{"$f":"SUM(ansatteavvik[[#This Row],[Jan.]:[Des.]])","v":{"v":147960,"d":"kr 147,960.00"}}]
[null,"Delsum",{"$f":"SUBTOTAL(109,ansatteavvik[Jan.])","v":{"v":0,"d":"kr 0.00"}},{"$f":"SUBTOTAL(109,ansatteavvik[Feb.])","v":{"v":0,"d":"kr 0.00"}},{"$f":"SUBTOTAL(109,ansatteavvik[Mars])","v":{"v":0,"d":"kr 0.00"}},{"$f":"SUBTOTAL(109,ansatteavvik[April])","v":{"v":-635,"d":"-kr 635.00"}},{"$f":"SUBTOTAL(109,ansatteavvik[Mai])","v":{"v":-635,"d":"-kr 635.00"}},{"$f":"SUBTOTAL(109,ansatteavvik[Juni])","v":{"v":-635,"d":"-kr 635.00"}},{"$f":"SUBTOTAL(109,ansatteavvik[Juli])","v":{"v":111125,"d":"kr 111,125.00"}},{"$f":"SUBTOTAL(109,ansatteavvik[Aug.])","v":{"v":117348,"d":"kr 117,348.00"}},{"$f":"SUBTOTAL(109,ansatteavvik[Sep.])","v":{"v":117348,"d":"kr 117,348.00"}},{"$f":"SUBTOTAL(109,ansatteavvik[Okt.])","v":{"v":117348,"d":"kr 117,348.00"}},{"$f":"SUBTOTAL(109,ansatteavvik[Nov.])","v":{"v":117348,"d":"kr 117,348.00"}},{"$f":"SUBTOTAL(109,ansatteavvik[Des.])","v":{"v":117348,"d":"kr 117,348.00"}},{"$f":"SUBTOTAL(109,ansatteavvik[ÅR])","v":{"v":695960,"d":"kr 695,960.00"}}]
[]
["Avvik i kontorkostnader beregnes automatisk i tabellen for kontoravvik som starter i cellen til høyre. Neste instruksjon finnes i celle A21.","Kontorkostnader","Jan.","Feb.","Mars","April","Mai","Juni","Juli","Aug.","Sep.","Okt.","Nov.","Des.","ÅR"]
[null,"Kontorleie",{"$f":"INDEX(planlagte_kontorkostnader[],MATCH(INDEX(kontoravvik[],ROW()-ROW(kontoravvik[[#Headers],[Jan.]]),1),INDEX(planlagte_kontorkostnader[],,1),0),MATCH(kontoravvik[[#Headers],[Jan.]],planlagte_kontorkostnader[#Headers],0))-INDEX(faktiske_kontorkostnader[],MATCH(INDEX(kontoravvik[],ROW()-ROW(kontoravvik[[#Headers],[Jan.]]),1),INDEX(planlagte_kontorkostnader[],,1),0),MATCH(kontoravvik[[#Headers],[Jan.]],faktiske_kontorkostnader[#Headers],0))","v":{"v":0,"d":"kr 0.00"}},{"$f":"INDEX(planlagte_kontorkostnader[],MATCH(INDEX(kontoravvik[],ROW()-ROW(kontoravvik[[#Headers],[Feb.]]),1),INDEX(planlagte_kontorkostnader[],,1),0),MATCH(kontoravvik[[#Headers],[Feb.]],planlagte_kontorkostnader[#Headers],0))-INDEX(faktiske_kontorkostnader[],MATCH(INDEX(kontoravvik[],ROW()-ROW(kontoravvik[[#Headers],[Feb.]]),1),INDEX(planlagte_kontorkostnader[],,1),0),MATCH(kontoravvik[[#Headers],[Feb.]],faktiske_kontorkostnader[#Headers],0))","v":{"v":0,"d":"kr 0.00"}},{"$f":"INDEX(planlagte_kontorkostnader[],MATCH(INDEX(kontoravvik[],ROW()-ROW(kontoravvik[[#Headers],[Mars]]),1),INDEX(planlagte_kontorkostnader[],,1),0),MATCH(kontoravvik[[#Headers],[Mars]],planlagte_kontorkostnader[#Headers],0))-INDEX(faktiske_kontorkostnader[],MATCH(INDEX(kontoravvik[],ROW()-ROW(kontoravvik[[#Headers],[Mars]]),1),INDEX(planlagte_kontorkostnader[],,1),0),MATCH(kontoravvik[[#Headers],[Mars]],faktiske_kontorkostnader[#Headers],0))","v":{"v":0,"d":"kr 0.00"}},{"$f":"INDEX(planlagte_kontorkostnader[],MATCH(INDEX(kontoravvik[],ROW()-ROW(kontoravvik[[#Headers],[April]]),1),INDEX(planlagte_kontorkostnader[],,1),0),MATCH(kontoravvik[[#Headers],[April]],planlagte_kontorkostnader[#Headers],0))-INDEX(faktiske_kontorkostnader[],MATCH(INDEX(kontoravvik[],ROW()-ROW(kontoravvik[[#Headers],[April]]),1),INDEX(planlagte_kontorkostnader[],,1),0),MATCH(kontoravvik[[#Headers],[April]],faktiske_kontorkostnader[#Headers],0))","v":{"v":0,"d":"kr 0.00"}},{"$f":"INDEX(planlagte_kontorkostnader[],MATCH(INDEX(kontoravvik[],ROW()-ROW(kontoravvik[[#Headers],[Mai]]),1),INDEX(planlagte_kontorkostnader[],,1),0),MATCH(kontoravvik[[#Headers],[Mai]],planlagte_kontorkostnader[#Headers],0))-INDEX(faktiske_kontorkostnader[],MATCH(INDEX(kontoravvik[],ROW()-ROW(kontoravvik[[#Headers],[Mai]]),1),INDEX(planlagte_kontorkostnader[],,1),0),MATCH(kontoravvik[[#Headers],[Mai]],faktiske_kontorkostnader[#Headers],0))","v":{"v":0,"d":"kr 0.00"}},{"$f":"INDEX(planlagte_kontorkostnader[],MATCH(INDEX(kontoravvik[],ROW()-ROW(kontoravvik[[#Headers],[Juni]]),1),INDEX(planlagte_kontorkostnader[],,1),0),MATCH(kontoravvik[[#Headers],[Juni]],planlagte_kontorkostnader[#Headers],0))-INDEX(faktiske_kontorkostnader[],MATCH(INDEX(kontoravvik[],ROW()-ROW(kontoravvik[[#Headers],[Juni]]),1),INDEX(planlagte_kontorkostnader[],,1),0),MATCH(kontoravvik[[#Headers],[Juni]],faktiske_kontorkostnader[#Headers],0))","v":{"v":0,"d":"kr 0.00"}},{"$f":"INDEX(planlagte_kontorkostnader[],MATCH(INDEX(kontoravvik[],ROW()-ROW(kontoravvik[[#Headers],[Juli]]),1),INDEX(planlagte_kontorkostnader[],,1),0),MATCH(kontoravvik[[#Headers],[Juli]],planlagte_kontorkostnader[#Headers],0))-INDEX(faktiske_kontorkostnader[],MATCH(INDEX(kontoravvik[],ROW()-ROW(kontoravvik[[#Headers],[Juli]]),1),INDEX(planlagte_kontorkostnader[],,1),0),MATCH(kontoravvik[[#Headers],[Juli]],faktiske_kontorkostnader[#Headers],0))","v":{"v":9800,"d":"kr 9,800.00"}},{"$f":"INDEX(planlagte_kontorkostnader[],MATCH(INDEX(kontoravvik[],ROW()-ROW(kontoravvik[[#Headers],[Aug.]]),1),INDEX(planlagte_kontorkostnader[],,1),0),MATCH(kontoravvik[[#Headers],[Aug.]],planlagte_kontorkostnader[#Headers],0))-INDEX(faktiske_kontorkostnader[],MATCH(INDEX(kontoravvik[],ROW()-ROW(kontoravvik[[#Headers],[Aug.]]),1),INDEX(planlagte_kontorkostnader[],,1),0),MATCH(kontoravvik[[#Headers],[Aug.]],faktiske_kontorkostnader[#Headers],0))","v":{"v":9800,"d":"kr 9,800.00"}},{"$f":"INDEX(planlagte_kontorkostnader[],MATCH(INDEX(kontoravvik[],ROW()-ROW(kontoravvik[[#Headers],[Sep.]]),1),INDEX(planlagte_kontorkostnader[],,1),0),MATCH(kontoravvik[[#Headers],[Sep.]],planlagte_kontorkostnader[#Headers],0))-INDEX(faktiske_kontorkostnader[],MATCH(INDEX(kontoravvik[],ROW()-ROW(kontoravvik[[#Headers],[Sep.]]),1),INDEX(planlagte_kontorkostnader[],,1),0),MATCH(kontoravvik[[#Headers],[Sep.]],faktiske_kontorkostnader[#Headers],0))","v":{"v":9800,"d":"kr 9,800.00"}},{"$f":"INDEX(planlagte_kontorkostnader[],MATCH(INDEX(kontoravvik[],ROW()-ROW(kontoravvik[[#Headers],[Okt.]]),1),INDEX(planlagte_kontorkostnader[],,1),0),MATCH(kontoravvik[[#Headers],[Okt.]],planlagte_kontorkostnader[#Headers],0))-INDEX(faktiske_kontorkostnader[],MATCH(INDEX(kontoravvik[],ROW()-ROW(kontoravvik[[#Headers],[Okt.]]),1),INDEX(planlagte_kontorkostnader[],,1),0),MATCH(kontoravvik[[#Headers],[Okt.]],faktiske_kontorkostnader[#Headers],0))","v":{"v":9800,"d":"kr 9,800.00"}},{"$f":"INDEX(planlagte_kontorkostnader[],MATCH(INDEX(kontoravvik[],ROW()-ROW(kontoravvik[[#Headers],[Nov.]]),1),INDEX(planlagte_kontorkostnader[],,1),0),MATCH(kontoravvik[[#Headers],[Nov.]],planlagte_kontorkostnader[#Headers],0))-INDEX(faktiske_kontorkostnader[],MATCH(INDEX(kontoravvik[],ROW()-ROW(kontoravvik[[#Headers],[Nov.]]),1),INDEX(planlagte_kontorkostnader[],,1),0),MATCH(kontoravvik[[#Headers],[Nov.]],faktiske_kontorkostnader[#Headers],0))","v":{"v":9800,"d":"kr 9,800.00"}},{"$f":"INDEX(planlagte_kontorkostnader[],MATCH(INDEX(kontoravvik[],ROW()-ROW(kontoravvik[[#Headers],[Des.]]),1),INDEX(planlagte_kontorkostnader[],,1),0),MATCH(kontoravvik[[#Headers],[Des.]],planlagte_kontorkostnader[#Headers],0))-INDEX(faktiske_kontorkostnader[],MATCH(INDEX(kontoravvik[],ROW()-ROW(kontoravvik[[#Headers],[Des.]]),1),INDEX(planlagte_kontorkostnader[],,1),0),MATCH(kontoravvik[[#Headers],[Des.]],faktiske_kontorkostnader[#Headers],0))","v":{"v":9800,"d":"kr 9,800.00"}},{"$f":"SUM(kontoravvik[[#This Row],[Jan.]:[Des.]])","v":{"v":58800,"d":"kr 58,800.00"}}]
[null,"Gass",{"$f":"INDEX(planlagte_kontorkostnader[],MATCH(INDEX(kontoravvik[],ROW()-ROW(kontoravvik[[#Headers],[Jan.]]),1),INDEX(planlagte_kontorkostnader[],,1),0),MATCH(kontoravvik[[#Headers],[Jan.]],planlagte_kontorkostnader[#Headers],0))-INDEX(faktiske_kontorkostnader[],MATCH(INDEX(kontoravvik[],ROW()-ROW(kontoravvik[[#Headers],[Jan.]]),1),INDEX(planlagte_kontorkostnader[],,1),0),MATCH(kontoravvik[[#Headers],[Jan.]],faktiske_kontorkostnader[#Headers],0))","v":{"v":-4,"d":"-kr 4.00"}},{"$f":"INDEX(planlagte_kontorkostnader[],MATCH(INDEX(kontoravvik[],ROW()-ROW(kontoravvik[[#Headers],[Feb.]]),1),INDEX(planlagte_kontorkostnader[],,1),0),MATCH(kontoravvik[[#Headers],[Feb.]],planlagte_kontorkostnader[#Headers],0))-INDEX(faktiske_kontorkostnader[],MATCH(INDEX(kontoravvik[],ROW()-ROW(kontoravvik[[#Headers],[Feb.]]),1),INDEX(planlagte_kontorkostnader[],,1),0),MATCH(kontoravvik[[#Headers],[Feb.]],faktiske_kontorkostnader[#Headers],0))","v":{"v":-30,"d":"-kr 30.00"}},{"$f":"INDEX(planlagte_kontorkostnader[],MATCH(INDEX(kontoravvik[],ROW()-ROW(kontoravvik[[#Headers],[Mars]]),1),INDEX(planlagte_kontorkostnader[],,1),0),MATCH(kontoravvik[[#Headers],[Mars]],planlagte_kontorkostnader[#Headers],0))-INDEX(faktiske_kontorkostnader[],MATCH(INDEX(kontoravvik[],ROW()-ROW(kontoravvik[[#Headers],[Mars]]),1),INDEX(planlagte_kontorkostnader[],,1),0),MATCH(kontoravvik[[#Headers],[Mars]],faktiske_kontorkostnader[#Headers],0))","v":{"v":15,"d":"kr 15.00"}},{"$f":"INDEX(planlagte_kontorkostnader[],MATCH(INDEX(kontoravvik[],ROW()-ROW(kontoravvik[[#Headers],[April]]),1),INDEX(planlagte_kontorkostnader[],,1),0),MATCH(kontoravvik[[#Headers],[April]],planlagte_kontorkostnader[#Headers],0))-INDEX(faktiske_kontorkostnader[],MATCH(INDEX(kontoravvik[],ROW()-ROW(kontoravvik[[#Headers],[April]]),1),INDEX(planlagte_kontorkostnader[],,1),0),MATCH(kontoravvik[[#Headers],[April]],faktiske_kontorkostnader[#Headers],0))","v":{"v":-130,"d":"-kr 130.00"}},{"$f":"INDEX(planlagte_kontorkostnader[],MATCH(INDEX(kontoravvik[],ROW()-ROW(kontoravvik[[#Headers],[Mai]]),1),INDEX(planlagte_kontorkostnader[],,1),0),MATCH(kontoravvik[[#Headers],[Mai]],planlagte_kontorkostnader[#Headers],0))-INDEX(faktiske_kontorkostnader[],MATCH(INDEX(kontoravvik[],ROW()-ROW(kontoravvik[[#Headers],[Mai]]),1),INDEX(planlagte_kontorkostnader[],,1),0),MATCH(kontoravvik[[#Headers],[Mai]],faktiske_kontorkostnader[#Headers],0))","v":{"v":13,"d":"kr 13.00"}},{"$f":"INDEX(planlagte_kontorkostnader[],MATCH(INDEX(kontoravvik[],ROW()-ROW(kontoravvik[[#Headers],[Juni]]),1),INDEX(planlagte_kontorkostnader[],,1),0),MATCH(kontoravvik[[#Headers],[Juni]],planlagte_kontorkostnader[#Headers],0))-INDEX(faktiske_kontorkostnader[],MATCH(INDEX(kontoravvik[],ROW()-ROW(kontoravvik[[#Headers],[Juni]]),1),INDEX(planlagte_kontorkostnader[],,1),0),MATCH(kontoravvik[[#Headers],[Juni]],faktiske_kontorkostnader[#Headers],0))","v":{"v":12,"d":"kr 12.00"}},{"$f":"INDEX(planlagte_kontorkostnader[],MATCH(INDEX(kontoravvik[],ROW()-ROW(kontoravvik[[#Headers],[Juli]]),1),INDEX(planlagte_kontorkostnader[],,1),0),MATCH(kontoravvik[[#Headers],[Juli]],planlagte_kontorkostnader[#Headers],0))-INDEX(faktiske_kontorkostnader[],MATCH(INDEX(kontoravvik[],ROW()-ROW(kontoravvik[[#Headers],[Juli]]),1),INDEX(planlagte_kontorkostnader[],,1),0),MATCH(kontoravvik[[#Headers],[Juli]],faktiske_kontorkostnader[#Headers],0))","v":{"v":100,"d":"kr 100.00"}},{"$f":"INDEX(planlagte_kontorkostnader[],MATCH(INDEX(kontoravvik[],ROW()-ROW(kontoravvik[[#Headers],[Aug.]]),1),INDEX(planlagte_kontorkostnader[],,1),0),MATCH(kontoravvik[[#Headers],[Aug.]],planlagte_kontorkostnader[#Headers],0))-INDEX(faktiske_kontorkostnader[],MATCH(INDEX(kontoravvik[],ROW()-ROW(kontoravvik[[#Headers],[Aug.]]),1),INDEX(planlagte_kontorkostnader[],,1),0),MATCH(kontoravvik[[#Headers],[Aug.]],faktiske_kontorkostnader[#Headers],0))","v":{"v":100,"d":"kr 100.00"}},{"$f":"INDEX(planlagte_kontorkostnader[],MATCH(INDEX(kontoravvik[],ROW()-ROW(kontoravvik[[#Headers],[Sep.]]),1),INDEX(planlagte_kontorkostnader[],,1),0),MATCH(kontoravvik[[#Headers],[Sep.]],planlagte_kontorkostnader[#Headers],0))-INDEX(faktiske_kontorkostnader[],MATCH(INDEX(kontoravvik[],ROW()-ROW(kontoravvik[[#Headers],[Sep.]]),1),INDEX(planlagte_kontorkostnader[],,1),0),MATCH(kontoravvik[[#Headers],[Sep.]],faktiske_kontorkostnader[#Headers],0))","v":{"v":100,"d":"kr 100.00"}},{"$f":"INDEX(planlagte_kontorkostnader[],MATCH(INDEX(kontoravvik[],ROW()-ROW(kontoravvik[[#Headers],[Okt.]]),1),INDEX(planlagte_kontorkostnader[],,1),0),MATCH(kontoravvik[[#Headers],[Okt.]],planlagte_kontorkostnader[#Headers],0))-INDEX(faktiske_kontorkostnader[],MATCH(INDEX(kontoravvik[],ROW()-ROW(kontoravvik[[#Headers],[Okt.]]),1),INDEX(planlagte_kontorkostnader[],,1),0),MATCH(kontoravvik[[#Headers],[Okt.]],faktiske_kontorkostnader[#Headers],0))","v":{"v":100,"d":"kr 100.00"}},{"$f":"INDEX(planlagte_kontorkostnader[],MATCH(INDEX(kontoravvik[],ROW()-ROW(kontoravvik[[#Headers],[Nov.]]),1),INDEX(planlagte_kontorkostnader[],,1),0),MATCH(kontoravvik[[#Headers],[Nov.]],planlagte_kontorkostnader[#Headers],0))-INDEX(faktiske_kontorkostnader[],MATCH(INDEX(kontoravvik[],ROW()-ROW(kontoravvik[[#Headers],[Nov.]]),1),INDEX(planlagte_kontorkostnader[],,1),0),MATCH(kontoravvik[[#Headers],[Nov.]],faktiske_kontorkostnader[#Headers],0))","v":{"v":400,"d":"kr 400.00"}},{"$f":"INDEX(planlagte_kontorkostnader[],MATCH(INDEX(kontoravvik[],ROW()-ROW(kontoravvik[[#Headers],[Des.]]),1),INDEX(planlagte_kontorkostnader[],,1),0),MATCH(kontoravvik[[#Headers],[Des.]],planlagte_kontorkostnader[#Headers],0))-INDEX(faktiske_kontorkostnader[],MATCH(INDEX(kontoravvik[],ROW()-ROW(kontoravvik[[#Headers],[Des.]]),1),INDEX(planlagte_kontorkostnader[],,1),0),MATCH(kontoravvik[[#Headers],[Des.]],faktiske_kontorkostnader[#Headers],0))","v":{"v":400,"d":"kr 400.00"}},{"$f":"SUM(kontoravvik[[#This Row],[Jan.]:[Des.]])","v":{"v":1076,"d":"kr 1,076.00"}}]
[null,"Strøm",{"$f":"INDEX(planlagte_kontorkostnader[],MATCH(INDEX(kontoravvik[],ROW()-ROW(kontoravvik[[#Headers],[Jan.]]),1),INDEX(planlagte_kontorkostnader[],,1),0),MATCH(kontoravvik[[#Headers],[Jan.]],planlagte_kontorkostnader[#Headers],0))-INDEX(faktiske_kontorkostnader[],MATCH(INDEX(kontoravvik[],ROW()-ROW(kontoravvik[[#Headers],[Jan.]]),1),INDEX(planlagte_kontorkostnader[],,1),0),MATCH(kontoravvik[[#Headers],[Jan.]],faktiske_kontorkostnader[#Headers],0))","v":{"v":12,"d":"kr 12.00"}},{"$f":"INDEX(planlagte_kontorkostnader[],MATCH(INDEX(kontoravvik[],ROW()-ROW(kontoravvik[[#Headers],[Feb.]]),1),INDEX(planlagte_kontorkostnader[],,1),0),MATCH(kontoravvik[[#Headers],[Feb.]],planlagte_kontorkostnader[#Headers],0))-INDEX(faktiske_kontorkostnader[],MATCH(INDEX(kontoravvik[],ROW()-ROW(kontoravvik[[#Headers],[Feb.]]),1),INDEX(planlagte_kontorkostnader[],,1),0),MATCH(kontoravvik[[#Headers],[Feb.]],faktiske_kontorkostnader[#Headers],0))","v":{"v":22,"d":"kr 22.00"}},{"$f":"INDEX(planlagte_kontorkostnader[],MATCH(INDEX(kontoravvik[],ROW()-ROW(kontoravvik[[#Headers],[Mars]]),1),INDEX(planlagte_kontorkostnader[],,1),0),MATCH(kontoravvik[[#Headers],[Mars]],planlagte_kontorkostnader[#Headers],0))-INDEX(faktiske_kontorkostnader[],MATCH(INDEX(kontoravvik[],ROW()-ROW(kontoravvik[[#Headers],[Mars]]),1),INDEX(planlagte_kontorkostnader[],,1),0),MATCH(kontoravvik[[#Headers],[Mars]],faktiske_kontorkostnader[#Headers],0))","v":{"v":32,"d":"kr 32.00"}},{"$f":"INDEX(planlagte_kontorkostnader[],MATCH(INDEX(kontoravvik[],ROW()-ROW(kontoravvik[[#Headers],[April]]),1),INDEX(planlagte_kontorkostnader[],,1),0),MATCH(kontoravvik[[#Headers],[April]],planlagte_kontorkostnader[#Headers],0))-INDEX(faktiske_kontorkostnader[],MATCH(INDEX(kontoravvik[],ROW()-ROW(kontoravvik[[#Headers],[April]]),1),INDEX(planlagte_kontorkostnader[],,1),0),MATCH(kontoravvik[[#Headers],[April]],faktiske_kontorkostnader[#Headers],0))","v":{"v":1,"d":"kr 1.00"}},{"$f":"INDEX(planlagte_kontorkostnader[],MATCH(INDEX(kontoravvik[],ROW()-ROW(kontoravvik[[#Headers],[Mai]]),1),INDEX(planlagte_kontorkostnader[],,1),0),MATCH(kontoravvik[[#Headers],[Mai]],planlagte_kontorkostnader[#Headers],0))-INDEX(faktiske_kontorkostnader[],MATCH(INDEX(kontoravvik[],ROW()-ROW(kontoravvik[[#Headers],[Mai]]),1),INDEX(planlagte_kontorkostnader[],,1),0),MATCH(kontoravvik[[#Headers],[Mai]],faktiske_kontorkostnader[#Headers],0))","v":{"v":-6,"d":"-kr 6.00"}},{"$f":"INDEX(planlagte_kontorkostnader[],MATCH(INDEX(kontoravvik[],ROW()-ROW(kontoravvik[[#Headers],[Juni]]),1),INDEX(planlagte_kontorkostnader[],,1),0),MATCH(kontoravvik[[#Headers],[Juni]],planlagte_kontorkostnader[#Headers],0))-INDEX(faktiske_kontorkostnader[],MATCH(INDEX(kontoravvik[],ROW()-ROW(kontoravvik[[#Headers],[Juni]]),1),INDEX(planlagte_kontorkostnader[],,1),0),MATCH(kontoravvik[[#Headers],[Juni]],faktiske_kontorkostnader[#Headers],0))","v":{"v":10,"d":"kr 10.00"}},{"$f":"INDEX(planlagte_kontorkostnader[],MATCH(INDEX(kontoravvik[],ROW()-ROW(kontoravvik[[#Headers],[Juli]]),1),INDEX(planlagte_kontorkostnader[],,1),0),MATCH(kontoravvik[[#Headers],[Juli]],planlagte_kontorkostnader[#Headers],0))-INDEX(faktiske_kontorkostnader[],MATCH(INDEX(kontoravvik[],ROW()-ROW(kontoravvik[[#Headers],[Juli]]),1),INDEX(planlagte_kontorkostnader[],,1),0),MATCH(kontoravvik[[#Headers],[Juli]],faktiske_kontorkostnader[#Headers],0))","v":{"v":300,"d":"kr 300.00"}},{"$f":"INDEX(planlagte_kontorkostnader[],MATCH(INDEX(kontoravvik[],ROW()-ROW(kontoravvik[[#Headers],[Aug.]]),1),INDEX(planlagte_kontorkostnader[],,1),0),MATCH(kontoravvik[[#Headers],[Aug.]],planlagte_kontorkostnader[#Headers],0))-INDEX(faktiske_kontorkostnader[],MATCH(INDEX(kontoravvik[],ROW()-ROW(kontoravvik[[#Headers],[Aug.]]),1),INDEX(planlagte_kontorkostnader[],,1),0),MATCH(kontoravvik[[#Headers],[Aug.]],faktiske_kontorkostnader[#Headers],0))","v":{"v":300,"d":"kr 300.00"}},{"$f":"INDEX(planlagte_kontorkostnader[],MATCH(INDEX(kontoravvik[],ROW()-ROW(kontoravvik[[#Headers],[Sep.]]),1),INDEX(planlagte_kontorkostnader[],,1),0),MATCH(kontoravvik[[#Headers],[Sep.]],planlagte_kontorkostnader[#Headers],0))-INDEX(faktiske_kontorkostnader[],MATCH(INDEX(kontoravvik[],ROW()-ROW(kontoravvik[[#Headers],[Sep.]]),1),INDEX(planlagte_kontorkostnader[],,1),0),MATCH(kontoravvik[[#Headers],[Sep.]],faktiske_kontorkostnader[#Headers],0))","v":{"v":300,"d":"kr 300.00"}},{"$f":"INDEX(planlagte_kontorkostnader[],MATCH(INDEX(kontoravvik[],ROW()-ROW(kontoravvik[[#Headers],[Okt.]]),1),INDEX(planlagte_kontorkostnader[],,1),0),MATCH(kontoravvik[[#Headers],[Okt.]],planlagte_kontorkostnader[#Headers],0))-INDEX(faktiske_kontorkostnader[],MATCH(INDEX(kontoravvik[],ROW()-ROW(kontoravvik[[#Headers],[Okt.]]),1),INDEX(planlagte_kontorkostnader[],,1),0),MATCH(kontoravvik[[#Headers],[Okt.]],faktiske_kontorkostnader[#Headers],0))","v":{"v":300,"d":"kr 300.00"}},{"$f":"INDEX(planlagte_kontorkostnader[],MATCH(INDEX(kontoravvik[],ROW()-ROW(kontoravvik[[#Headers],[Nov.]]),1),INDEX(planlagte_kontorkostnader[],,1),0),MATCH(kontoravvik[[#Headers],[Nov.]],planlagte_kontorkostnader[#Headers],0))-INDEX(faktiske_kontorkostnader[],MATCH(INDEX(kontoravvik[],ROW()-ROW(kontoravvik[[#Headers],[Nov.]]),1),INDEX(planlagte_kontorkostnader[],,1),0),MATCH(kontoravvik[[#Headers],[Nov.]],faktiske_kontorkostnader[#Headers],0))","v":{"v":300,"d":"kr 300.00"}},{"$f":"INDEX(planlagte_kontorkostnader[],MATCH(INDEX(kontoravvik[],ROW()-ROW(kontoravvik[[#Headers],[Des.]]),1),INDEX(planlagte_kontorkostnader[],,1),0),MATCH(kontoravvik[[#Headers],[Des.]],planlagte_kontorkostnader[#Headers],0))-INDEX(faktiske_kontorkostnader[],MATCH(INDEX(kontoravvik[],ROW()-ROW(kontoravvik[[#Headers],[Des.]]),1),INDEX(planlagte_kontorkostnader[],,1),0),MATCH(kontoravvik[[#Headers],[Des.]],faktiske_kontorkostnader[#Headers],0))","v":{"v":300,"d":"kr 300.00"}},{"$f":"SUM(kontoravvik[[#This Row],[Jan.]:[Des.]])","v":{"v":1871,"d":"kr 1,871.00"}}]
[null,"Vann",{"$f":"INDEX(planlagte_kontorkostnader[],MATCH(INDEX(kontoravvik[],ROW()-ROW(kontoravvik[[#Headers],[Jan.]]),1),INDEX(planlagte_kontorkostnader[],,1),0),MATCH(kontoravvik[[#Headers],[Jan.]],planlagte_kontorkostnader[#Headers],0))-INDEX(faktiske_kontorkostnader[],MATCH(INDEX(kontoravvik[],ROW()-ROW(kontoravvik[[#Headers],[Jan.]]),1),INDEX(planlagte_kontorkostnader[],,1),0),MATCH(kontoravvik[[#Headers],[Jan.]],faktiske_kontorkostnader[#Headers],0))","v":{"v":5,"d":"kr 5.00"}},{"$f":"INDEX(planlagte_kontorkostnader[],MATCH(INDEX(kontoravvik[],ROW()-ROW(kontoravvik[[#Headers],[Feb.]]),1),INDEX(planlagte_kontorkostnader[],,1),0),MATCH(kontoravvik[[#Headers],[Feb.]],planlagte_kontorkostnader[#Headers],0))-INDEX(faktiske_kontorkostnader[],MATCH(INDEX(kontoravvik[],ROW()-ROW(kontoravvik[[#Headers],[Feb.]]),1),INDEX(planlagte_kontorkostnader[],,1),0),MATCH(kontoravvik[[#Headers],[Feb.]],faktiske_kontorkostnader[#Headers],0))","v":{"v":7,"d":"kr 7.00"}},{"$f":"INDEX(planlagte_kontorkostnader[],MATCH(INDEX(kontoravvik[],ROW()-ROW(kontoravvik[[#Headers],[Mars]]),1),INDEX(planlagte_kontorkostnader[],,1),0),MATCH(kontoravvik[[#Headers],[Mars]],planlagte_kontorkostnader[#Headers],0))-INDEX(faktiske_kontorkostnader[],MATCH(INDEX(kontoravvik[],ROW()-ROW(kontoravvik[[#Headers],[Mars]]),1),INDEX(planlagte_kontorkostnader[],,1),0),MATCH(kontoravvik[[#Headers],[Mars]],faktiske_kontorkostnader[#Headers],0))","v":{"v":6,"d":"kr 6.00"}},{"$f":"INDEX(planlagte_kontorkostnader[],MATCH(INDEX(kontoravvik[],ROW()-ROW(kontoravvik[[#Headers],[April]]),1),INDEX(planlagte_kontorkostnader[],,1),0),MATCH(kontoravvik[[#Headers],[April]],planlagte_kontorkostnader[#Headers],0))-INDEX(faktiske_kontorkostnader[],MATCH(INDEX(kontoravvik[],ROW()-ROW(kontoravvik[[#Headers],[April]]),1),INDEX(planlagte_kontorkostnader[],,1),0),MATCH(kontoravvik[[#Headers],[April]],faktiske_kontorkostnader[#Headers],0))","v":{"v":4,"d":"kr 4.00"}},{"$f":"INDEX(planlagte_kontorkostnader[],MATCH(INDEX(kontoravvik[],ROW()-ROW(kontoravvik[[#Headers],[Mai]]),1),INDEX(planlagte_kontorkostnader[],,1),0),MATCH(kontoravvik[[#Headers],[Mai]],planlagte_kontorkostnader[#Headers],0))-INDEX(faktiske_kontorkostnader[],MATCH(INDEX(kontoravvik[],ROW()-ROW(kontoravvik[[#Headers],[Mai]]),1),INDEX(planlagte_kontorkostnader[],,1),0),MATCH(kontoravvik[[#Headers],[Mai]],faktiske_kontorkostnader[#Headers],0))","v":{"v":6,"d":"kr 6.00"}},{"$f":"INDEX(planlagte_kontorkostnader[],MATCH(INDEX(kontoravvik[],ROW()-ROW(kontoravvik[[#Headers],[Juni]]),1),INDEX(planlagte_kontorkostnader[],,1),0),MATCH(kontoravvik[[#Headers],[Juni]],planlagte_kontorkostnader[#Headers],0))-INDEX(faktiske_kontorkostnader[],MATCH(INDEX(kontoravvik[],ROW()-ROW(kontoravvik[[#Headers],[Juni]]),1),INDEX(planlagte_kontorkostnader[],,1),0),MATCH(kontoravvik[[#Headers],[Juni]],faktiske_kontorkostnader[#Headers],0))","v":{"v":4,"d":"kr 4.00"}},{"$f":"INDEX(planlagte_kontorkostnader[],MATCH(INDEX(kontoravvik[],ROW()-ROW(kontoravvik[[#Headers],[Juli]]),1),INDEX(planlagte_kontorkostnader[],,1),0),MATCH(kontoravvik[[#Headers],[Juli]],planlagte_kontorkostnader[#Headers],0))-INDEX(faktiske_kontorkostnader[],MATCH(INDEX(kontoravvik[],ROW()-ROW(kontoravvik[[#Headers],[Juli]]),1),INDEX(planlagte_kontorkostnader[],,1),0),MATCH(kontoravvik[[#Headers],[Juli]],faktiske_kontorkostnader[#Headers],0))","v":{"v":40,"d":"kr 40.00"}},{"$f":"INDEX(planlagte_kontorkostnader[],MATCH(INDEX(kontoravvik[],ROW()-ROW(kontoravvik[[#Headers],[Aug.]]),1),INDEX(planlagte_kontorkostnader[],,1),0),MATCH(kontoravvik[[#Headers],[Aug.]],planlagte_kontorkostnader[#Headers],0))-INDEX(faktiske_kontorkostnader[],MATCH(INDEX(kontoravvik[],ROW()-ROW(kontoravvik[[#Headers],[Aug.]]),1),INDEX(planlagte_kontorkostnader[],,1),0),MATCH(kontoravvik[[#Headers],[Aug.]],faktiske_kontorkostnader[#Headers],0))","v":{"v":40,"d":"kr 40.00"}},{"$f":"INDEX(planlagte_kontorkostnader[],MATCH(INDEX(kontoravvik[],ROW()-ROW(kontoravvik[[#Headers],[Sep.]]),1),INDEX(planlagte_kontorkostnader[],,1),0),MATCH(kontoravvik[[#Headers],[Sep.]],planlagte_kontorkostnader[#Headers],0))-INDEX(faktiske_kontorkostnader[],MATCH(INDEX(kontoravvik[],ROW()-ROW(kontoravvik[[#Headers],[Sep.]]),1),INDEX(planlagte_kontorkostnader[],,1),0),MATCH(kontoravvik[[#Headers],[Sep.]],faktiske_kontorkostnader[#Headers],0))","v":{"v":40,"d":"kr 40.00"}},{"$f":"INDEX(planlagte_kontorkostnader[],MATCH(INDEX(kontoravvik[],ROW()-ROW(kontoravvik[[#Headers],[Okt.]]),1),INDEX(planlagte_kontorkostnader[],,1),0),MATCH(kontoravvik[[#Headers],[Okt.]],planlagte_kontorkostnader[#Headers],0))-INDEX(faktiske_kontorkostnader[],MATCH(INDEX(kontoravvik[],ROW()-ROW(kontoravvik[[#Headers],[Okt.]]),1),INDEX(planlagte_kontorkostnader[],,1),0),MATCH(kontoravvik[[#Headers],[Okt.]],faktiske_kontorkostnader[#Headers],0))","v":{"v":40,"d":"kr 40.00"}},{"$f":"INDEX(planlagte_kontorkostnader[],MATCH(INDEX(kontoravvik[],ROW()-ROW(kontoravvik[[#Headers],[Nov.]]),1),INDEX(planlagte_kontorkostnader[],,1),0),MATCH(kontoravvik[[#Headers],[Nov.]],planlagte_kontorkostnader[#Headers],0))-INDEX(faktiske_kontorkostnader[],MATCH(INDEX(kontoravvik[],ROW()-ROW(kontoravvik[[#Headers],[Nov.]]),1),INDEX(planlagte_kontorkostnader[],,1),0),MATCH(kontoravvik[[#Headers],[Nov.]],faktiske_kontorkostnader[#Headers],0))","v":{"v":40,"d":"kr 40.00"}},{"$f":"INDEX(planlagte_kontorkostnader[],MATCH(INDEX(kontoravvik[],ROW()-ROW(kontoravvik[[#Headers],[Des.]]),1),INDEX(planlagte_kontorkostnader[],,1),0),MATCH(kontoravvik[[#Headers],[Des.]],planlagte_kontorkostnader[#Headers],0))-INDEX(faktiske_kontorkostnader[],MATCH(INDEX(kontoravvik[],ROW()-ROW(kontoravvik[[#Headers],[Des.]]),1),INDEX(planlagte_kontorkostnader[],,1),0),MATCH(kontoravvik[[#Headers],[Des.]],faktiske_kontorkostnader[#Headers],0))","v":{"v":40,"d":"kr 40.00"}},{"$f":"SUM(kontoravvik[[#This Row],[Jan.]:[Des.]])","v":{"v":272,"d":"kr 272.00"}}]
[null,"Telefon",{"$f":"INDEX(planlagte_kontorkostnader[],MATCH(INDEX(kontoravvik[],ROW()-ROW(kontoravvik[[#Headers],[Jan.]]),1),INDEX(planlagte_kontorkostnader[],,1),0),MATCH(kontoravvik[[#Headers],[Jan.]],planlagte_kontorkostnader[#Headers],0))-INDEX(faktiske_kontorkostnader[],MATCH(INDEX(kontoravvik[],ROW()-ROW(kontoravvik[[#Headers],[Jan.]]),1),INDEX(planlagte_kontorkostnader[],,1),0),MATCH(kontoravvik[[#Headers],[Jan.]],faktiske_kontorkostnader[#Headers],0))","v":{"v":26,"d":"kr 26.00"}},{"$f":"INDEX(planlagte_kontorkostnader[],MATCH(INDEX(kontoravvik[],ROW()-ROW(kontoravvik[[#Headers],[Feb.]]),1),INDEX(planlagte_kontorkostnader[],,1),0),MATCH(kontoravvik[[#Headers],[Feb.]],planlagte_kontorkostnader[#Headers],0))-INDEX(faktiske_kontorkostnader[],MATCH(INDEX(kontoravvik[],ROW()-ROW(kontoravvik[[#Headers],[Feb.]]),1),INDEX(planlagte_kontorkostnader[],,1),0),MATCH(kontoravvik[[#Headers],[Feb.]],faktiske_kontorkostnader[#Headers],0))","v":{"v":15,"d":"kr 15.00"}},{"$f":"INDEX(planlagte_kontorkostnader[],MATCH(INDEX(kontoravvik[],ROW()-ROW(kontoravvik[[#Headers],[Mars]]),1),INDEX(planlagte_kontorkostnader[],,1),0),MATCH(kontoravvik[[#Headers],[Mars]],planlagte_kontorkostnader[#Headers],0))-INDEX(faktiske_kontorkostnader[],MATCH(INDEX(kontoravvik[],ROW()-ROW(kontoravvik[[#Headers],[Mars]]),1),INDEX(planlagte_kontorkostnader[],,1),0),MATCH(kontoravvik[[#Headers],[Mars]],faktiske_kontorkostnader[#Headers],0))","v":{"v":-15,"d":"-kr 15.00"}},{"$f":"INDEX(planlagte_kontorkostnader[],MATCH(INDEX(kontoravvik[],ROW()-ROW(kontoravvik[[#Headers],[April]]),1),INDEX(planlagte_kontorkostnader[],,1),0),MATCH(kontoravvik[[#Headers],[April]],planlagte_kontorkostnader[#Headers],0))-INDEX(faktiske_kontorkostnader[],MATCH(INDEX(kontoravvik[],ROW()-ROW(kontoravvik[[#Headers],[April]]),1),INDEX(planlagte_kontorkostnader[],,1),0),MATCH(kontoravvik[[#Headers],[April]],faktiske_kontorkostnader[#Headers],0))","v":{"v":5,"d":"kr 5.00"}},{"$f":"INDEX(planlagte_kontorkostnader[],MATCH(INDEX(kontoravvik[],ROW()-ROW(kontoravvik[[#Headers],[Mai]]),1),INDEX(planlagte_kontorkostnader[],,1),0),MATCH(kontoravvik[[#Headers],[Mai]],planlagte_kontorkostnader[#Headers],0))-INDEX(faktiske_kontorkostnader[],MATCH(INDEX(kontoravvik[],ROW()-ROW(kontoravvik[[#Headers],[Mai]]),1),INDEX(planlagte_kontorkostnader[],,1),0),MATCH(kontoravvik[[#Headers],[Mai]],faktiske_kontorkostnader[#Headers],0))","v":{"v":5,"d":"kr 5.00"}},{"$f":"INDEX(planlagte_kontorkostnader[],MATCH(INDEX(kontoravvik[],ROW()-ROW(kontoravvik[[#Headers],[Juni]]),1),INDEX(planlagte_kontorkostnader[],,1),0),MATCH(kontoravvik[[#Headers],[Juni]],planlagte_kontorkostnader[#Headers],0))-INDEX(faktiske_kontorkostnader[],MATCH(INDEX(kontoravvik[],ROW()-ROW(kontoravvik[[#Headers],[Juni]]),1),INDEX(planlagte_kontorkostnader[],,1),0),MATCH(kontoravvik[[#Headers],[Juni]],faktiske_kontorkostnader[#Headers],0))","v":{"v":30,"d":"kr 30.00"}},{"$f":"INDEX(planlagte_kontorkostnader[],MATCH(INDEX(kontoravvik[],ROW()-ROW(kontoravvik[[#Headers],[Juli]]),1),INDEX(planlagte_kontorkostnader[],,1),0),MATCH(kontoravvik[[#Headers],[Juli]],planlagte_kontorkostnader[#Headers],0))-INDEX(faktiske_kontorkostnader[],MATCH(INDEX(kontoravvik[],ROW()-ROW(kontoravvik[[#Headers],[Juli]]),1),INDEX(planlagte_kontorkostnader[],,1),0),MATCH(kontoravvik[[#Headers],[Juli]],faktiske_kontorkostnader[#Headers],0))","v":{"v":250,"d":"kr 250.00"}},{"$f":"INDEX(planlagte_kontorkostnader[],MATCH(INDEX(kontoravvik[],ROW()-ROW(kontoravvik[[#Headers],[Aug.]]),1),INDEX(planlagte_kontorkostnader[],,1),0),MATCH(kontoravvik[[#Headers],[Aug.]],planlagte_kontorkostnader[#Headers],0))-INDEX(faktiske_kontorkostnader[],MATCH(INDEX(kontoravvik[],ROW()-ROW(kontoravvik[[#Headers],[Aug.]]),1),INDEX(planlagte_kontorkostnader[],,1),0),MATCH(kontoravvik[[#Headers],[Aug.]],faktiske_kontorkostnader[#Headers],0))","v":{"v":250,"d":"kr 250.00"}},{"$f":"INDEX(planlagte_kontorkostnader[],MATCH(INDEX(kontoravvik[],ROW()-ROW(kontoravvik[[#Headers],[Sep.]]),1),INDEX(planlagte_kontorkostnader[],,1),0),MATCH(kontoravvik[[#Headers],[Sep.]],planlagte_kontorkostnader[#Headers],0))-INDEX(faktiske_kontorkostnader[],MATCH(INDEX(kontoravvik[],ROW()-ROW(kontoravvik[[#Headers],[Sep.]]),1),INDEX(planlagte_kontorkostnader[],,1),0),MATCH(kontoravvik[[#Headers],[Sep.]],faktiske_kontorkostnader[#Headers],0))","v":{"v":250,"d":"kr 250.00"}},{"$f":"INDEX(planlagte_kontorkostnader[],MATCH(INDEX(kontoravvik[],ROW()-ROW(kontoravvik[[#Headers],[Okt.]]),1),INDEX(planlagte_kontorkostnader[],,1),0),MATCH(kontoravvik[[#Headers],[Okt.]],planlagte_kontorkostnader[#Headers],0))-INDEX(faktiske_kontorkostnader[],MATCH(INDEX(kontoravvik[],ROW()-ROW(kontoravvik[[#Headers],[Okt.]]),1),INDEX(planlagte_kontorkostnader[],,1),0),MATCH(kontoravvik[[#Headers],[Okt.]],faktiske_kontorkostnader[#Headers],0))","v":{"v":250,"d":"kr 250.00"}},{"$f":"INDEX(planlagte_kontorkostnader[],MATCH(INDEX(kontoravvik[],ROW()-ROW(kontoravvik[[#Headers],[Nov.]]),1),INDEX(planlagte_kontorkostnader[],,1),0),MATCH(kontoravvik[[#Headers],[Nov.]],planlagte_kontorkostnader[#Headers],0))-INDEX(faktiske_kontorkostnader[],MATCH(INDEX(kontoravvik[],ROW()-ROW(kontoravvik[[#Headers],[Nov.]]),1),INDEX(planlagte_kontorkostnader[],,1),0),MATCH(kontoravvik[[#Headers],[Nov.]],faktiske_kontorkostnader[#Headers],0))","v":{"v":250,"d":"kr 250.00"}},{"$f":"INDEX(planlagte_kontorkostnader[],MATCH(INDEX(kontoravvik[],ROW()-ROW(kontoravvik[[#Headers],[Des.]]),1),INDEX(planlagte_kontorkostnader[],,1),0),MATCH(kontoravvik[[#Headers],[Des.]],planlagte_kontorkostnader[#Headers],0))-INDEX(faktiske_kontorkostnader[],MATCH(INDEX(kontoravvik[],ROW()-ROW(kontoravvik[[#Headers],[Des.]]),1),INDEX(planlagte_kontorkostnader[],,1),0),MATCH(kontoravvik[[#Headers],[Des.]],faktiske_kontorkostnader[#Headers],0))","v":{"v":250,"d":"kr 250.00"}},{"$f":"SUM(kontoravvik[[#This Row],[Jan.]:[Des.]])","v":{"v":1566,"d":"kr 1,566.00"}}]
[null,"Internett-tilgang",{"$f":"INDEX(planlagte_kontorkostnader[],MATCH(INDEX(kontoravvik[],ROW()-ROW(kontoravvik[[#Headers],[Jan.]]),1),INDEX(planlagte_kontorkostnader[],,1),0),MATCH(kontoravvik[[#Headers],[Jan.]],planlagte_kontorkostnader[#Headers],0))-INDEX(faktiske_kontorkostnader[],MATCH(INDEX(kontoravvik[],ROW()-ROW(kontoravvik[[#Headers],[Jan.]]),1),INDEX(planlagte_kontorkostnader[],,1),0),MATCH(kontoravvik[[#Headers],[Jan.]],faktiske_kontorkostnader[#Headers],0))","v":{"v":0,"d":"kr 0.00"}},{"$f":"INDEX(planlagte_kontorkostnader[],MATCH(INDEX(kontoravvik[],ROW()-ROW(kontoravvik[[#Headers],[Feb.]]),1),INDEX(planlagte_kontorkostnader[],,1),0),MATCH(kontoravvik[[#Headers],[Feb.]],planlagte_kontorkostnader[#Headers],0))-INDEX(faktiske_kontorkostnader[],MATCH(INDEX(kontoravvik[],ROW()-ROW(kontoravvik[[#Headers],[Feb.]]),1),INDEX(planlagte_kontorkostnader[],,1),0),MATCH(kontoravvik[[#Headers],[Feb.]],faktiske_kontorkostnader[#Headers],0))","v":{"v":0,"d":"kr 0.00"}},{"$f":"INDEX(planlagte_kontorkostnader[],MATCH(INDEX(kontoravvik[],ROW()-ROW(kontoravvik[[#Headers],[Mars]]),1),INDEX(planlagte_kontorkostnader[],,1),0),MATCH(kontoravvik[[#Headers],[Mars]],planlagte_kontorkostnader[#Headers],0))-INDEX(faktiske_kontorkostnader[],MATCH(INDEX(kontoravvik[],ROW()-ROW(kontoravvik[[#Headers],[Mars]]),1),INDEX(planlagte_kontorkostnader[],,1),0),MATCH(kontoravvik[[#Headers],[Mars]],faktiske_kontorkostnader[#Headers],0))","v":{"v":0,"d":"kr 0.00"}},{"$f":"INDEX(planlagte_kontorkostnader[],MATCH(INDEX(kontoravvik[],ROW()-ROW(kontoravvik[[#Headers],[April]]),1),INDEX(planlagte_kontorkostnader[],,1),0),MATCH(kontoravvik[[#Headers],[April]],planlagte_kontorkostnader[#Headers],0))-INDEX(faktiske_kontorkostnader[],MATCH(INDEX(kontoravvik[],ROW()-ROW(kontoravvik[[#Headers],[April]]),1),INDEX(planlagte_kontorkostnader[],,1),0),MATCH(kontoravvik[[#Headers],[April]],faktiske_kontorkostnader[#Headers],0))","v":{"v":0,"d":"kr 0.00"}},{"$f":"INDEX(planlagte_kontorkostnader[],MATCH(INDEX(kontoravvik[],ROW()-ROW(kontoravvik[[#Headers],[Mai]]),1),INDEX(planlagte_kontorkostnader[],,1),0),MATCH(kontoravvik[[#Headers],[Mai]],planlagte_kontorkostnader[#Headers],0))-INDEX(faktiske_kontorkostnader[],MATCH(INDEX(kontoravvik[],ROW()-ROW(kontoravvik[[#Headers],[Mai]]),1),INDEX(planlagte_kontorkostnader[],,1),0),MATCH(kontoravvik[[#Headers],[Mai]],faktiske_kontorkostnader[#Headers],0))","v":{"v":0,"d":"kr 0.00"}},{"$f":"INDEX(planlagte_kontorkostnader[],MATCH(INDEX(kontoravvik[],ROW()-ROW(kontoravvik[[#Headers],[Juni]]),1),INDEX(planlagte_kontorkostnader[],,1),0),MATCH(kontoravvik[[#Headers],[Juni]],planlagte_kontorkostnader[#Headers],0))-INDEX(faktiske_kontorkostnader[],MATCH(INDEX(kontoravvik[],ROW()-ROW(kontoravvik[[#Headers],[Juni]]),1),INDEX(planlagte_kontorkostnader[],,1),0),MATCH(kontoravvik[[#Headers],[Juni]],faktiske_kontorkostnader[#Headers],0))","v":{"v":0,"d":"kr 0.00"}},{"$f":"INDEX(planlagte_kontorkostnader[],MATCH(INDEX(kontoravvik[],ROW()-ROW(kontoravvik[[#Headers],[Juli]]),1),INDEX(planlagte_kontorkostnader[],,1),0),MATCH(kontoravvik[[#Headers],[Juli]],planlagte_kontorkostnader[#Headers],0))-INDEX(faktiske_kontorkostnader[],MATCH(INDEX(kontoravvik[],ROW()-ROW(kontoravvik[[#Headers],[Juli]]),1),INDEX(planlagte_kontorkostnader[],,1),0),MATCH(kontoravvik[[#Headers],[Juli]],faktiske_kontorkostnader[#Headers],0))","v":{"v":180,"d":"kr 180.00"}},{"$f":"INDEX(planlagte_kontorkostnader[],MATCH(INDEX(kontoravvik[],ROW()-ROW(kontoravvik[[#Headers],[Aug.]]),1),INDEX(planlagte_kontorkostnader[],,1),0),MATCH(kontoravvik[[#Headers],[Aug.]],planlagte_kontorkostnader[#Headers],0))-INDEX(faktiske_kontorkostnader[],MATCH(INDEX(kontoravvik[],ROW()-ROW(kontoravvik[[#Headers],[Aug.]]),1),INDEX(planlagte_kontorkostnader[],,1),0),MATCH(kontoravvik[[#Headers],[Aug.]],faktiske_kontorkostnader[#Headers],0))","v":{"v":180,"d":"kr 180.00"}},{"$f":"INDEX(planlagte_kontorkostnader[],MATCH(INDEX(kontoravvik[],ROW()-ROW(kontoravvik[[#Headers],[Sep.]]),1),INDEX(planlagte_kontorkostnader[],,1),0),MATCH(kontoravvik[[#Headers],[Sep.]],planlagte_kontorkostnader[#Headers],0))-INDEX(faktiske_kontorkostnader[],MATCH(INDEX(kontoravvik[],ROW()-ROW(kontoravvik[[#Headers],[Sep.]]),1),INDEX(planlagte_kontorkostnader[],,1),0),MATCH(kontoravvik[[#Headers],[Sep.]],faktiske_kontorkostnader[#Headers],0))","v":{"v":180,"d":"kr 180.00"}},{"$f":"INDEX(planlagte_kontorkostnader[],MATCH(INDEX(kontoravvik[],ROW()-ROW(kontoravvik[[#Headers],[Okt.]]),1),INDEX(planlagte_kontorkostnader[],,1),0),MATCH(kontoravvik[[#Headers],[Okt.]],planlagte_kontorkostnader[#Headers],0))-INDEX(faktiske_kontorkostnader[],MATCH(INDEX(kontoravvik[],ROW()-ROW(kontoravvik[[#Headers],[Okt.]]),1),INDEX(planlagte_kontorkostnader[],,1),0),MATCH(kontoravvik[[#Headers],[Okt.]],faktiske_kontorkostnader[#Headers],0))","v":{"v":180,"d":"kr 180.00"}},{"$f":"INDEX(planlagte_kontorkostnader[],MATCH(INDEX(kontoravvik[],ROW()-ROW(kontoravvik[[#Headers],[Nov.]]),1),INDEX(planlagte_kontorkostnader[],,1),0),MATCH(kontoravvik[[#Headers],[Nov.]],planlagte_kontorkostnader[#Headers],0))-INDEX(faktiske_kontorkostnader[],MATCH(INDEX(kontoravvik[],ROW()-ROW(kontoravvik[[#Headers],[Nov.]]),1),INDEX(planlagte_kontorkostnader[],,1),0),MATCH(kontoravvik[[#Headers],[Nov.]],faktiske_kontorkostnader[#Headers],0))","v":{"v":180,"d":"kr 180.00"}},{"$f":"INDEX(planlagte_kontorkostnader[],MATCH(INDEX(kontoravvik[],ROW()-ROW(kontoravvik[[#Headers],[Des.]]),1),INDEX(planlagte_kontorkostnader[],,1),0),MATCH(kontoravvik[[#Headers],[Des.]],planlagte_kontorkostnader[#Headers],0))-INDEX(faktiske_kontorkostnader[],MATCH(INDEX(kontoravvik[],ROW()-ROW(kontoravvik[[#Headers],[Des.]]),1),INDEX(planlagte_kontorkostnader[],,1),0),MATCH(kontoravvik[[#Headers],[Des.]],faktiske_kontorkostnader[#Headers],0))","v":{"v":180,"d":"kr 180.00"}},{"$f":"SUM(kontoravvik[[#This Row],[Jan.]:[Des.]])","v":{"v":1080,"d":"kr 1,080.00"}}]
[null,"Kontorutstyr",{"$f":"INDEX(planlagte_kontorkostnader[],MATCH(INDEX(kontoravvik[],ROW()-ROW(kontoravvik[[#Headers],[Jan.]]),1),INDEX(planlagte_kontorkostnader[],,1),0),MATCH(kontoravvik[[#Headers],[Jan.]],planlagte_kontorkostnader[#Headers],0))-INDEX(faktiske_kontorkostnader[],MATCH(INDEX(kontoravvik[],ROW()-ROW(kontoravvik[[#Headers],[Jan.]]),1),INDEX(planlagte_kontorkostnader[],,1),0),MATCH(kontoravvik[[#Headers],[Jan.]],faktiske_kontorkostnader[#Headers],0))","v":{"v":-56,"d":"-kr 56.00"}},{"$f":"INDEX(planlagte_kontorkostnader[],MATCH(INDEX(kontoravvik[],ROW()-ROW(kontoravvik[[#Headers],[Feb.]]),1),INDEX(planlagte_kontorkostnader[],,1),0),MATCH(kontoravvik[[#Headers],[Feb.]],planlagte_kontorkostnader[#Headers],0))-INDEX(faktiske_kontorkostnader[],MATCH(INDEX(kontoravvik[],ROW()-ROW(kontoravvik[[#Headers],[Feb.]]),1),INDEX(planlagte_kontorkostnader[],,1),0),MATCH(kontoravvik[[#Headers],[Feb.]],faktiske_kontorkostnader[#Headers],0))","v":{"v":58,"d":"kr 58.00"}},{"$f":"INDEX(planlagte_kontorkostnader[],MATCH(INDEX(kontoravvik[],ROW()-ROW(kontoravvik[[#Headers],[Mars]]),1),INDEX(planlagte_kontorkostnader[],,1),0),MATCH(kontoravvik[[#Headers],[Mars]],planlagte_kontorkostnader[#Headers],0))-INDEX(faktiske_kontorkostnader[],MATCH(INDEX(kontoravvik[],ROW()-ROW(kontoravvik[[#Headers],[Mars]]),1),INDEX(planlagte_kontorkostnader[],,1),0),MATCH(kontoravvik[[#Headers],[Mars]],faktiske_kontorkostnader[#Headers],0))","v":{"v":40,"d":"kr 40.00"}},{"$f":"INDEX(planlagte_kontorkostnader[],MATCH(INDEX(kontoravvik[],ROW()-ROW(kontoravvik[[#Headers],[April]]),1),INDEX(planlagte_kontorkostnader[],,1),0),MATCH(kontoravvik[[#Headers],[April]],planlagte_kontorkostnader[#Headers],0))-INDEX(faktiske_kontorkostnader[],MATCH(INDEX(kontoravvik[],ROW()-ROW(kontoravvik[[#Headers],[April]]),1),INDEX(planlagte_kontorkostnader[],,1),0),MATCH(kontoravvik[[#Headers],[April]],faktiske_kontorkostnader[#Headers],0))","v":{"v":-21,"d":"-kr 21.00"}},{"$f":"INDEX(planlagte_kontorkostnader[],MATCH(INDEX(kontoravvik[],ROW()-ROW(kontoravvik[[#Headers],[Mai]]),1),INDEX(planlagte_kontorkostnader[],,1),0),MATCH(kontoravvik[[#Headers],[Mai]],planlagte_kontorkostnader[#Headers],0))-INDEX(faktiske_kontorkostnader[],MATCH(INDEX(kontoravvik[],ROW()-ROW(kontoravvik[[#Headers],[Mai]]),1),INDEX(planlagte_kontorkostnader[],,1),0),MATCH(kontoravvik[[#Headers],[Mai]],faktiske_kontorkostnader[#Headers],0))","v":{"v":-56,"d":"-kr 56.00"}},{"$f":"INDEX(planlagte_kontorkostnader[],MATCH(INDEX(kontoravvik[],ROW()-ROW(kontoravvik[[#Headers],[Juni]]),1),INDEX(planlagte_kontorkostnader[],,1),0),MATCH(kontoravvik[[#Headers],[Juni]],planlagte_kontorkostnader[#Headers],0))-INDEX(faktiske_kontorkostnader[],MATCH(INDEX(kontoravvik[],ROW()-ROW(kontoravvik[[#Headers],[Juni]]),1),INDEX(planlagte_kontorkostnader[],,1),0),MATCH(kontoravvik[[#Headers],[Juni]],faktiske_kontorkostnader[#Headers],0))","v":{"v":-40,"d":"-kr 40.00"}},{"$f":"INDEX(planlagte_kontorkostnader[],MATCH(INDEX(kontoravvik[],ROW()-ROW(kontoravvik[[#Headers],[Juli]]),1),INDEX(planlagte_kontorkostnader[],,1),0),MATCH(kontoravvik[[#Headers],[Juli]],planlagte_kontorkostnader[#Headers],0))-INDEX(faktiske_kontorkostnader[],MATCH(INDEX(kontoravvik[],ROW()-ROW(kontoravvik[[#Headers],[Juli]]),1),INDEX(planlagte_kontorkostnader[],,1),0),MATCH(kontoravvik[[#Headers],[Juli]],faktiske_kontorkostnader[#Headers],0))","v":{"v":200,"d":"kr 200.00"}},{"$f":"INDEX(planlagte_kontorkostnader[],MATCH(INDEX(kontoravvik[],ROW()-ROW(kontoravvik[[#Headers],[Aug.]]),1),INDEX(planlagte_kontorkostnader[],,1),0),MATCH(kontoravvik[[#Headers],[Aug.]],planlagte_kontorkostnader[#Headers],0))-INDEX(faktiske_kontorkostnader[],MATCH(INDEX(kontoravvik[],ROW()-ROW(kontoravvik[[#Headers],[Aug.]]),1),INDEX(planlagte_kontorkostnader[],,1),0),MATCH(kontoravvik[[#Headers],[Aug.]],faktiske_kontorkostnader[#Headers],0))","v":{"v":200,"d":"kr 200.00"}},{"$f":"INDEX(planlagte_kontorkostnader[],MATCH(INDEX(kontoravvik[],ROW()-ROW(kontoravvik[[#Headers],[Sep.]]),1),INDEX(planlagte_kontorkostnader[],,1),0),MATCH(kontoravvik[[#Headers],[Sep.]],planlagte_kontorkostnader[#Headers],0))-INDEX(faktiske_kontorkostnader[],MATCH(INDEX(kontoravvik[],ROW()-ROW(kontoravvik[[#Headers],[Sep.]]),1),INDEX(planlagte_kontorkostnader[],,1),0),MATCH(kontoravvik[[#Headers],[Sep.]],faktiske_kontorkostnader[#Headers],0))","v":{"v":200,"d":"kr 200.00"}},{"$f":"INDEX(planlagte_kontorkostnader[],MATCH(INDEX(kontoravvik[],ROW()-ROW(kontoravvik[[#Headers],[Okt.]]),1),INDEX(planlagte_kontorkostnader[],,1),0),MATCH(kontoravvik[[#Headers],[Okt.]],planlagte_kontorkostnader[#Headers],0))-INDEX(faktiske_kontorkostnader[],MATCH(INDEX(kontoravvik[],ROW()-ROW(kontoravvik[[#Headers],[Okt.]]),1),INDEX(planlagte_kontorkostnader[],,1),0),MATCH(kontoravvik[[#Headers],[Okt.]],faktiske_kontorkostnader[#Headers],0))","v":{"v":200,"d":"kr 200.00"}},{"$f":"INDEX(planlagte_kontorkostnader[],MATCH(INDEX(kontoravvik[],ROW()-ROW(kontoravvik[[#Headers],[Nov.]]),1),INDEX(planlagte_kontorkostnader[],,1),0),MATCH(kontoravvik[[#Headers],[Nov.]],planlagte_kontorkostnader[#Headers],0))-INDEX(faktiske_kontorkostnader[],MATCH(INDEX(kontoravvik[],ROW()-ROW(kontoravvik[[#Headers],[Nov.]]),1),INDEX(planlagte_kontorkostnader[],,1),0),MATCH(kontoravvik[[#Headers],[Nov.]],faktiske_kontorkostnader[#Headers],0))","v":{"v":200,"d":"kr 200.00"}},{"$f":"INDEX(planlagte_kontorkostnader[],MATCH(INDEX(kontoravvik[],ROW()-ROW(kontoravvik[[#Headers],[Des.]]),1),INDEX(planlagte_kontorkostnader[],,1),0),MATCH(kontoravvik[[#Headers],[Des.]],planlagte_kontorkostnader[#Headers],0))-INDEX(faktiske_kontorkostnader[],MATCH(INDEX(kontoravvik[],ROW()-ROW(kontoravvik[[#Headers],[Des.]]),1),INDEX(planlagte_kontorkostnader[],,1),0),MATCH(kontoravvik[[#Headers],[Des.]],faktiske_kontorkostnader[#Headers],0))","v":{"v":200,"d":"kr 200.00"}},{"$f":"SUM(kontoravvik[[#This Row],[Jan.]:[Des.]])","v":{"v":1125,"d":"kr 1,125.00"}}]
[null,"Sikkerhet",{"$f":"INDEX(planlagte_kontorkostnader[],MATCH(INDEX(kontoravvik[],ROW()-ROW(kontoravvik[[#Headers],[Jan.]]),1),INDEX(planlagte_kontorkostnader[],,1),0),MATCH(kontoravvik[[#Headers],[Jan.]],planlagte_kontorkostnader[#Headers],0))-INDEX(faktiske_kontorkostnader[],MATCH(INDEX(kontoravvik[],ROW()-ROW(kontoravvik[[#Headers],[Jan.]]),1),INDEX(planlagte_kontorkostnader[],,1),0),MATCH(kontoravvik[[#Headers],[Jan.]],faktiske_kontorkostnader[#Headers],0))","v":{"v":0,"d":"kr 0.00"}},{"$f":"INDEX(planlagte_kontorkostnader[],MATCH(INDEX(kontoravvik[],ROW()-ROW(kontoravvik[[#Headers],[Feb.]]),1),INDEX(planlagte_kontorkostnader[],,1),0),MATCH(kontoravvik[[#Headers],[Feb.]],planlagte_kontorkostnader[#Headers],0))-INDEX(faktiske_kontorkostnader[],MATCH(INDEX(kontoravvik[],ROW()-ROW(kontoravvik[[#Headers],[Feb.]]),1),INDEX(planlagte_kontorkostnader[],,1),0),MATCH(kontoravvik[[#Headers],[Feb.]],faktiske_kontorkostnader[#Headers],0))","v":{"v":0,"d":"kr 0.00"}},{"$f":"INDEX(planlagte_kontorkostnader[],MATCH(INDEX(kontoravvik[],ROW()-ROW(kontoravvik[[#Headers],[Mars]]),1),INDEX(planlagte_kontorkostnader[],,1),0),MATCH(kontoravvik[[#Headers],[Mars]],planlagte_kontorkostnader[#Headers],0))-INDEX(faktiske_kontorkostnader[],MATCH(INDEX(kontoravvik[],ROW()-ROW(kontoravvik[[#Headers],[Mars]]),1),INDEX(planlagte_kontorkostnader[],,1),0),MATCH(kontoravvik[[#Headers],[Mars]],faktiske_kontorkostnader[#Headers],0))","v":{"v":0,"d":"kr 0.00"}},{"$f":"INDEX(planlagte_kontorkostnader[],MATCH(INDEX(kontoravvik[],ROW()-ROW(kontoravvik[[#Headers],[April]]),1),INDEX(planlagte_kontorkostnader[],,1),0),MATCH(kontoravvik[[#Headers],[April]],planlagte_kontorkostnader[#Headers],0))-INDEX(faktiske_kontorkostnader[],MATCH(INDEX(kontoravvik[],ROW()-ROW(kontoravvik[[#Headers],[April]]),1),INDEX(planlagte_kontorkostnader[],,1),0),MATCH(kontoravvik[[#Headers],[April]],faktiske_kontorkostnader[#Headers],0))","v":{"v":0,"d":"kr 0.00"}},{"$f":"INDEX(planlagte_kontorkostnader[],MATCH(INDEX(kontoravvik[],ROW()-ROW(kontoravvik[[#Headers],[Mai]]),1),INDEX(planlagte_kontorkostnader[],,1),0),MATCH(kontoravvik[[#Headers],[Mai]],planlagte_kontorkostnader[#Headers],0))-INDEX(faktiske_kontorkostnader[],MATCH(INDEX(kontoravvik[],ROW()-ROW(kontoravvik[[#Headers],[Mai]]),1),INDEX(planlagte_kontorkostnader[],,1),0),MATCH(kontoravvik[[#Headers],[Mai]],faktiske_kontorkostnader[#Headers],0))","v":{"v":0,"d":"kr 0.00"}},{"$f":"INDEX(planlagte_kontorkostnader[],MATCH(INDEX(kontoravvik[],ROW()-ROW(kontoravvik[[#Headers],[Juni]]),1),INDEX(planlagte_kontorkostnader[],,1),0),MATCH(kontoravvik[[#Headers],[Juni]],planlagte_kontorkostnader[#Headers],0))-INDEX(faktiske_kontorkostnader[],MATCH(INDEX(kontoravvik[],ROW()-ROW(kontoravvik[[#Headers],[Juni]]),1),INDEX(planlagte_kontorkostnader[],,1),0),MATCH(kontoravvik[[#Headers],[Juni]],faktiske_kontorkostnader[#Headers],0))","v":{"v":0,"d":"kr 0.00"}},{"$f":"INDEX(planlagte_kontorkostnader[],MATCH(INDEX(kontoravvik[],ROW()-ROW(kontoravvik[[#Headers],[Juli]]),1),INDEX(planlagte_kontorkostnader[],,1),0),MATCH(kontoravvik[[#Headers],[Juli]],planlagte_kontorkostnader[#Headers],0))-INDEX(faktiske_kontorkostnader[],MATCH(INDEX(kontoravvik[],ROW()-ROW(kontoravvik[[#Headers],[Juli]]),1),INDEX(planlagte_kontorkostnader[],,1),0),MATCH(kontoravvik[[#Headers],[Juli]],faktiske_kontorkostnader[#Headers],0))","v":{"v":600,"d":"kr 600.00"}},{"$f":"INDEX(planlagte_kontorkostnader[],MATCH(INDEX(kontoravvik[],ROW()-ROW(kontoravvik[[#Headers],[Aug.]]),1),INDEX(planlagte_kontorkostnader[],,1),0),MATCH(kontoravvik[[#Headers],[Aug.]],planlagte_kontorkostnader[#Headers],0))-INDEX(faktiske_kontorkostnader[],MATCH(INDEX(kontoravvik[],ROW()-ROW(kontoravvik[[#Headers],[Aug.]]),1),INDEX(planlagte_kontorkostnader[],,1),0),MATCH(kontoravvik[[#Headers],[Aug.]],faktiske_kontorkostnader[#Headers],0))","v":{"v":600,"d":"kr 600.00"}},{"$f":"INDEX(planlagte_kontorkostnader[],MATCH(INDEX(kontoravvik[],ROW()-ROW(kontoravvik[[#Headers],[Sep.]]),1),INDEX(planlagte_kontorkostnader[],,1),0),MATCH(kontoravvik[[#Headers],[Sep.]],planlagte_kontorkostnader[#Headers],0))-INDEX(faktiske_kontorkostnader[],MATCH(INDEX(kontoravvik[],ROW()-ROW(kontoravvik[[#Headers],[Sep.]]),1),INDEX(planlagte_kontorkostnader[],,1),0),MATCH(kontoravvik[[#Headers],[Sep.]],faktiske_kontorkostnader[#Headers],0))","v":{"v":600,"d":"kr 600.00"}},{"$f":"INDEX(planlagte_kontorkostnader[],MATCH(INDEX(kontoravvik[],ROW()-ROW(kontoravvik[[#Headers],[Okt.]]),1),INDEX(planlagte_kontorkostnader[],,1),0),MATCH(kontoravvik[[#Headers],[Okt.]],planlagte_kontorkostnader[#Headers],0))-INDEX(faktiske_kontorkostnader[],MATCH(INDEX(kontoravvik[],ROW()-ROW(kontoravvik[[#Headers],[Okt.]]),1),INDEX(planlagte_kontorkostnader[],,1),0),MATCH(kontoravvik[[#Headers],[Okt.]],faktiske_kontorkostnader[#Headers],0))","v":{"v":600,"d":"kr 600.00"}},{"$f":"INDEX(planlagte_kontorkostnader[],MATCH(INDEX(kontoravvik[],ROW()-ROW(kontoravvik[[#Headers],[Nov.]]),1),INDEX(planlagte_kontorkostnader[],,1),0),MATCH(kontoravvik[[#Headers],[Nov.]],planlagte_kontorkostnader[#Headers],0))-INDEX(faktiske_kontorkostnader[],MATCH(INDEX(kontoravvik[],ROW()-ROW(kontoravvik[[#Headers],[Nov.]]),1),INDEX(planlagte_kontorkostnader[],,1),0),MATCH(kontoravvik[[#Headers],[Nov.]],faktiske_kontorkostnader[#Headers],0))","v":{"v":600,"d":"kr 600.00"}},{"$f":"INDEX(planlagte_kontorkostnader[],MATCH(INDEX(kontoravvik[],ROW()-ROW(kontoravvik[[#Headers],[Des.]]),1),INDEX(planlagte_kontorkostnader[],,1),0),MATCH(kontoravvik[[#Headers],[Des.]],planlagte_kontorkostnader[#Headers],0))-INDEX(faktiske_kontorkostnader[],MATCH(INDEX(kontoravvik[],ROW()-ROW(kontoravvik[[#Headers],[Des.]]),1),INDEX(planlagte_kontorkostnader[],,1),0),MATCH(kontoravvik[[#Headers],[Des.]],faktiske_kontorkostnader[#Headers],0))","v":{"v":600,"d":"kr 600.00"}},{"$f":"SUM(kontoravvik[[#This Row],[Jan.]:[Des.]])","v":{"v":3600,"d":"kr 3,600.00"}}]
[null,"Delsum",{"$f":"SUBTOTAL(109,kontoravvik[Jan.])","v":{"v":-17,"d":"-kr 17.00"}},{"$f":"SUBTOTAL(109,kontoravvik[Feb.])","v":{"v":72,"d":"kr 72.00"}},{"$f":"SUBTOTAL(109,kontoravvik[Mars])","v":{"v":78,"d":"kr 78.00"}},{"$f":"SUBTOTAL(109,kontoravvik[April])","v":{"v":-141,"d":"-kr 141.00"}},{"$f":"SUBTOTAL(109,kontoravvik[Mai])","v":{"v":-38,"d":"-kr 38.00"}},{"$f":"SUBTOTAL(109,kontoravvik[Juni])","v":{"v":16,"d":"kr 16.00"}},{"$f":"SUBTOTAL(109,kontoravvik[Juli])","v":{"v":11470,"d":"kr 11,470.00"}},{"$f":"SUBTOTAL(109,kontoravvik[Aug.])","v":{"v":11470,"d":"kr 11,470.00"}},{"$f":"SUBTOTAL(109,kontoravvik[Sep.])","v":{"v":11470,"d":"kr 11,470.00"}},{"$f":"SUBTOTAL(109,kontoravvik[Okt.])","v":{"v":11470,"d":"kr 11,470.00"}},{"$f":"SUBTOTAL(109,kontoravvik[Nov.])","v":{"v":11770,"d":"kr 11,770.00"}},{"$f":"SUBTOTAL(109,kontoravvik[Des.])","v":{"v":11770,"d":"kr 11,770.00"}},{"$f":"SUBTOTAL(109,kontoravvik[ÅR])","v":{"v":69390,"d":"kr 69,390.00"}}]
[]
["Avvik i markedsføringskostnader beregnes automatisk i tabellen for markedsføringsavvik som starter i cellen til høyre. Neste instruksjon finnes i celle A30.","Markedsføringskostnader","Jan.","Feb.","Mars","April","Mai","Juni","Juli","Aug.","Sep.","Okt.","Nov.","Des.","ÅR"]
[null,"Drift av nettsted",{"$f":"INDEX(planlagte_markedsføringskostnader[],MATCH(INDEX(markedsføringsavvik[],ROW()-ROW(markedsføringsavvik[[#Headers],[Jan.]]),1),INDEX(planlagte_markedsføringskostnader[],,1),0),MATCH(markedsføringsavvik[[#Headers],[Jan.]],planlagte_markedsføringskostnader[#Headers],0))-INDEX(faktiske_markedsføringskostnader[],MATCH(INDEX(markedsføringsavvik[],ROW()-ROW(markedsføringsavvik[[#Headers],[Jan.]]),1),INDEX(planlagte_markedsføringskostnader[],,1),0),MATCH(markedsføringsavvik[[#Headers],[Jan.]],faktiske_markedsføringskostnader[#Headers],0))","v":{"v":0,"d":"kr 0.00"}},{"$f":"INDEX(planlagte_markedsføringskostnader[],MATCH(INDEX(markedsføringsavvik[],ROW()-ROW(markedsføringsavvik[[#Headers],[Feb.]]),1),INDEX(planlagte_markedsføringskostnader[],,1),0),MATCH(markedsføringsavvik[[#Headers],[Feb.]],planlagte_markedsføringskostnader[#Headers],0))-INDEX(faktiske_markedsføringskostnader[],MATCH(INDEX(markedsføringsavvik[],ROW()-ROW(markedsføringsavvik[[#Headers],[Feb.]]),1),INDEX(planlagte_markedsføringskostnader[],,1),0),MATCH(markedsføringsavvik[[#Headers],[Feb.]],faktiske_markedsføringskostnader[#Headers],0))","v":{"v":0,"d":"kr 0.00"}},{"$f":"INDEX(planlagte_markedsføringskostnader[],MATCH(INDEX(markedsføringsavvik[],ROW()-ROW(markedsføringsavvik[[#Headers],[Mars]]),1),INDEX(planlagte_markedsføringskostnader[],,1),0),MATCH(markedsføringsavvik[[#Headers],[Mars]],planlagte_markedsføringskostnader[#Headers],0))-INDEX(faktiske_markedsføringskostnader[],MATCH(INDEX(markedsføringsavvik[],ROW()-ROW(markedsføringsavvik[[#Headers],[Mars]]),1),INDEX(planlagte_markedsføringskostnader[],,1),0),MATCH(markedsføringsavvik[[#Headers],[Mars]],faktiske_markedsføringskostnader[#Headers],0))","v":{"v":0,"d":"kr 0.00"}},{"$f":"INDEX(planlagte_markedsføringskostnader[],MATCH(INDEX(markedsføringsavvik[],ROW()-ROW(markedsføringsavvik[[#Headers],[April]]),1),INDEX(planlagte_markedsføringskostnader[],,1),0),MATCH(markedsføringsavvik[[#Headers],[April]],planlagte_markedsføringskostnader[#Headers],0))-INDEX(faktiske_markedsføringskostnader[],MATCH(INDEX(markedsføringsavvik[],ROW()-ROW(markedsføringsavvik[[#Headers],[April]]),1),INDEX(planlagte_markedsføringskostnader[],,1),0),MATCH(markedsføringsavvik[[#Headers],[April]],faktiske_markedsføringskostnader[#Headers],0))","v":{"v":0,"d":"kr 0.00"}},{"$f":"INDEX(planlagte_markedsføringskostnader[],MATCH(INDEX(markedsføringsavvik[],ROW()-ROW(markedsføringsavvik[[#Headers],[Mai]]),1),INDEX(planlagte_markedsføringskostnader[],,1),0),MATCH(markedsføringsavvik[[#Headers],[Mai]],planlagte_markedsføringskostnader[#Headers],0))-INDEX(faktiske_markedsføringskostnader[],MATCH(INDEX(markedsføringsavvik[],ROW()-ROW(markedsføringsavvik[[#Headers],[Mai]]),1),INDEX(planlagte_markedsføringskostnader[],,1),0),MATCH(markedsføringsavvik[[#Headers],[Mai]],faktiske_markedsføringskostnader[#Headers],0))","v":{"v":0,"d":"kr 0.00"}},{"$f":"INDEX(planlagte_markedsføringskostnader[],MATCH(INDEX(markedsføringsavvik[],ROW()-ROW(markedsføringsavvik[[#Headers],[Juni]]),1),INDEX(planlagte_markedsføringskostnader[],,1),0),MATCH(markedsføringsavvik[[#Headers],[Juni]],planlagte_markedsføringskostnader[#Headers],0))-INDEX(faktiske_markedsføringskostnader[],MATCH(INDEX(markedsføringsavvik[],ROW()-ROW(markedsføringsavvik[[#Headers],[Juni]]),1),INDEX(planlagte_markedsføringskostnader[],,1),0),MATCH(markedsføringsavvik[[#Headers],[Juni]],faktiske_markedsføringskostnader[#Headers],0))","v":{"v":0,"d":"kr 0.00"}},{"$f":"INDEX(planlagte_markedsføringskostnader[],MATCH(INDEX(markedsføringsavvik[],ROW()-ROW(markedsføringsavvik[[#Headers],[Juli]]),1),INDEX(planlagte_markedsføringskostnader[],,1),0),MATCH(markedsføringsavvik[[#Headers],[Juli]],planlagte_markedsføringskostnader[#Headers],0))-INDEX(faktiske_markedsføringskostnader[],MATCH(INDEX(markedsføringsavvik[],ROW()-ROW(markedsføringsavvik[[#Headers],[Juli]]),1),INDEX(planlagte_markedsføringskostnader[],,1),0),MATCH(markedsføringsavvik[[#Headers],[Juli]],faktiske_markedsføringskostnader[#Headers],0))","v":{"v":500,"d":"kr 500.00"}},{"$f":"INDEX(planlagte_markedsføringskostnader[],MATCH(INDEX(markedsføringsavvik[],ROW()-ROW(markedsføringsavvik[[#Headers],[Aug.]]),1),INDEX(planlagte_markedsføringskostnader[],,1),0),MATCH(markedsføringsavvik[[#Headers],[Aug.]],planlagte_markedsføringskostnader[#Headers],0))-INDEX(faktiske_markedsføringskostnader[],MATCH(INDEX(markedsføringsavvik[],ROW()-ROW(markedsføringsavvik[[#Headers],[Aug.]]),1),INDEX(planlagte_markedsføringskostnader[],,1),0),MATCH(markedsføringsavvik[[#Headers],[Aug.]],faktiske_markedsføringskostnader[#Headers],0))","v":{"v":500,"d":"kr 500.00"}},{"$f":"INDEX(planlagte_markedsføringskostnader[],MATCH(INDEX(markedsføringsavvik[],ROW()-ROW(markedsføringsavvik[[#Headers],[Sep.]]),1),INDEX(planlagte_markedsføringskostnader[],,1),0),MATCH(markedsføringsavvik[[#Headers],[Sep.]],planlagte_markedsføringskostnader[#Headers],0))-INDEX(faktiske_markedsføringskostnader[],MATCH(INDEX(markedsføringsavvik[],ROW()-ROW(markedsføringsavvik[[#Headers],[Sep.]]),1),INDEX(planlagte_markedsføringskostnader[],,1),0),MATCH(markedsføringsavvik[[#Headers],[Sep.]],faktiske_markedsføringskostnader[#Headers],0))","v":{"v":500,"d":"kr 500.00"}},{"$f":"INDEX(planlagte_markedsføringskostnader[],MATCH(INDEX(markedsføringsavvik[],ROW()-ROW(markedsføringsavvik[[#Headers],[Okt.]]),1),INDEX(planlagte_markedsføringskostnader[],,1),0),MATCH(markedsføringsavvik[[#Headers],[Okt.]],planlagte_markedsføringskostnader[#Headers],0))-INDEX(faktiske_markedsføringskostnader[],MATCH(INDEX(markedsføringsavvik[],ROW()-ROW(markedsføringsavvik[[#Headers],[Okt.]]),1),INDEX(planlagte_markedsføringskostnader[],,1),0),MATCH(markedsføringsavvik[[#Headers],[Okt.]],faktiske_markedsføringskostnader[#Headers],0))","v":{"v":500,"d":"kr 500.00"}},{"$f":"INDEX(planlagte_markedsføringskostnader[],MATCH(INDEX(markedsføringsavvik[],ROW()-ROW(markedsføringsavvik[[#Headers],[Nov.]]),1),INDEX(planlagte_markedsføringskostnader[],,1),0),MATCH(markedsføringsavvik[[#Headers],[Nov.]],planlagte_markedsføringskostnader[#Headers],0))-INDEX(faktiske_markedsføringskostnader[],MATCH(INDEX(markedsføringsavvik[],ROW()-ROW(markedsføringsavvik[[#Headers],[Nov.]]),1),INDEX(planlagte_markedsføringskostnader[],,1),0),MATCH(markedsføringsavvik[[#Headers],[Nov.]],faktiske_markedsføringskostnader[#Headers],0))","v":{"v":500,"d":"kr 500.00"}},{"$f":"INDEX(planlagte_markedsføringskostnader[],MATCH(INDEX(markedsføringsavvik[],ROW()-ROW(markedsføringsavvik[[#Headers],[Des.]]),1),INDEX(planlagte_markedsføringskostnader[],,1),0),MATCH(markedsføringsavvik[[#Headers],[Des.]],planlagte_markedsføringskostnader[#Headers],0))-INDEX(faktiske_markedsføringskostnader[],MATCH(INDEX(markedsføringsavvik[],ROW()-ROW(markedsføringsavvik[[#Headers],[Des.]]),1),INDEX(planlagte_markedsføringskostnader[],,1),0),MATCH(markedsføringsavvik[[#Headers],[Des.]],faktiske_markedsføringskostnader[#Headers],0))","v":{"v":500,"d":"kr 500.00"}},{"$f":"SUM(markedsføringsavvik[[#This Row],[Jan.]:[Des.]])","v":{"v":3000,"d":"kr 3,000.00"}}]
[null,"Nettstedsoppdateringer",{"$f":"INDEX(planlagte_markedsføringskostnader[],MATCH(INDEX(markedsføringsavvik[],ROW()-ROW(markedsføringsavvik[[#Headers],[Jan.]]),1),INDEX(planlagte_markedsføringskostnader[],,1),0),MATCH(markedsføringsavvik[[#Headers],[Jan.]],planlagte_markedsføringskostnader[#Headers],0))-INDEX(faktiske_markedsføringskostnader[],MATCH(INDEX(markedsføringsavvik[],ROW()-ROW(markedsføringsavvik[[#Headers],[Jan.]]),1),INDEX(planlagte_markedsføringskostnader[],,1),0),MATCH(markedsføringsavvik[[#Headers],[Jan.]],faktiske_markedsføringskostnader[#Headers],0))","v":{"v":0,"d":"kr 0.00"}},{"$f":"INDEX(planlagte_markedsføringskostnader[],MATCH(INDEX(markedsføringsavvik[],ROW()-ROW(markedsføringsavvik[[#Headers],[Feb.]]),1),INDEX(planlagte_markedsføringskostnader[],,1),0),MATCH(markedsføringsavvik[[#Headers],[Feb.]],planlagte_markedsføringskostnader[#Headers],0))-INDEX(faktiske_markedsføringskostnader[],MATCH(INDEX(markedsføringsavvik[],ROW()-ROW(markedsføringsavvik[[#Headers],[Feb.]]),1),INDEX(planlagte_markedsføringskostnader[],,1),0),MATCH(markedsføringsavvik[[#Headers],[Feb.]],faktiske_markedsføringskostnader[#Headers],0))","v":{"v":0,"d":"kr 0.00"}},{"$f":"INDEX(planlagte_markedsføringskostnader[],MATCH(INDEX(markedsføringsavvik[],ROW()-ROW(markedsføringsavvik[[#Headers],[Mars]]),1),INDEX(planlagte_markedsføringskostnader[],,1),0),MATCH(markedsføringsavvik[[#Headers],[Mars]],planlagte_markedsføringskostnader[#Headers],0))-INDEX(faktiske_markedsføringskostnader[],MATCH(INDEX(markedsføringsavvik[],ROW()-ROW(markedsføringsavvik[[#Headers],[Mars]]),1),INDEX(planlagte_markedsføringskostnader[],,1),0),MATCH(markedsføringsavvik[[#Headers],[Mars]],faktiske_markedsføringskostnader[#Headers],0))","v":{"v":0,"d":"kr 0.00"}},{"$f":"INDEX(planlagte_markedsføringskostnader[],MATCH(INDEX(markedsføringsavvik[],ROW()-ROW(markedsføringsavvik[[#Headers],[April]]),1),INDEX(planlagte_markedsføringskostnader[],,1),0),MATCH(markedsføringsavvik[[#Headers],[April]],planlagte_markedsføringskostnader[#Headers],0))-INDEX(faktiske_markedsføringskostnader[],MATCH(INDEX(markedsføringsavvik[],ROW()-ROW(markedsføringsavvik[[#Headers],[April]]),1),INDEX(planlagte_markedsføringskostnader[],,1),0),MATCH(markedsføringsavvik[[#Headers],[April]],faktiske_markedsføringskostnader[#Headers],0))","v":{"v":0,"d":"kr 0.00"}},{"$f":"INDEX(planlagte_markedsføringskostnader[],MATCH(INDEX(markedsføringsavvik[],ROW()-ROW(markedsføringsavvik[[#Headers],[Mai]]),1),INDEX(planlagte_markedsføringskostnader[],,1),0),MATCH(markedsføringsavvik[[#Headers],[Mai]],planlagte_markedsføringskostnader[#Headers],0))-INDEX(faktiske_markedsføringskostnader[],MATCH(INDEX(markedsføringsavvik[],ROW()-ROW(markedsføringsavvik[[#Headers],[Mai]]),1),INDEX(planlagte_markedsføringskostnader[],,1),0),MATCH(markedsføringsavvik[[#Headers],[Mai]],faktiske_markedsføringskostnader[#Headers],0))","v":{"v":0,"d":"kr 0.00"}},{"$f":"INDEX(planlagte_markedsføringskostnader[],MATCH(INDEX(markedsføringsavvik[],ROW()-ROW(markedsføringsavvik[[#Headers],[Juni]]),1),INDEX(planlagte_markedsføringskostnader[],,1),0),MATCH(markedsføringsavvik[[#Headers],[Juni]],planlagte_markedsføringskostnader[#Headers],0))-INDEX(faktiske_markedsføringskostnader[],MATCH(INDEX(markedsføringsavvik[],ROW()-ROW(markedsføringsavvik[[#Headers],[Juni]]),1),INDEX(planlagte_markedsføringskostnader[],,1),0),MATCH(markedsføringsavvik[[#Headers],[Juni]],faktiske_markedsføringskostnader[#Headers],0))","v":{"v":-500,"d":"-kr 500.00"}},{"$f":"INDEX(planlagte_markedsføringskostnader[],MATCH(INDEX(markedsføringsavvik[],ROW()-ROW(markedsføringsavvik[[#Headers],[Juli]]),1),INDEX(planlagte_markedsføringskostnader[],,1),0),MATCH(markedsføringsavvik[[#Headers],[Juli]],planlagte_markedsføringskostnader[#Headers],0))-INDEX(faktiske_markedsføringskostnader[],MATCH(INDEX(markedsføringsavvik[],ROW()-ROW(markedsføringsavvik[[#Headers],[Juli]]),1),INDEX(planlagte_markedsføringskostnader[],,1),0),MATCH(markedsføringsavvik[[#Headers],[Juli]],faktiske_markedsføringskostnader[#Headers],0))","v":{"v":200,"d":"kr 200.00"}},{"$f":"INDEX(planlagte_markedsføringskostnader[],MATCH(INDEX(markedsføringsavvik[],ROW()-ROW(markedsføringsavvik[[#Headers],[Aug.]]),1),INDEX(planlagte_markedsføringskostnader[],,1),0),MATCH(markedsføringsavvik[[#Headers],[Aug.]],planlagte_markedsføringskostnader[#Headers],0))-INDEX(faktiske_markedsføringskostnader[],MATCH(INDEX(markedsføringsavvik[],ROW()-ROW(markedsføringsavvik[[#Headers],[Aug.]]),1),INDEX(planlagte_markedsføringskostnader[],,1),0),MATCH(markedsføringsavvik[[#Headers],[Aug.]],faktiske_markedsføringskostnader[#Headers],0))","v":{"v":200,"d":"kr 200.00"}},{"$f":"INDEX(planlagte_markedsføringskostnader[],MATCH(INDEX(markedsføringsavvik[],ROW()-ROW(markedsføringsavvik[[#Headers],[Sep.]]),1),INDEX(planlagte_markedsføringskostnader[],,1),0),MATCH(markedsføringsavvik[[#Headers],[Sep.]],planlagte_markedsføringskostnader[#Headers],0))-INDEX(faktiske_markedsføringskostnader[],MATCH(INDEX(markedsføringsavvik[],ROW()-ROW(markedsføringsavvik[[#Headers],[Sep.]]),1),INDEX(planlagte_markedsføringskostnader[],,1),0),MATCH(markedsføringsavvik[[#Headers],[Sep.]],faktiske_markedsføringskostnader[#Headers],0))","v":{"v":200,"d":"kr 200.00"}},{"$f":"INDEX(planlagte_markedsføringskostnader[],MATCH(INDEX(markedsføringsavvik[],ROW()-ROW(markedsføringsavvik[[#Headers],[Okt.]]),1),INDEX(planlagte_markedsføringskostnader[],,1),0),MATCH(markedsføringsavvik[[#Headers],[Okt.]],planlagte_markedsføringskostnader[#Headers],0))-INDEX(faktiske_markedsføringskostnader[],MATCH(INDEX(markedsføringsavvik[],ROW()-ROW(markedsføringsavvik[[#Headers],[Okt.]]),1),INDEX(planlagte_markedsføringskostnader[],,1),0),MATCH(markedsføringsavvik[[#Headers],[Okt.]],faktiske_markedsføringskostnader[#Headers],0))","v":{"v":200,"d":"kr 200.00"}},{"$f":"INDEX(planlagte_markedsføringskostnader[],MATCH(INDEX(markedsføringsavvik[],ROW()-ROW(markedsføringsavvik[[#Headers],[Nov.]]),1),INDEX(planlagte_markedsføringskostnader[],,1),0),MATCH(markedsføringsavvik[[#Headers],[Nov.]],planlagte_markedsføringskostnader[#Headers],0))-INDEX(faktiske_markedsføringskostnader[],MATCH(INDEX(markedsføringsavvik[],ROW()-ROW(markedsføringsavvik[[#Headers],[Nov.]]),1),INDEX(planlagte_markedsføringskostnader[],,1),0),MATCH(markedsføringsavvik[[#Headers],[Nov.]],faktiske_markedsføringskostnader[#Headers],0))","v":{"v":200,"d":"kr 200.00"}},{"$f":"INDEX(planlagte_markedsføringskostnader[],MATCH(INDEX(markedsføringsavvik[],ROW()-ROW(markedsføringsavvik[[#Headers],[Des.]]),1),INDEX(planlagte_markedsføringskostnader[],,1),0),MATCH(markedsføringsavvik[[#Headers],[Des.]],planlagte_markedsføringskostnader[#Headers],0))-INDEX(faktiske_markedsføringskostnader[],MATCH(INDEX(markedsføringsavvik[],ROW()-ROW(markedsføringsavvik[[#Headers],[Des.]]),1),INDEX(planlagte_markedsføringskostnader[],,1),0),MATCH(markedsføringsavvik[[#Headers],[Des.]],faktiske_markedsføringskostnader[#Headers],0))","v":{"v":1000,"d":"kr 1,000.00"}},{"$f":"SUM(markedsføringsavvik[[#This Row],[Jan.]:[Des.]])","v":{"v":1500,"d":"kr 1,500.00"}}]
[null,"Klargjøring av markedsføringsmateriell",{"$f":"INDEX(planlagte_markedsføringskostnader[],MATCH(INDEX(markedsføringsavvik[],ROW()-ROW(markedsføringsavvik[[#Headers],[Jan.]]),1),INDEX(planlagte_markedsføringskostnader[],,1),0),MATCH(markedsføringsavvik[[#Headers],[Jan.]],planlagte_markedsføringskostnader[#Headers],0))-INDEX(faktiske_markedsføringskostnader[],MATCH(INDEX(markedsføringsavvik[],ROW()-ROW(markedsføringsavvik[[#Headers],[Jan.]]),1),INDEX(planlagte_markedsføringskostnader[],,1),0),MATCH(markedsføringsavvik[[#Headers],[Jan.]],faktiske_markedsføringskostnader[#Headers],0))","v":{"v":200,"d":"kr 200.00"}},{"$f":"INDEX(planlagte_markedsføringskostnader[],MATCH(INDEX(markedsføringsavvik[],ROW()-ROW(markedsføringsavvik[[#Headers],[Feb.]]),1),INDEX(planlagte_markedsføringskostnader[],,1),0),MATCH(markedsføringsavvik[[#Headers],[Feb.]],planlagte_markedsføringskostnader[#Headers],0))-INDEX(faktiske_markedsføringskostnader[],MATCH(INDEX(markedsføringsavvik[],ROW()-ROW(markedsføringsavvik[[#Headers],[Feb.]]),1),INDEX(planlagte_markedsføringskostnader[],,1),0),MATCH(markedsføringsavvik[[#Headers],[Feb.]],faktiske_markedsføringskostnader[#Headers],0))","v":{"v":0,"d":"kr 0.00"}},{"$f":"INDEX(planlagte_markedsføringskostnader[],MATCH(INDEX(markedsføringsavvik[],ROW()-ROW(markedsføringsavvik[[#Headers],[Mars]]),1),INDEX(planlagte_markedsføringskostnader[],,1),0),MATCH(markedsføringsavvik[[#Headers],[Mars]],planlagte_markedsføringskostnader[#Headers],0))-INDEX(faktiske_markedsføringskostnader[],MATCH(INDEX(markedsføringsavvik[],ROW()-ROW(markedsføringsavvik[[#Headers],[Mars]]),1),INDEX(planlagte_markedsføringskostnader[],,1),0),MATCH(markedsføringsavvik[[#Headers],[Mars]],faktiske_markedsføringskostnader[#Headers],0))","v":{"v":0,"d":"kr 0.00"}},{"$f":"INDEX(planlagte_markedsføringskostnader[],MATCH(INDEX(markedsføringsavvik[],ROW()-ROW(markedsføringsavvik[[#Headers],[April]]),1),INDEX(planlagte_markedsføringskostnader[],,1),0),MATCH(markedsføringsavvik[[#Headers],[April]],planlagte_markedsføringskostnader[#Headers],0))-INDEX(faktiske_markedsføringskostnader[],MATCH(INDEX(markedsføringsavvik[],ROW()-ROW(markedsføringsavvik[[#Headers],[April]]),1),INDEX(planlagte_markedsføringskostnader[],,1),0),MATCH(markedsføringsavvik[[#Headers],[April]],faktiske_markedsføringskostnader[#Headers],0))","v":{"v":-500,"d":"-kr 500.00"}},{"$f":"INDEX(planlagte_markedsføringskostnader[],MATCH(INDEX(markedsføringsavvik[],ROW()-ROW(markedsføringsavvik[[#Headers],[Mai]]),1),INDEX(planlagte_markedsføringskostnader[],,1),0),MATCH(markedsføringsavvik[[#Headers],[Mai]],planlagte_markedsføringskostnader[#Headers],0))-INDEX(faktiske_markedsføringskostnader[],MATCH(INDEX(markedsføringsavvik[],ROW()-ROW(markedsføringsavvik[[#Headers],[Mai]]),1),INDEX(planlagte_markedsføringskostnader[],,1),0),MATCH(markedsføringsavvik[[#Headers],[Mai]],faktiske_markedsføringskostnader[#Headers],0))","v":{"v":0,"d":"kr 0.00"}},{"$f":"INDEX(planlagte_markedsføringskostnader[],MATCH(INDEX(markedsføringsavvik[],ROW()-ROW(markedsføringsavvik[[#Headers],[Juni]]),1),INDEX(planlagte_markedsføringskostnader[],,1),0),MATCH(markedsføringsavvik[[#Headers],[Juni]],planlagte_markedsføringskostnader[#Headers],0))-INDEX(faktiske_markedsføringskostnader[],MATCH(INDEX(markedsføringsavvik[],ROW()-ROW(markedsføringsavvik[[#Headers],[Juni]]),1),INDEX(planlagte_markedsføringskostnader[],,1),0),MATCH(markedsføringsavvik[[#Headers],[Juni]],faktiske_markedsføringskostnader[#Headers],0))","v":{"v":0,"d":"kr 0.00"}},{"$f":"INDEX(planlagte_markedsføringskostnader[],MATCH(INDEX(markedsføringsavvik[],ROW()-ROW(markedsføringsavvik[[#Headers],[Juli]]),1),INDEX(planlagte_markedsføringskostnader[],,1),0),MATCH(markedsføringsavvik[[#Headers],[Juli]],planlagte_markedsføringskostnader[#Headers],0))-INDEX(faktiske_markedsføringskostnader[],MATCH(INDEX(markedsføringsavvik[],ROW()-ROW(markedsføringsavvik[[#Headers],[Juli]]),1),INDEX(planlagte_markedsføringskostnader[],,1),0),MATCH(markedsføringsavvik[[#Headers],[Juli]],faktiske_markedsføringskostnader[#Headers],0))","v":{"v":5000,"d":"kr 5,000.00"}},{"$f":"INDEX(planlagte_markedsføringskostnader[],MATCH(INDEX(markedsføringsavvik[],ROW()-ROW(markedsføringsavvik[[#Headers],[Aug.]]),1),INDEX(planlagte_markedsføringskostnader[],,1),0),MATCH(markedsføringsavvik[[#Headers],[Aug.]],planlagte_markedsføringskostnader[#Headers],0))-INDEX(faktiske_markedsføringskostnader[],MATCH(INDEX(markedsføringsavvik[],ROW()-ROW(markedsføringsavvik[[#Headers],[Aug.]]),1),INDEX(planlagte_markedsføringskostnader[],,1),0),MATCH(markedsføringsavvik[[#Headers],[Aug.]],faktiske_markedsføringskostnader[#Headers],0))","v":{"v":0,"d":"kr 0.00"}},{"$f":"INDEX(planlagte_markedsføringskostnader[],MATCH(INDEX(markedsføringsavvik[],ROW()-ROW(markedsføringsavvik[[#Headers],[Sep.]]),1),INDEX(planlagte_markedsføringskostnader[],,1),0),MATCH(markedsføringsavvik[[#Headers],[Sep.]],planlagte_markedsføringskostnader[#Headers],0))-INDEX(faktiske_markedsføringskostnader[],MATCH(INDEX(markedsføringsavvik[],ROW()-ROW(markedsføringsavvik[[#Headers],[Sep.]]),1),INDEX(planlagte_markedsføringskostnader[],,1),0),MATCH(markedsføringsavvik[[#Headers],[Sep.]],faktiske_markedsføringskostnader[#Headers],0))","v":{"v":0,"d":"kr 0.00"}},{"$f":"INDEX(planlagte_markedsføringskostnader[],MATCH(INDEX(markedsføringsavvik[],ROW()-ROW(markedsføringsavvik[[#Headers],[Okt.]]),1),INDEX(planlagte_markedsføringskostnader[],,1),0),MATCH(markedsføringsavvik[[#Headers],[Okt.]],planlagte_markedsføringskostnader[#Headers],0))-INDEX(faktiske_markedsføringskostnader[],MATCH(INDEX(markedsføringsavvik[],ROW()-ROW(markedsføringsavvik[[#Headers],[Okt.]]),1),INDEX(planlagte_markedsføringskostnader[],,1),0),MATCH(markedsføringsavvik[[#Headers],[Okt.]],faktiske_markedsføringskostnader[#Headers],0))","v":{"v":5000,"d":"kr 5,000.00"}},{"$f":"INDEX(planlagte_markedsføringskostnader[],MATCH(INDEX(markedsføringsavvik[],ROW()-ROW(markedsføringsavvik[[#Headers],[Nov.]]),1),INDEX(planlagte_markedsføringskostnader[],,1),0),MATCH(markedsføringsavvik[[#Headers],[Nov.]],planlagte_markedsføringskostnader[#Headers],0))-INDEX(faktiske_markedsføringskostnader[],MATCH(INDEX(markedsføringsavvik[],ROW()-ROW(markedsføringsavvik[[#Headers],[Nov.]]),1),INDEX(planlagte_markedsføringskostnader[],,1),0),MATCH(markedsføringsavvik[[#Headers],[Nov.]],faktiske_markedsføringskostnader[#Headers],0))","v":{"v":0,"d":"kr 0.00"}},{"$f":"INDEX(planlagte_markedsføringskostnader[],MATCH(INDEX(markedsføringsavvik[],ROW()-ROW(markedsføringsavvik[[#Headers],[Des.]]),1),INDEX(planlagte_markedsføringskostnader[],,1),0),MATCH(markedsføringsavvik[[#Headers],[Des.]],planlagte_markedsføringskostnader[#Headers],0))-INDEX(faktiske_markedsføringskostnader[],MATCH(INDEX(markedsføringsavvik[],ROW()-ROW(markedsføringsavvik[[#Headers],[Des.]]),1),INDEX(planlagte_markedsføringskostnader[],,1),0),MATCH(markedsføringsavvik[[#Headers],[Des.]],faktiske_markedsføringskostnader[#Headers],0))","v":{"v":0,"d":"kr 0.00"}},{"$f":"SUM(markedsføringsavvik[[#This Row],[Jan.]:[Des.]])","v":{"v":9700,"d":"kr 9,700.00"}}]
[null,"Trykking av markedsføringsmateriell",{"$f":"INDEX(planlagte_markedsføringskostnader[],MATCH(INDEX(markedsføringsavvik[],ROW()-ROW(markedsføringsavvik[[#Headers],[Jan.]]),1),INDEX(planlagte_markedsføringskostnader[],,1),0),MATCH(markedsføringsavvik[[#Headers],[Jan.]],planlagte_markedsføringskostnader[#Headers],0))-INDEX(faktiske_markedsføringskostnader[],MATCH(INDEX(markedsføringsavvik[],ROW()-ROW(markedsføringsavvik[[#Headers],[Jan.]]),1),INDEX(planlagte_markedsføringskostnader[],,1),0),MATCH(markedsføringsavvik[[#Headers],[Jan.]],faktiske_markedsføringskostnader[#Headers],0))","v":{"v":100,"d":"kr 100.00"}},{"$f":"INDEX(planlagte_markedsføringskostnader[],MATCH(INDEX(markedsføringsavvik[],ROW()-ROW(markedsføringsavvik[[#Headers],[Feb.]]),1),INDEX(planlagte_markedsføringskostnader[],,1),0),MATCH(markedsføringsavvik[[#Headers],[Feb.]],planlagte_markedsføringskostnader[#Headers],0))-INDEX(faktiske_markedsføringskostnader[],MATCH(INDEX(markedsføringsavvik[],ROW()-ROW(markedsføringsavvik[[#Headers],[Feb.]]),1),INDEX(planlagte_markedsføringskostnader[],,1),0),MATCH(markedsføringsavvik[[#Headers],[Feb.]],faktiske_markedsføringskostnader[#Headers],0))","v":{"v":-300,"d":"-kr 300.00"}},{"$f":"INDEX(planlagte_markedsføringskostnader[],MATCH(INDEX(markedsføringsavvik[],ROW()-ROW(markedsføringsavvik[[#Headers],[Mars]]),1),INDEX(planlagte_markedsføringskostnader[],,1),0),MATCH(markedsføringsavvik[[#Headers],[Mars]],planlagte_markedsføringskostnader[#Headers],0))-INDEX(faktiske_markedsføringskostnader[],MATCH(INDEX(markedsføringsavvik[],ROW()-ROW(markedsføringsavvik[[#Headers],[Mars]]),1),INDEX(planlagte_markedsføringskostnader[],,1),0),MATCH(markedsføringsavvik[[#Headers],[Mars]],faktiske_markedsføringskostnader[#Headers],0))","v":{"v":100,"d":"kr 100.00"}},{"$f":"INDEX(planlagte_markedsføringskostnader[],MATCH(INDEX(markedsføringsavvik[],ROW()-ROW(markedsføringsavvik[[#Headers],[April]]),1),INDEX(planlagte_markedsføringskostnader[],,1),0),MATCH(markedsføringsavvik[[#Headers],[April]],planlagte_markedsføringskostnader[#Headers],0))-INDEX(faktiske_markedsføringskostnader[],MATCH(INDEX(markedsføringsavvik[],ROW()-ROW(markedsføringsavvik[[#Headers],[April]]),1),INDEX(planlagte_markedsføringskostnader[],,1),0),MATCH(markedsføringsavvik[[#Headers],[April]],faktiske_markedsføringskostnader[#Headers],0))","v":{"v":100,"d":"kr 100.00"}},{"$f":"INDEX(planlagte_markedsføringskostnader[],MATCH(INDEX(markedsføringsavvik[],ROW()-ROW(markedsføringsavvik[[#Headers],[Mai]]),1),INDEX(planlagte_markedsføringskostnader[],,1),0),MATCH(markedsføringsavvik[[#Headers],[Mai]],planlagte_markedsføringskostnader[#Headers],0))-INDEX(faktiske_markedsføringskostnader[],MATCH(INDEX(markedsføringsavvik[],ROW()-ROW(markedsføringsavvik[[#Headers],[Mai]]),1),INDEX(planlagte_markedsføringskostnader[],,1),0),MATCH(markedsføringsavvik[[#Headers],[Mai]],faktiske_markedsføringskostnader[#Headers],0))","v":{"v":-400,"d":"-kr 400.00"}},{"$f":"INDEX(planlagte_markedsføringskostnader[],MATCH(INDEX(markedsføringsavvik[],ROW()-ROW(markedsføringsavvik[[#Headers],[Juni]]),1),INDEX(planlagte_markedsføringskostnader[],,1),0),MATCH(markedsføringsavvik[[#Headers],[Juni]],planlagte_markedsføringskostnader[#Headers],0))-INDEX(faktiske_markedsføringskostnader[],MATCH(INDEX(markedsføringsavvik[],ROW()-ROW(markedsføringsavvik[[#Headers],[Juni]]),1),INDEX(planlagte_markedsføringskostnader[],,1),0),MATCH(markedsføringsavvik[[#Headers],[Juni]],faktiske_markedsføringskostnader[#Headers],0))","v":{"v":20,"d":"kr 20.00"}},{"$f":"INDEX(planlagte_markedsføringskostnader[],MATCH(INDEX(markedsføringsavvik[],ROW()-ROW(markedsføringsavvik[[#Headers],[Juli]]),1),INDEX(planlagte_markedsføringskostnader[],,1),0),MATCH(markedsføringsavvik[[#Headers],[Juli]],planlagte_markedsføringskostnader[#Headers],0))-INDEX(faktiske_markedsføringskostnader[],MATCH(INDEX(markedsføringsavvik[],ROW()-ROW(markedsføringsavvik[[#Headers],[Juli]]),1),INDEX(planlagte_markedsføringskostnader[],,1),0),MATCH(markedsføringsavvik[[#Headers],[Juli]],faktiske_markedsføringskostnader[#Headers],0))","v":{"v":200,"d":"kr 200.00"}},{"$f":"INDEX(planlagte_markedsføringskostnader[],MATCH(INDEX(markedsføringsavvik[],ROW()-ROW(markedsføringsavvik[[#Headers],[Aug.]]),1),INDEX(planlagte_markedsføringskostnader[],,1),0),MATCH(markedsføringsavvik[[#Headers],[Aug.]],planlagte_markedsføringskostnader[#Headers],0))-INDEX(faktiske_markedsføringskostnader[],MATCH(INDEX(markedsføringsavvik[],ROW()-ROW(markedsføringsavvik[[#Headers],[Aug.]]),1),INDEX(planlagte_markedsføringskostnader[],,1),0),MATCH(markedsføringsavvik[[#Headers],[Aug.]],faktiske_markedsføringskostnader[#Headers],0))","v":{"v":200,"d":"kr 200.00"}},{"$f":"INDEX(planlagte_markedsføringskostnader[],MATCH(INDEX(markedsføringsavvik[],ROW()-ROW(markedsføringsavvik[[#Headers],[Sep.]]),1),INDEX(planlagte_markedsføringskostnader[],,1),0),MATCH(markedsføringsavvik[[#Headers],[Sep.]],planlagte_markedsføringskostnader[#Headers],0))-INDEX(faktiske_markedsføringskostnader[],MATCH(INDEX(markedsføringsavvik[],ROW()-ROW(markedsføringsavvik[[#Headers],[Sep.]]),1),INDEX(planlagte_markedsføringskostnader[],,1),0),MATCH(markedsføringsavvik[[#Headers],[Sep.]],faktiske_markedsføringskostnader[#Headers],0))","v":{"v":200,"d":"kr 200.00"}},{"$f":"INDEX(planlagte_markedsføringskostnader[],MATCH(INDEX(markedsføringsavvik[],ROW()-ROW(markedsføringsavvik[[#Headers],[Okt.]]),1),INDEX(planlagte_markedsføringskostnader[],,1),0),MATCH(markedsføringsavvik[[#Headers],[Okt.]],planlagte_markedsføringskostnader[#Headers],0))-INDEX(faktiske_markedsføringskostnader[],MATCH(INDEX(markedsføringsavvik[],ROW()-ROW(markedsføringsavvik[[#Headers],[Okt.]]),1),INDEX(planlagte_markedsføringskostnader[],,1),0),MATCH(markedsføringsavvik[[#Headers],[Okt.]],faktiske_markedsføringskostnader[#Headers],0))","v":{"v":200,"d":"kr 200.00"}},{"$f":"INDEX(planlagte_markedsføringskostnader[],MATCH(INDEX(markedsføringsavvik[],ROW()-ROW(markedsføringsavvik[[#Headers],[Nov.]]),1),INDEX(planlagte_markedsføringskostnader[],,1),0),MATCH(markedsføringsavvik[[#Headers],[Nov.]],planlagte_markedsføringskostnader[#Headers],0))-INDEX(faktiske_markedsføringskostnader[],MATCH(INDEX(markedsføringsavvik[],ROW()-ROW(markedsføringsavvik[[#Headers],[Nov.]]),1),INDEX(planlagte_markedsføringskostnader[],,1),0),MATCH(markedsføringsavvik[[#Headers],[Nov.]],faktiske_markedsføringskostnader[#Headers],0))","v":{"v":200,"d":"kr 200.00"}},{"$f":"INDEX(planlagte_markedsføringskostnader[],MATCH(INDEX(markedsføringsavvik[],ROW()-ROW(markedsføringsavvik[[#Headers],[Des.]]),1),INDEX(planlagte_markedsføringskostnader[],,1),0),MATCH(markedsføringsavvik[[#Headers],[Des.]],planlagte_markedsføringskostnader[#Headers],0))-INDEX(faktiske_markedsføringskostnader[],MATCH(INDEX(markedsføringsavvik[],ROW()-ROW(markedsføringsavvik[[#Headers],[Des.]]),1),INDEX(planlagte_markedsføringskostnader[],,1),0),MATCH(markedsføringsavvik[[#Headers],[Des.]],faktiske_markedsføringskostnader[#Headers],0))","v":{"v":200,"d":"kr 200.00"}},{"$f":"SUM(markedsføringsavvik[[#This Row],[Jan.]:[Des.]])","v":{"v":820,"d":"kr 820.00"}}]
[null,"Markedsføringsarrangementer",{"$f":"INDEX(planlagte_markedsføringskostnader[],MATCH(INDEX(markedsføringsavvik[],ROW()-ROW(markedsføringsavvik[[#Headers],[Jan.]]),1),INDEX(planlagte_markedsføringskostnader[],,1),0),MATCH(markedsføringsavvik[[#Headers],[Jan.]],planlagte_markedsføringskostnader[#Headers],0))-INDEX(faktiske_markedsføringskostnader[],MATCH(INDEX(markedsføringsavvik[],ROW()-ROW(markedsføringsavvik[[#Headers],[Jan.]]),1),INDEX(planlagte_markedsføringskostnader[],,1),0),MATCH(markedsføringsavvik[[#Headers],[Jan.]],faktiske_markedsføringskostnader[#Headers],0))","v":{"v":200,"d":"kr 200.00"}},{"$f":"INDEX(planlagte_markedsføringskostnader[],MATCH(INDEX(markedsføringsavvik[],ROW()-ROW(markedsføringsavvik[[#Headers],[Feb.]]),1),INDEX(planlagte_markedsføringskostnader[],,1),0),MATCH(markedsføringsavvik[[#Headers],[Feb.]],planlagte_markedsføringskostnader[#Headers],0))-INDEX(faktiske_markedsføringskostnader[],MATCH(INDEX(markedsføringsavvik[],ROW()-ROW(markedsføringsavvik[[#Headers],[Feb.]]),1),INDEX(planlagte_markedsføringskostnader[],,1),0),MATCH(markedsføringsavvik[[#Headers],[Feb.]],faktiske_markedsføringskostnader[#Headers],0))","v":{"v":-200,"d":"-kr 200.00"}},{"$f":"INDEX(planlagte_markedsføringskostnader[],MATCH(INDEX(markedsføringsavvik[],ROW()-ROW(markedsføringsavvik[[#Headers],[Mars]]),1),INDEX(planlagte_markedsføringskostnader[],,1),0),MATCH(markedsføringsavvik[[#Headers],[Mars]],planlagte_markedsføringskostnader[#Headers],0))-INDEX(faktiske_markedsføringskostnader[],MATCH(INDEX(markedsføringsavvik[],ROW()-ROW(markedsføringsavvik[[#Headers],[Mars]]),1),INDEX(planlagte_markedsføringskostnader[],,1),0),MATCH(markedsføringsavvik[[#Headers],[Mars]],faktiske_markedsføringskostnader[#Headers],0))","v":{"v":-200,"d":"-kr 200.00"}},{"$f":"INDEX(planlagte_markedsføringskostnader[],MATCH(INDEX(markedsføringsavvik[],ROW()-ROW(markedsføringsavvik[[#Headers],[April]]),1),INDEX(planlagte_markedsføringskostnader[],,1),0),MATCH(markedsføringsavvik[[#Headers],[April]],planlagte_markedsføringskostnader[#Headers],0))-INDEX(faktiske_markedsføringskostnader[],MATCH(INDEX(markedsføringsavvik[],ROW()-ROW(markedsføringsavvik[[#Headers],[April]]),1),INDEX(planlagte_markedsføringskostnader[],,1),0),MATCH(markedsføringsavvik[[#Headers],[April]],faktiske_markedsføringskostnader[#Headers],0))","v":{"v":300,"d":"kr 300.00"}},{"$f":"INDEX(planlagte_markedsføringskostnader[],MATCH(INDEX(markedsføringsavvik[],ROW()-ROW(markedsføringsavvik[[#Headers],[Mai]]),1),INDEX(planlagte_markedsføringskostnader[],,1),0),MATCH(markedsføringsavvik[[#Headers],[Mai]],planlagte_markedsføringskostnader[#Headers],0))-INDEX(faktiske_markedsføringskostnader[],MATCH(INDEX(markedsføringsavvik[],ROW()-ROW(markedsføringsavvik[[#Headers],[Mai]]),1),INDEX(planlagte_markedsføringskostnader[],,1),0),MATCH(markedsføringsavvik[[#Headers],[Mai]],faktiske_markedsføringskostnader[#Headers],0))","v":{"v":500,"d":"kr 500.00"}},{"$f":"INDEX(planlagte_markedsføringskostnader[],MATCH(INDEX(markedsføringsavvik[],ROW()-ROW(markedsføringsavvik[[#Headers],[Juni]]),1),INDEX(planlagte_markedsføringskostnader[],,1),0),MATCH(markedsføringsavvik[[#Headers],[Juni]],planlagte_markedsføringskostnader[#Headers],0))-INDEX(faktiske_markedsføringskostnader[],MATCH(INDEX(markedsføringsavvik[],ROW()-ROW(markedsføringsavvik[[#Headers],[Juni]]),1),INDEX(planlagte_markedsføringskostnader[],,1),0),MATCH(markedsføringsavvik[[#Headers],[Juni]],faktiske_markedsføringskostnader[#Headers],0))","v":{"v":-300,"d":"-kr 300.00"}},{"$f":"INDEX(planlagte_markedsføringskostnader[],MATCH(INDEX(markedsføringsavvik[],ROW()-ROW(markedsføringsavvik[[#Headers],[Juli]]),1),INDEX(planlagte_markedsføringskostnader[],,1),0),MATCH(markedsføringsavvik[[#Headers],[Juli]],planlagte_markedsføringskostnader[#Headers],0))-INDEX(faktiske_markedsføringskostnader[],MATCH(INDEX(markedsføringsavvik[],ROW()-ROW(markedsføringsavvik[[#Headers],[Juli]]),1),INDEX(planlagte_markedsføringskostnader[],,1),0),MATCH(markedsføringsavvik[[#Headers],[Juli]],faktiske_markedsføringskostnader[#Headers],0))","v":{"v":2000,"d":"kr 2,000.00"}},{"$f":"INDEX(planlagte_markedsføringskostnader[],MATCH(INDEX(markedsføringsavvik[],ROW()-ROW(markedsføringsavvik[[#Headers],[Aug.]]),1),INDEX(planlagte_markedsføringskostnader[],,1),0),MATCH(markedsføringsavvik[[#Headers],[Aug.]],planlagte_markedsføringskostnader[#Headers],0))-INDEX(faktiske_markedsføringskostnader[],MATCH(INDEX(markedsføringsavvik[],ROW()-ROW(markedsføringsavvik[[#Headers],[Aug.]]),1),INDEX(planlagte_markedsføringskostnader[],,1),0),MATCH(markedsføringsavvik[[#Headers],[Aug.]],faktiske_markedsføringskostnader[#Headers],0))","v":{"v":5000,"d":"kr 5,000.00"}},{"$f":"INDEX(planlagte_markedsføringskostnader[],MATCH(INDEX(markedsføringsavvik[],ROW()-ROW(markedsføringsavvik[[#Headers],[Sep.]]),1),INDEX(planlagte_markedsføringskostnader[],,1),0),MATCH(markedsføringsavvik[[#Headers],[Sep.]],planlagte_markedsføringskostnader[#Headers],0))-INDEX(faktiske_markedsføringskostnader[],MATCH(INDEX(markedsføringsavvik[],ROW()-ROW(markedsføringsavvik[[#Headers],[Sep.]]),1),INDEX(planlagte_markedsføringskostnader[],,1),0),MATCH(markedsføringsavvik[[#Headers],[Sep.]],faktiske_markedsføringskostnader[#Headers],0))","v":{"v":2000,"d":"kr 2,000.00"}},{"$f":"INDEX(planlagte_markedsføringskostnader[],MATCH(INDEX(markedsføringsavvik[],ROW()-ROW(markedsføringsavvik[[#Headers],[Okt.]]),1),INDEX(planlagte_markedsføringskostnader[],,1),0),MATCH(markedsføringsavvik[[#Headers],[Okt.]],planlagte_markedsføringskostnader[#Headers],0))-INDEX(faktiske_markedsføringskostnader[],MATCH(INDEX(markedsføringsavvik[],ROW()-ROW(markedsføringsavvik[[#Headers],[Okt.]]),1),INDEX(planlagte_markedsføringskostnader[],,1),0),MATCH(markedsføringsavvik[[#Headers],[Okt.]],faktiske_markedsføringskostnader[#Headers],0))","v":{"v":2000,"d":"kr 2,000.00"}},{"$f":"INDEX(planlagte_markedsføringskostnader[],MATCH(INDEX(markedsføringsavvik[],ROW()-ROW(markedsføringsavvik[[#Headers],[Nov.]]),1),INDEX(planlagte_markedsføringskostnader[],,1),0),MATCH(markedsføringsavvik[[#Headers],[Nov.]],planlagte_markedsføringskostnader[#Headers],0))-INDEX(faktiske_markedsføringskostnader[],MATCH(INDEX(markedsføringsavvik[],ROW()-ROW(markedsføringsavvik[[#Headers],[Nov.]]),1),INDEX(planlagte_markedsføringskostnader[],,1),0),MATCH(markedsføringsavvik[[#Headers],[Nov.]],faktiske_markedsføringskostnader[#Headers],0))","v":{"v":2000,"d":"kr 2,000.00"}},{"$f":"INDEX(planlagte_markedsføringskostnader[],MATCH(INDEX(markedsføringsavvik[],ROW()-ROW(markedsføringsavvik[[#Headers],[Des.]]),1),INDEX(planlagte_markedsføringskostnader[],,1),0),MATCH(markedsføringsavvik[[#Headers],[Des.]],planlagte_markedsføringskostnader[#Headers],0))-INDEX(faktiske_markedsføringskostnader[],MATCH(INDEX(markedsføringsavvik[],ROW()-ROW(markedsføringsavvik[[#Headers],[Des.]]),1),INDEX(planlagte_markedsføringskostnader[],,1),0),MATCH(markedsføringsavvik[[#Headers],[Des.]],faktiske_markedsføringskostnader[#Headers],0))","v":{"v":5000,"d":"kr 5,000.00"}},{"$f":"SUM(markedsføringsavvik[[#This Row],[Jan.]:[Des.]])","v":{"v":18300,"d":"kr 18,300.00"}}]
[null,"Diverse utgifter",{"$f":"INDEX(planlagte_markedsføringskostnader[],MATCH(INDEX(markedsføringsavvik[],ROW()-ROW(markedsføringsavvik[[#Headers],[Jan.]]),1),INDEX(planlagte_markedsføringskostnader[],,1),0),MATCH(markedsføringsavvik[[#Headers],[Jan.]],planlagte_markedsføringskostnader[#Headers],0))-INDEX(faktiske_markedsføringskostnader[],MATCH(INDEX(markedsføringsavvik[],ROW()-ROW(markedsføringsavvik[[#Headers],[Jan.]]),1),INDEX(planlagte_markedsføringskostnader[],,1),0),MATCH(markedsføringsavvik[[#Headers],[Jan.]],faktiske_markedsføringskostnader[#Headers],0))","v":{"v":55,"d":"kr 55.00"}},{"$f":"INDEX(planlagte_markedsføringskostnader[],MATCH(INDEX(markedsføringsavvik[],ROW()-ROW(markedsføringsavvik[[#Headers],[Feb.]]),1),INDEX(planlagte_markedsføringskostnader[],,1),0),MATCH(markedsføringsavvik[[#Headers],[Feb.]],planlagte_markedsføringskostnader[#Headers],0))-INDEX(faktiske_markedsføringskostnader[],MATCH(INDEX(markedsføringsavvik[],ROW()-ROW(markedsføringsavvik[[#Headers],[Feb.]]),1),INDEX(planlagte_markedsføringskostnader[],,1),0),MATCH(markedsføringsavvik[[#Headers],[Feb.]],faktiske_markedsføringskostnader[#Headers],0))","v":{"v":44,"d":"kr 44.00"}},{"$f":"INDEX(planlagte_markedsføringskostnader[],MATCH(INDEX(markedsføringsavvik[],ROW()-ROW(markedsføringsavvik[[#Headers],[Mars]]),1),INDEX(planlagte_markedsføringskostnader[],,1),0),MATCH(markedsføringsavvik[[#Headers],[Mars]],planlagte_markedsføringskostnader[#Headers],0))-INDEX(faktiske_markedsføringskostnader[],MATCH(INDEX(markedsføringsavvik[],ROW()-ROW(markedsføringsavvik[[#Headers],[Mars]]),1),INDEX(planlagte_markedsføringskostnader[],,1),0),MATCH(markedsføringsavvik[[#Headers],[Mars]],faktiske_markedsføringskostnader[#Headers],0))","v":{"v":77,"d":"kr 77.00"}},{"$f":"INDEX(planlagte_markedsføringskostnader[],MATCH(INDEX(markedsføringsavvik[],ROW()-ROW(markedsføringsavvik[[#Headers],[April]]),1),INDEX(planlagte_markedsføringskostnader[],,1),0),MATCH(markedsføringsavvik[[#Headers],[April]],planlagte_markedsføringskostnader[#Headers],0))-INDEX(faktiske_markedsføringskostnader[],MATCH(INDEX(markedsføringsavvik[],ROW()-ROW(markedsføringsavvik[[#Headers],[April]]),1),INDEX(planlagte_markedsføringskostnader[],,1),0),MATCH(markedsføringsavvik[[#Headers],[April]],faktiske_markedsføringskostnader[#Headers],0))","v":{"v":-23,"d":"-kr 23.00"}},{"$f":"INDEX(planlagte_markedsføringskostnader[],MATCH(INDEX(markedsføringsavvik[],ROW()-ROW(markedsføringsavvik[[#Headers],[Mai]]),1),INDEX(planlagte_markedsføringskostnader[],,1),0),MATCH(markedsføringsavvik[[#Headers],[Mai]],planlagte_markedsføringskostnader[#Headers],0))-INDEX(faktiske_markedsføringskostnader[],MATCH(INDEX(markedsføringsavvik[],ROW()-ROW(markedsføringsavvik[[#Headers],[Mai]]),1),INDEX(planlagte_markedsføringskostnader[],,1),0),MATCH(markedsføringsavvik[[#Headers],[Mai]],faktiske_markedsføringskostnader[#Headers],0))","v":{"v":13,"d":"kr 13.00"}},{"$f":"INDEX(planlagte_markedsføringskostnader[],MATCH(INDEX(markedsføringsavvik[],ROW()-ROW(markedsføringsavvik[[#Headers],[Juni]]),1),INDEX(planlagte_markedsføringskostnader[],,1),0),MATCH(markedsføringsavvik[[#Headers],[Juni]],planlagte_markedsføringskostnader[#Headers],0))-INDEX(faktiske_markedsføringskostnader[],MATCH(INDEX(markedsføringsavvik[],ROW()-ROW(markedsføringsavvik[[#Headers],[Juni]]),1),INDEX(planlagte_markedsføringskostnader[],,1),0),MATCH(markedsføringsavvik[[#Headers],[Juni]],faktiske_markedsføringskostnader[#Headers],0))","v":{"v":-45,"d":"-kr 45.00"}},{"$f":"INDEX(planlagte_markedsføringskostnader[],MATCH(INDEX(markedsføringsavvik[],ROW()-ROW(markedsføringsavvik[[#Headers],[Juli]]),1),INDEX(planlagte_markedsføringskostnader[],,1),0),MATCH(markedsføringsavvik[[#Headers],[Juli]],planlagte_markedsføringskostnader[#Headers],0))-INDEX(faktiske_markedsføringskostnader[],MATCH(INDEX(markedsføringsavvik[],ROW()-ROW(markedsføringsavvik[[#Headers],[Juli]]),1),INDEX(planlagte_markedsføringskostnader[],,1),0),MATCH(markedsføringsavvik[[#Headers],[Juli]],faktiske_markedsføringskostnader[#Headers],0))","v":{"v":200,"d":"kr 200.00"}},{"$f":"INDEX(planlagte_markedsføringskostnader[],MATCH(INDEX(markedsføringsavvik[],ROW()-ROW(markedsføringsavvik[[#Headers],[Aug.]]),1),INDEX(planlagte_markedsføringskostnader[],,1),0),MATCH(markedsføringsavvik[[#Headers],[Aug.]],planlagte_markedsføringskostnader[#Headers],0))-INDEX(faktiske_markedsføringskostnader[],MATCH(INDEX(markedsføringsavvik[],ROW()-ROW(markedsføringsavvik[[#Headers],[Aug.]]),1),INDEX(planlagte_markedsføringskostnader[],,1),0),MATCH(markedsføringsavvik[[#Headers],[Aug.]],faktiske_markedsføringskostnader[#Headers],0))","v":{"v":200,"d":"kr 200.00"}},{"$f":"INDEX(planlagte_markedsføringskostnader[],MATCH(INDEX(markedsføringsavvik[],ROW()-ROW(markedsføringsavvik[[#Headers],[Sep.]]),1),INDEX(planlagte_markedsføringskostnader[],,1),0),MATCH(markedsføringsavvik[[#Headers],[Sep.]],planlagte_markedsføringskostnader[#Headers],0))-INDEX(faktiske_markedsføringskostnader[],MATCH(INDEX(markedsføringsavvik[],ROW()-ROW(markedsføringsavvik[[#Headers],[Sep.]]),1),INDEX(planlagte_markedsføringskostnader[],,1),0),MATCH(markedsføringsavvik[[#Headers],[Sep.]],faktiske_markedsføringskostnader[#Headers],0))","v":{"v":200,"d":"kr 200.00"}},{"$f":"INDEX(planlagte_markedsføringskostnader[],MATCH(INDEX(markedsføringsavvik[],ROW()-ROW(markedsføringsavvik[[#Headers],[Okt.]]),1),INDEX(planlagte_markedsføringskostnader[],,1),0),MATCH(markedsføringsavvik[[#Headers],[Okt.]],planlagte_markedsføringskostnader[#Headers],0))-INDEX(faktiske_markedsføringskostnader[],MATCH(INDEX(markedsføringsavvik[],ROW()-ROW(markedsføringsavvik[[#Headers],[Okt.]]),1),INDEX(planlagte_markedsføringskostnader[],,1),0),MATCH(markedsføringsavvik[[#Headers],[Okt.]],faktiske_markedsføringskostnader[#Headers],0))","v":{"v":200,"d":"kr 200.00"}},{"$f":"INDEX(planlagte_markedsføringskostnader[],MATCH(INDEX(markedsføringsavvik[],ROW()-ROW(markedsføringsavvik[[#Headers],[Nov.]]),1),INDEX(planlagte_markedsføringskostnader[],,1),0),MATCH(markedsføringsavvik[[#Headers],[Nov.]],planlagte_markedsføringskostnader[#Headers],0))-INDEX(faktiske_markedsføringskostnader[],MATCH(INDEX(markedsføringsavvik[],ROW()-ROW(markedsføringsavvik[[#Headers],[Nov.]]),1),INDEX(planlagte_markedsføringskostnader[],,1),0),MATCH(markedsføringsavvik[[#Headers],[Nov.]],faktiske_markedsføringskostnader[#Headers],0))","v":{"v":200,"d":"kr 200.00"}},{"$f":"INDEX(planlagte_markedsføringskostnader[],MATCH(INDEX(markedsføringsavvik[],ROW()-ROW(markedsføringsavvik[[#Headers],[Des.]]),1),INDEX(planlagte_markedsføringskostnader[],,1),0),MATCH(markedsføringsavvik[[#Headers],[Des.]],planlagte_markedsføringskostnader[#Headers],0))-INDEX(faktiske_markedsføringskostnader[],MATCH(INDEX(markedsføringsavvik[],ROW()-ROW(markedsføringsavvik[[#Headers],[Des.]]),1),INDEX(planlagte_markedsføringskostnader[],,1),0),MATCH(markedsføringsavvik[[#Headers],[Des.]],faktiske_markedsføringskostnader[#Headers],0))","v":{"v":200,"d":"kr 200.00"}},{"$f":"SUM(markedsføringsavvik[[#This Row],[Jan.]:[Des.]])","v":{"v":1321,"d":"kr 1,321.00"}}]
[null,"Delsum",{"$f":"SUBTOTAL(109,markedsføringsavvik[Jan.])","v":{"v":555,"d":"kr 555.00"}},{"$f":"SUBTOTAL(109,markedsføringsavvik[Feb.])","v":{"v":-456,"d":"-kr 456.00"}},{"$f":"SUBTOTAL(109,markedsføringsavvik[Mars])","v":{"v":-23,"d":"-kr 23.00"}},{"$f":"SUBTOTAL(109,markedsføringsavvik[April])","v":{"v":-123,"d":"-kr 123.00"}},{"$f":"SUBTOTAL(109,markedsføringsavvik[Mai])","v":{"v":113,"d":"kr 113.00"}},{"$f":"SUBTOTAL(109,markedsføringsavvik[Juni])","v":{"v":-825,"d":"-kr 825.00"}},{"$f":"SUBTOTAL(109,markedsføringsavvik[Juli])","v":{"v":8100,"d":"kr 8,100.00"}},{"$f":"SUBTOTAL(109,markedsføringsavvik[Aug.])","v":{"v":6100,"d":"kr 6,100.00"}},{"$f":"SUBTOTAL(109,markedsføringsavvik[Sep.])","v":{"v":3100,"d":"kr 3,100.00"}},{"$f":"SUBTOTAL(109,markedsføringsavvik[Okt.])","v":{"v":8100,"d":"kr 8,100.00"}},{"$f":"SUBTOTAL(109,markedsføringsavvik[Nov.])","v":{"v":3100,"d":"kr 3,100.00"}},{"$f":"SUBTOTAL(109,markedsføringsavvik[Des.])","v":{"v":6900,"d":"kr 6,900.00"}},{"$f":"SUBTOTAL(109,markedsføringsavvik[ÅR])","v":{"v":34641,"d":"kr 34,641.00"}}]
[]
["Avvik i opplærings- og reisekostnader beregnes automatisk i tabellen for opplærings- og reiseavvik som starter i cellen til høyre. Neste instruksjon finnes i celle A35.","Opplæring og reise","Jan.","Feb.","Mars","April","Mai","Juni","Juli","Aug.","Sep.","Okt.","Nov.","Des.","ÅR"]
[null,"Kurs",{"$f":"INDEX(planlagte_opplærings_og_reisekostnader[],MATCH(INDEX(opplærings_og_reiseavvik[],ROW()-ROW(opplærings_og_reiseavvik[[#Headers],[Jan.]]),1),INDEX(planlagte_opplærings_og_reisekostnader[],,1),0),MATCH(opplærings_og_reiseavvik[[#Headers],[Jan.]],planlagte_opplærings_og_reisekostnader[#Headers],0))-INDEX(faktiske_opplærings_og_reisekostnader[],MATCH(INDEX(opplærings_og_reiseavvik[],ROW()-ROW(opplærings_og_reiseavvik[[#Headers],[Jan.]]),1),INDEX(planlagte_opplærings_og_reisekostnader[],,1),0),MATCH(opplærings_og_reiseavvik[[#Headers],[Jan.]],faktiske_opplærings_og_reisekostnader[#Headers],0))","v":{"v":400,"d":"kr 400.00"}},{"$f":"INDEX(planlagte_opplærings_og_reisekostnader[],MATCH(INDEX(opplærings_og_reiseavvik[],ROW()-ROW(opplærings_og_reiseavvik[[#Headers],[Feb.]]),1),INDEX(planlagte_opplærings_og_reisekostnader[],,1),0),MATCH(opplærings_og_reiseavvik[[#Headers],[Feb.]],planlagte_opplærings_og_reisekostnader[#Headers],0))-INDEX(faktiske_opplærings_og_reisekostnader[],MATCH(INDEX(opplærings_og_reiseavvik[],ROW()-ROW(opplærings_og_reiseavvik[[#Headers],[Feb.]]),1),INDEX(planlagte_opplærings_og_reisekostnader[],,1),0),MATCH(opplærings_og_reiseavvik[[#Headers],[Feb.]],faktiske_opplærings_og_reisekostnader[#Headers],0))","v":{"v":-400,"d":"-kr 400.00"}},{"$f":"INDEX(planlagte_opplærings_og_reisekostnader[],MATCH(INDEX(opplærings_og_reiseavvik[],ROW()-ROW(opplærings_og_reiseavvik[[#Headers],[Mars]]),1),INDEX(planlagte_opplærings_og_reisekostnader[],,1),0),MATCH(opplærings_og_reiseavvik[[#Headers],[Mars]],planlagte_opplærings_og_reisekostnader[#Headers],0))-INDEX(faktiske_opplærings_og_reisekostnader[],MATCH(INDEX(opplærings_og_reiseavvik[],ROW()-ROW(opplærings_og_reiseavvik[[#Headers],[Mars]]),1),INDEX(planlagte_opplærings_og_reisekostnader[],,1),0),MATCH(opplærings_og_reiseavvik[[#Headers],[Mars]],faktiske_opplærings_og_reisekostnader[#Headers],0))","v":{"v":600,"d":"kr 600.00"}},{"$f":"INDEX(planlagte_opplærings_og_reisekostnader[],MATCH(INDEX(opplærings_og_reiseavvik[],ROW()-ROW(opplærings_og_reiseavvik[[#Headers],[April]]),1),INDEX(planlagte_opplærings_og_reisekostnader[],,1),0),MATCH(opplærings_og_reiseavvik[[#Headers],[April]],planlagte_opplærings_og_reisekostnader[#Headers],0))-INDEX(faktiske_opplærings_og_reisekostnader[],MATCH(INDEX(opplærings_og_reiseavvik[],ROW()-ROW(opplærings_og_reiseavvik[[#Headers],[April]]),1),INDEX(planlagte_opplærings_og_reisekostnader[],,1),0),MATCH(opplærings_og_reiseavvik[[#Headers],[April]],faktiske_opplærings_og_reisekostnader[#Headers],0))","v":{"v":400,"d":"kr 400.00"}},{"$f":"INDEX(planlagte_opplærings_og_reisekostnader[],MATCH(INDEX(opplærings_og_reiseavvik[],ROW()-ROW(opplærings_og_reiseavvik[[#Headers],[Mai]]),1),INDEX(planlagte_opplærings_og_reisekostnader[],,1),0),MATCH(opplærings_og_reiseavvik[[#Headers],[Mai]],planlagte_opplærings_og_reisekostnader[#Headers],0))-INDEX(faktiske_opplærings_og_reisekostnader[],MATCH(INDEX(opplærings_og_reiseavvik[],ROW()-ROW(opplærings_og_reiseavvik[[#Headers],[Mai]]),1),INDEX(planlagte_opplærings_og_reisekostnader[],,1),0),MATCH(opplærings_og_reiseavvik[[#Headers],[Mai]],faktiske_opplærings_og_reisekostnader[#Headers],0))","v":{"v":800,"d":"kr 800.00"}},{"$f":"INDEX(planlagte_opplærings_og_reisekostnader[],MATCH(INDEX(opplærings_og_reiseavvik[],ROW()-ROW(opplærings_og_reiseavvik[[#Headers],[Juni]]),1),INDEX(planlagte_opplærings_og_reisekostnader[],,1),0),MATCH(opplærings_og_reiseavvik[[#Headers],[Juni]],planlagte_opplærings_og_reisekostnader[#Headers],0))-INDEX(faktiske_opplærings_og_reisekostnader[],MATCH(INDEX(opplærings_og_reiseavvik[],ROW()-ROW(opplærings_og_reiseavvik[[#Headers],[Juni]]),1),INDEX(planlagte_opplærings_og_reisekostnader[],,1),0),MATCH(opplærings_og_reiseavvik[[#Headers],[Juni]],faktiske_opplærings_og_reisekostnader[#Headers],0))","v":{"v":-800,"d":"-kr 800.00"}},{"$f":"INDEX(planlagte_opplærings_og_reisekostnader[],MATCH(INDEX(opplærings_og_reiseavvik[],ROW()-ROW(opplærings_og_reiseavvik[[#Headers],[Juli]]),1),INDEX(planlagte_opplærings_og_reisekostnader[],,1),0),MATCH(opplærings_og_reiseavvik[[#Headers],[Juli]],planlagte_opplærings_og_reisekostnader[#Headers],0))-INDEX(faktiske_opplærings_og_reisekostnader[],MATCH(INDEX(opplærings_og_reiseavvik[],ROW()-ROW(opplærings_og_reiseavvik[[#Headers],[Juli]]),1),INDEX(planlagte_opplærings_og_reisekostnader[],,1),0),MATCH(opplærings_og_reiseavvik[[#Headers],[Juli]],faktiske_opplærings_og_reisekostnader[#Headers],0))","v":{"v":2000,"d":"kr 2,000.00"}},{"$f":"INDEX(planlagte_opplærings_og_reisekostnader[],MATCH(INDEX(opplærings_og_reiseavvik[],ROW()-ROW(opplærings_og_reiseavvik[[#Headers],[Aug.]]),1),INDEX(planlagte_opplærings_og_reisekostnader[],,1),0),MATCH(opplærings_og_reiseavvik[[#Headers],[Aug.]],planlagte_opplærings_og_reisekostnader[#Headers],0))-INDEX(faktiske_opplærings_og_reisekostnader[],MATCH(INDEX(opplærings_og_reiseavvik[],ROW()-ROW(opplærings_og_reiseavvik[[#Headers],[Aug.]]),1),INDEX(planlagte_opplærings_og_reisekostnader[],,1),0),MATCH(opplærings_og_reiseavvik[[#Headers],[Aug.]],faktiske_opplærings_og_reisekostnader[#Headers],0))","v":{"v":2000,"d":"kr 2,000.00"}},{"$f":"INDEX(planlagte_opplærings_og_reisekostnader[],MATCH(INDEX(opplærings_og_reiseavvik[],ROW()-ROW(opplærings_og_reiseavvik[[#Headers],[Sep.]]),1),INDEX(planlagte_opplærings_og_reisekostnader[],,1),0),MATCH(opplærings_og_reiseavvik[[#Headers],[Sep.]],planlagte_opplærings_og_reisekostnader[#Headers],0))-INDEX(faktiske_opplærings_og_reisekostnader[],MATCH(INDEX(opplærings_og_reiseavvik[],ROW()-ROW(opplærings_og_reiseavvik[[#Headers],[Sep.]]),1),INDEX(planlagte_opplærings_og_reisekostnader[],,1),0),MATCH(opplærings_og_reiseavvik[[#Headers],[Sep.]],faktiske_opplærings_og_reisekostnader[#Headers],0))","v":{"v":2000,"d":"kr 2,000.00"}},{"$f":"INDEX(planlagte_opplærings_og_reisekostnader[],MATCH(INDEX(opplærings_og_reiseavvik[],ROW()-ROW(opplærings_og_reiseavvik[[#Headers],[Okt.]]),1),INDEX(planlagte_opplærings_og_reisekostnader[],,1),0),MATCH(opplærings_og_reiseavvik[[#Headers],[Okt.]],planlagte_opplærings_og_reisekostnader[#Headers],0))-INDEX(faktiske_opplærings_og_reisekostnader[],MATCH(INDEX(opplærings_og_reiseavvik[],ROW()-ROW(opplærings_og_reiseavvik[[#Headers],[Okt.]]),1),INDEX(planlagte_opplærings_og_reisekostnader[],,1),0),MATCH(opplærings_og_reiseavvik[[#Headers],[Okt.]],faktiske_opplærings_og_reisekostnader[#Headers],0))","v":{"v":2000,"d":"kr 2,000.00"}},{"$f":"INDEX(planlagte_opplærings_og_reisekostnader[],MATCH(INDEX(opplærings_og_reiseavvik[],ROW()-ROW(opplærings_og_reiseavvik[[#Headers],[Nov.]]),1),INDEX(planlagte_opplærings_og_reisekostnader[],,1),0),MATCH(opplærings_og_reiseavvik[[#Headers],[Nov.]],planlagte_opplærings_og_reisekostnader[#Headers],0))-INDEX(faktiske_opplærings_og_reisekostnader[],MATCH(INDEX(opplærings_og_reiseavvik[],ROW()-ROW(opplærings_og_reiseavvik[[#Headers],[Nov.]]),1),INDEX(planlagte_opplærings_og_reisekostnader[],,1),0),MATCH(opplærings_og_reiseavvik[[#Headers],[Nov.]],faktiske_opplærings_og_reisekostnader[#Headers],0))","v":{"v":2000,"d":"kr 2,000.00"}},{"$f":"INDEX(planlagte_opplærings_og_reisekostnader[],MATCH(INDEX(opplærings_og_reiseavvik[],ROW()-ROW(opplærings_og_reiseavvik[[#Headers],[Des.]]),1),INDEX(planlagte_opplærings_og_reisekostnader[],,1),0),MATCH(opplærings_og_reiseavvik[[#Headers],[Des.]],planlagte_opplærings_og_reisekostnader[#Headers],0))-INDEX(faktiske_opplærings_og_reisekostnader[],MATCH(INDEX(opplærings_og_reiseavvik[],ROW()-ROW(opplærings_og_reiseavvik[[#Headers],[Des.]]),1),INDEX(planlagte_opplærings_og_reisekostnader[],,1),0),MATCH(opplærings_og_reiseavvik[[#Headers],[Des.]],faktiske_opplærings_og_reisekostnader[#Headers],0))","v":{"v":2000,"d":"kr 2,000.00"}},{"$f":"SUM(opplærings_og_reiseavvik[[#This Row],[Jan.]:[Des.]])","v":{"v":13000,"d":"kr 13,000.00"}}]
[null,"Reisekostnader knyttet til opplæring",{"$f":"INDEX(planlagte_opplærings_og_reisekostnader[],MATCH(INDEX(opplærings_og_reiseavvik[],ROW()-ROW(opplærings_og_reiseavvik[[#Headers],[Jan.]]),1),INDEX(planlagte_opplærings_og_reisekostnader[],,1),0),MATCH(opplærings_og_reiseavvik[[#Headers],[Jan.]],planlagte_opplærings_og_reisekostnader[#Headers],0))-INDEX(faktiske_opplærings_og_reisekostnader[],MATCH(INDEX(opplærings_og_reiseavvik[],ROW()-ROW(opplærings_og_reiseavvik[[#Headers],[Jan.]]),1),INDEX(planlagte_opplærings_og_reisekostnader[],,1),0),MATCH(opplærings_og_reiseavvik[[#Headers],[Jan.]],faktiske_opplærings_og_reisekostnader[#Headers],0))","v":{"v":800,"d":"kr 800.00"}},{"$f":"INDEX(planlagte_opplærings_og_reisekostnader[],MATCH(INDEX(opplærings_og_reiseavvik[],ROW()-ROW(opplærings_og_reiseavvik[[#Headers],[Feb.]]),1),INDEX(planlagte_opplærings_og_reisekostnader[],,1),0),MATCH(opplærings_og_reiseavvik[[#Headers],[Feb.]],planlagte_opplærings_og_reisekostnader[#Headers],0))-INDEX(faktiske_opplærings_og_reisekostnader[],MATCH(INDEX(opplærings_og_reiseavvik[],ROW()-ROW(opplærings_og_reiseavvik[[#Headers],[Feb.]]),1),INDEX(planlagte_opplærings_og_reisekostnader[],,1),0),MATCH(opplærings_og_reiseavvik[[#Headers],[Feb.]],faktiske_opplærings_og_reisekostnader[#Headers],0))","v":{"v":-200,"d":"-kr 200.00"}},{"$f":"INDEX(planlagte_opplærings_og_reisekostnader[],MATCH(INDEX(opplærings_og_reiseavvik[],ROW()-ROW(opplærings_og_reiseavvik[[#Headers],[Mars]]),1),INDEX(planlagte_opplærings_og_reisekostnader[],,1),0),MATCH(opplærings_og_reiseavvik[[#Headers],[Mars]],planlagte_opplærings_og_reisekostnader[#Headers],0))-INDEX(faktiske_opplærings_og_reisekostnader[],MATCH(INDEX(opplærings_og_reiseavvik[],ROW()-ROW(opplærings_og_reiseavvik[[#Headers],[Mars]]),1),INDEX(planlagte_opplærings_og_reisekostnader[],,1),0),MATCH(opplærings_og_reiseavvik[[#Headers],[Mars]],faktiske_opplærings_og_reisekostnader[#Headers],0))","v":{"v":600,"d":"kr 600.00"}},{"$f":"INDEX(planlagte_opplærings_og_reisekostnader[],MATCH(INDEX(opplærings_og_reiseavvik[],ROW()-ROW(opplærings_og_reiseavvik[[#Headers],[April]]),1),INDEX(planlagte_opplærings_og_reisekostnader[],,1),0),MATCH(opplærings_og_reiseavvik[[#Headers],[April]],planlagte_opplærings_og_reisekostnader[#Headers],0))-INDEX(faktiske_opplærings_og_reisekostnader[],MATCH(INDEX(opplærings_og_reiseavvik[],ROW()-ROW(opplærings_og_reiseavvik[[#Headers],[April]]),1),INDEX(planlagte_opplærings_og_reisekostnader[],,1),0),MATCH(opplærings_og_reiseavvik[[#Headers],[April]],faktiske_opplærings_og_reisekostnader[#Headers],0))","v":{"v":800,"d":"kr 800.00"}},{"$f":"INDEX(planlagte_opplærings_og_reisekostnader[],MATCH(INDEX(opplærings_og_reiseavvik[],ROW()-ROW(opplærings_og_reiseavvik[[#Headers],[Mai]]),1),INDEX(planlagte_opplærings_og_reisekostnader[],,1),0),MATCH(opplærings_og_reiseavvik[[#Headers],[Mai]],planlagte_opplærings_og_reisekostnader[#Headers],0))-INDEX(faktiske_opplærings_og_reisekostnader[],MATCH(INDEX(opplærings_og_reiseavvik[],ROW()-ROW(opplærings_og_reiseavvik[[#Headers],[Mai]]),1),INDEX(planlagte_opplærings_og_reisekostnader[],,1),0),MATCH(opplærings_og_reiseavvik[[#Headers],[Mai]],faktiske_opplærings_og_reisekostnader[#Headers],0))","v":{"v":1200,"d":"kr 1,200.00"}},{"$f":"INDEX(planlagte_opplærings_og_reisekostnader[],MATCH(INDEX(opplærings_og_reiseavvik[],ROW()-ROW(opplærings_og_reiseavvik[[#Headers],[Juni]]),1),INDEX(planlagte_opplærings_og_reisekostnader[],,1),0),MATCH(opplærings_og_reiseavvik[[#Headers],[Juni]],planlagte_opplærings_og_reisekostnader[#Headers],0))-INDEX(faktiske_opplærings_og_reisekostnader[],MATCH(INDEX(opplærings_og_reiseavvik[],ROW()-ROW(opplærings_og_reiseavvik[[#Headers],[Juni]]),1),INDEX(planlagte_opplærings_og_reisekostnader[],,1),0),MATCH(opplærings_og_reiseavvik[[#Headers],[Juni]],faktiske_opplærings_og_reisekostnader[#Headers],0))","v":{"v":-1500,"d":"-kr 1,500.00"}},{"$f":"INDEX(planlagte_opplærings_og_reisekostnader[],MATCH(INDEX(opplærings_og_reiseavvik[],ROW()-ROW(opplærings_og_reiseavvik[[#Headers],[Juli]]),1),INDEX(planlagte_opplærings_og_reisekostnader[],,1),0),MATCH(opplærings_og_reiseavvik[[#Headers],[Juli]],planlagte_opplærings_og_reisekostnader[#Headers],0))-INDEX(faktiske_opplærings_og_reisekostnader[],MATCH(INDEX(opplærings_og_reiseavvik[],ROW()-ROW(opplærings_og_reiseavvik[[#Headers],[Juli]]),1),INDEX(planlagte_opplærings_og_reisekostnader[],,1),0),MATCH(opplærings_og_reiseavvik[[#Headers],[Juli]],faktiske_opplærings_og_reisekostnader[#Headers],0))","v":{"v":2000,"d":"kr 2,000.00"}},{"$f":"INDEX(planlagte_opplærings_og_reisekostnader[],MATCH(INDEX(opplærings_og_reiseavvik[],ROW()-ROW(opplærings_og_reiseavvik[[#Headers],[Aug.]]),1),INDEX(planlagte_opplærings_og_reisekostnader[],,1),0),MATCH(opplærings_og_reiseavvik[[#Headers],[Aug.]],planlagte_opplærings_og_reisekostnader[#Headers],0))-INDEX(faktiske_opplærings_og_reisekostnader[],MATCH(INDEX(opplærings_og_reiseavvik[],ROW()-ROW(opplærings_og_reiseavvik[[#Headers],[Aug.]]),1),INDEX(planlagte_opplærings_og_reisekostnader[],,1),0),MATCH(opplærings_og_reiseavvik[[#Headers],[Aug.]],faktiske_opplærings_og_reisekostnader[#Headers],0))","v":{"v":2000,"d":"kr 2,000.00"}},{"$f":"INDEX(planlagte_opplærings_og_reisekostnader[],MATCH(INDEX(opplærings_og_reiseavvik[],ROW()-ROW(opplærings_og_reiseavvik[[#Headers],[Sep.]]),1),INDEX(planlagte_opplærings_og_reisekostnader[],,1),0),MATCH(opplærings_og_reiseavvik[[#Headers],[Sep.]],planlagte_opplærings_og_reisekostnader[#Headers],0))-INDEX(faktiske_opplærings_og_reisekostnader[],MATCH(INDEX(opplærings_og_reiseavvik[],ROW()-ROW(opplærings_og_reiseavvik[[#Headers],[Sep.]]),1),INDEX(planlagte_opplærings_og_reisekostnader[],,1),0),MATCH(opplærings_og_reiseavvik[[#Headers],[Sep.]],faktiske_opplærings_og_reisekostnader[#Headers],0))","v":{"v":2000,"d":"kr 2,000.00"}},{"$f":"INDEX(planlagte_opplærings_og_reisekostnader[],MATCH(INDEX(opplærings_og_reiseavvik[],ROW()-ROW(opplærings_og_reiseavvik[[#Headers],[Okt.]]),1),INDEX(planlagte_opplærings_og_reisekostnader[],,1),0),MATCH(opplærings_og_reiseavvik[[#Headers],[Okt.]],planlagte_opplærings_og_reisekostnader[#Headers],0))-INDEX(faktiske_opplærings_og_reisekostnader[],MATCH(INDEX(opplærings_og_reiseavvik[],ROW()-ROW(opplærings_og_reiseavvik[[#Headers],[Okt.]]),1),INDEX(planlagte_opplærings_og_reisekostnader[],,1),0),MATCH(opplærings_og_reiseavvik[[#Headers],[Okt.]],faktiske_opplærings_og_reisekostnader[#Headers],0))","v":{"v":2000,"d":"kr 2,000.00"}},{"$f":"INDEX(planlagte_opplærings_og_reisekostnader[],MATCH(INDEX(opplærings_og_reiseavvik[],ROW()-ROW(opplærings_og_reiseavvik[[#Headers],[Nov.]]),1),INDEX(planlagte_opplærings_og_reisekostnader[],,1),0),MATCH(opplærings_og_reiseavvik[[#Headers],[Nov.]],planlagte_opplærings_og_reisekostnader[#Headers],0))-INDEX(faktiske_opplærings_og_reisekostnader[],MATCH(INDEX(opplærings_og_reiseavvik[],ROW()-ROW(opplærings_og_reiseavvik[[#Headers],[Nov.]]),1),INDEX(planlagte_opplærings_og_reisekostnader[],,1),0),MATCH(opplærings_og_reiseavvik[[#Headers],[Nov.]],faktiske_opplærings_og_reisekostnader[#Headers],0))","v":{"v":2000,"d":"kr 2,000.00"}},{"$f":"INDEX(planlagte_opplærings_og_reisekostnader[],MATCH(INDEX(opplærings_og_reiseavvik[],ROW()-ROW(opplærings_og_reiseavvik[[#Headers],[Des.]]),1),INDEX(planlagte_opplærings_og_reisekostnader[],,1),0),MATCH(opplærings_og_reiseavvik[[#Headers],[Des.]],planlagte_opplærings_og_reisekostnader[#Headers],0))-INDEX(faktiske_opplærings_og_reisekostnader[],MATCH(INDEX(opplærings_og_reiseavvik[],ROW()-ROW(opplærings_og_reiseavvik[[#Headers],[Des.]]),1),INDEX(planlagte_opplærings_og_reisekostnader[],,1),0),MATCH(opplærings_og_reiseavvik[[#Headers],[Des.]],faktiske_opplærings_og_reisekostnader[#Headers],0))","v":{"v":2000,"d":"kr 2,000.00"}},{"$f":"SUM(opplærings_og_reiseavvik[[#This Row],[Jan.]:[Des.]])","v":{"v":13700,"d":"kr 13,700.00"}}]
[null,"Delsum",{"$f":"SUBTOTAL(109,opplærings_og_reiseavvik[Jan.])","v":{"v":1200,"d":"kr 1,200.00"}},{"$f":"SUBTOTAL(109,opplærings_og_reiseavvik[Feb.])","v":{"v":-600,"d":"-kr 600.00"}},{"$f":"SUBTOTAL(109,opplærings_og_reiseavvik[Mars])","v":{"v":1200,"d":"kr 1,200.00"}},{"$f":"SUBTOTAL(109,opplærings_og_reiseavvik[April])","v":{"v":1200,"d":"kr 1,200.00"}},{"$f":"SUBTOTAL(109,opplærings_og_reiseavvik[Mai])","v":{"v":2000,"d":"kr 2,000.00"}},{"$f":"SUBTOTAL(109,opplærings_og_reiseavvik[Juni])","v":{"v":-2300,"d":"-kr 2,300.00"}},{"$f":"SUBTOTAL(109,opplærings_og_reiseavvik[Juli])","v":{"v":4000,"d":"kr 4,000.00"}},{"$f":"SUBTOTAL(109,opplærings_og_reiseavvik[Aug.])","v":{"v":4000,"d":"kr 4,000.00"}},{"$f":"SUBTOTAL(109,opplærings_og_reiseavvik[Sep.])","v":{"v":4000,"d":"kr 4,000.00"}},{"$f":"SUBTOTAL(109,opplærings_og_reiseavvik[Okt.])","v":{"v":4000,"d":"kr 4,000.00"}},{"$f":"SUBTOTAL(109,opplærings_og_reiseavvik[Nov.])","v":{"v":4000,"d":"kr 4,000.00"}},{"$f":"SUBTOTAL(109,opplærings_og_reiseavvik[Des.])","v":{"v":4000,"d":"kr 4,000.00"}},{"$f":"SUBTOTAL(109,opplærings_og_reiseavvik[ÅR])","v":{"v":26700,"d":"kr 26,700.00"}}]
[]
["Utgiftsavvik beregnes automatisk i tabellen for totalsum avvik som starter i cellen til høyre.","TOTALSUMMER","Jan.","Feb.","Mars","April","Mai","Juni","Juli","Aug.","Sep.","Okt.","Nov.","Des.","År"]
[null,"Månedlige faktiske utgifter",{"$f":"opplærings_og_reiseavvik[[#Totals],[Jan.]]+markedsføringsavvik[[#Totals],[Jan.]]+kontoravvik[[#Totals],[Jan.]]+ansatteavvik[[#Totals],[Jan.]]","v":{"v":1738,"d":"kr 1,738.00"}},{"$f":"opplærings_og_reiseavvik[[#Totals],[Feb.]]+markedsføringsavvik[[#Totals],[Feb.]]+kontoravvik[[#Totals],[Feb.]]+ansatteavvik[[#Totals],[Feb.]]","v":{"v":-984,"d":"-kr 984.00"}},{"$f":"opplærings_og_reiseavvik[[#Totals],[Mars]]+markedsføringsavvik[[#Totals],[Mars]]+kontoravvik[[#Totals],[Mars]]+ansatteavvik[[#Totals],[Mars]]","v":{"v":1255,"d":"kr 1,255.00"}},{"$f":"opplærings_og_reiseavvik[[#Totals],[April]]+markedsføringsavvik[[#Totals],[April]]+kontoravvik[[#Totals],[April]]+ansatteavvik[[#Totals],[April]]","v":{"v":301,"d":"kr 301.00"}},{"$f":"opplærings_og_reiseavvik[[#Totals],[Mai]]+markedsføringsavvik[[#Totals],[Mai]]+kontoravvik[[#Totals],[Mai]]+ansatteavvik[[#Totals],[Mai]]","v":{"v":1440,"d":"kr 1,440.00"}},{"$f":"opplærings_og_reiseavvik[[#Totals],[Juni]]+markedsføringsavvik[[#Totals],[Juni]]+kontoravvik[[#Totals],[Juni]]+ansatteavvik[[#Totals],[Juni]]","v":{"v":-3744,"d":"-kr 3,744.00"}},{"$f":"opplærings_og_reiseavvik[[#Totals],[Juli]]+markedsføringsavvik[[#Totals],[Juli]]+kontoravvik[[#Totals],[Juli]]+ansatteavvik[[#Totals],[Juli]]","v":{"v":134695,"d":"kr 134,695.00"}},{"$f":"opplærings_og_reiseavvik[[#Totals],[Aug.]]+markedsføringsavvik[[#Totals],[Aug.]]+kontoravvik[[#Totals],[Aug.]]+ansatteavvik[[#Totals],[Aug.]]","v":{"v":138918,"d":"kr 138,918.00"}},{"$f":"opplærings_og_reiseavvik[[#Totals],[Sep.]]+markedsføringsavvik[[#Totals],[Sep.]]+kontoravvik[[#Totals],[Sep.]]+ansatteavvik[[#Totals],[Sep.]]","v":{"v":135918,"d":"kr 135,918.00"}},{"$f":"opplærings_og_reiseavvik[[#Totals],[Okt.]]+markedsføringsavvik[[#Totals],[Okt.]]+kontoravvik[[#Totals],[Okt.]]+ansatteavvik[[#Totals],[Okt.]]","v":{"v":140918,"d":"kr 140,918.00"}},{"$f":"opplærings_og_reiseavvik[[#Totals],[Nov.]]+markedsføringsavvik[[#Totals],[Nov.]]+kontoravvik[[#Totals],[Nov.]]+ansatteavvik[[#Totals],[Nov.]]","v":{"v":136218,"d":"kr 136,218.00"}},{"$f":"opplærings_og_reiseavvik[[#Totals],[Des.]]+markedsføringsavvik[[#Totals],[Des.]]+kontoravvik[[#Totals],[Des.]]+ansatteavvik[[#Totals],[Des.]]","v":{"v":140018,"d":"kr 140,018.00"}},{"$f":"opplærings_og_reiseavvik[[#Totals],[ÅR]]+markedsføringsavvik[[#Totals],[ÅR]]+kontoravvik[[#Totals],[ÅR]]+ansatteavvik[[#Totals],[ÅR]]","v":{"v":826691,"d":"kr 826,691.00"}}]
[null,"Totalsum faktiske utgifter",{"$f":"SUM($C$36:C36)","v":{"v":1738,"d":"kr 1,738.00"}},{"$f":"SUM($C$36:D36)","v":{"v":754,"d":"kr 754.00"}},{"$f":"SUM($C$36:E36)","v":{"v":2009,"d":"kr 2,009.00"}},{"$f":"SUM($C$36:F36)","v":{"v":2310,"d":"kr 2,310.00"}},{"$f":"SUM($C$36:G36)","v":{"v":3750,"d":"kr 3,750.00"}},{"$f":"SUM($C$36:H36)","v":{"v":6,"d":"kr 6.00"}},{"$f":"SUM($C$36:I36)","v":{"v":134701,"d":"kr 134,701.00"}},{"$f":"SUM($C$36:J36)","v":{"v":273619,"d":"kr 273,619.00"}},{"$f":"SUM($C$36:K36)","v":{"v":409537,"d":"kr 409,537.00"}},{"$f":"SUM($C$36:L36)","v":{"v":550455,"d":"kr 550,455.00"}},{"$f":"SUM($C$36:M36)","v":{"v":686673,"d":"kr 686,673.00"}},{"$f":"SUM($C$36:N36)","v":{"v":826691,"d":"kr 826,691.00"}}]

{"sheet":"UTGIFTSANALYSE","index":4,"n_rows":14,"n_cols":16,"rows_kept":14,"merged":[[1,1,2,3],[1,5,1,6],[2,4,2,6],[11,1,11,2],[11,3,11,5],[13,1,36,5]]}
["Årlige planlagte og faktiske utgifter, utgiftsavvik og avvik i prosent oppdateres automatisk for hver utgiftskategori i dette regnearket. Du finner nyttige instruksjoner om hvordan du bruker dette regnearket i cellene i denne kolonnen. Trykk på PIL NED for å komme i gang. ",{"$nulls":5}," ",{"$nulls":8}," "]
["Firmanavn oppdateres automatisk i cellen til høyre. Legg inn logo i celle F2.",{"$f":"'PLANLAGTE UTGIFTER'!B2:D3","v":"Firmanavn"},{"$nulls":3},"Det er en plassholder for logo i denne cellen."]
["Tittelen på dette regnearket finnes i celle E3. Neste instruksjon finnes i celle A5.",{"$nulls":3},{"$f":"regneark_tittel","v":"Detaljerte kostnadsestimater"}]
[]
["Planlagte utgifter, faktiske utgifter, utgiftsavvik og avvik i prosent beregnes automatisk i tabellen for analyse som starter i cellen til høyre. Neste instruksjon finnes i celle A12.","Utgiftskategori","Planlagte utgifter","Faktiske utgifter","Utgiftsavvik","Avvik i prosent"]
[null,"Ansattekostnader",{"$f":"planlagte_ansattekostnader[[#Totals],[ÅR]]","v":{"v":1355090,"d":"kr 1,355,090.00"}},{"$f":"faktiske_ansattekostnader[[#Totals],[ÅR]]","v":{"v":659130,"d":"kr 659,130.00"}},{"$f":"C6-D6","v":{"v":695960,"d":"kr 695,960.00"}},{"$f":"E6/C6","v":{"v":0.5135895032802249,"d":"51%"}}]
[null,{"$f":"'PLANLAGTE UTGIFTER'!B10","v":"Kontorkostnader"},{"$f":"planlagte_kontorkostnader[[#Totals],[ÅR]]","v":{"v":138740,"d":"kr 138,740.00"}},{"$f":"faktiske_kontorkostnader[[#Totals],[ÅR]]","v":{"v":69350,"d":"kr 69,350.00"}},{"$f":"C7-D7","v":{"v":69390,"d":"kr 69,390.00"}},{"$f":"E7/C7","v":{"v":0.5001441545336601,"d":"50%"}}]
[null,{"$f":"'PLANLAGTE UTGIFTER'!B21","v":"Markedsføringskostnader"},{"$f":"planlagte_markedsføringskostnader[[#Totals],[ÅR]]","v":{"v":67800,"d":"kr 67,800.00"}},{"$f":"faktiske_markedsføringskostnader[[#Totals],[ÅR]]","v":{"v":33159,"d":"kr 33,159.00"}},{"$f":"C8-D8","v":{"v":34641,"d":"kr 34,641.00"}},{"$f":"E8/C8","v":{"v":0.510929203539823,"d":"51%"}}]
[null,{"$f":"'PLANLAGTE UTGIFTER'!B30","v":"Opplæring og reise"},{"$f":"planlagte_opplærings_og_reisekostnader[[#Totals],[ÅR]]","v":{"v":48000,"d":"kr 48,000.00"}},{"$f":"faktiske_opplærings_og_reisekostnader[[#Totals],[ÅR]]","v":{"v":21300,"d":"kr 21,300.00"}},{"$f":"C9-D9","v":{"v":26700,"d":"kr 26,700.00"}},{"$f":"E9/C9","v":{"v":0.55625,"d":"56%"}}]
[null,{"$f":"'PLANLAGTE UTGIFTER'!B35","v":"TOTALSUMMER"},{"$f":"'PLANLAGTE UTGIFTER'!O36","v":{"v":1609630,"d":"kr 1,609,630.00"}},{"$f":"'FAKTISKE UTGIFTER'!O36","v":{"v":782939,"d":"kr 782,939.00"}},{"$f":"C10-D10","v":{"v":826691,"d":"kr 826,691.00"}},{"$f":"E10/C10","v":{"v":0.5135907009685455,"d":"51%"}}]
[]
["Sektordiagram for planlagte utgifter er i cellen til høyre og sektordiagram for faktiske utgifter i celle D12. Neste instruksjon finnes i celle A14.","Sektordiagram som viser planlagte utgifter for forskjellige kategorier, er i denne cellen.",null,"Sektordiagram som viser faktiske utgifter for forskjellige kategorier, er i denne cellen."]
[]
["Diagram som viser planlagte og faktiske månedlige utgifter, samt avvik i disse, er i cellen til høyre."]